Workbook

Sheet Welcome

Sheet Tutorial (hidden)

Sheet Evaluation (hidden)
D21: Scenario 1 | E21: Scenario 2 | F21: Scenario 3 | G21: Scenario 4
C22: Flood risk | D22: 15 | E22: 85
C23: Scenic views | D23: 14 | G23: 10
C24: Education | D24: 14 | G24: 10
C25: Recreation | D25: 14 | F25: 60 | G25: 80
C26: Bird watching | D26: 14 | F26: 30
C27: Social equity | D27: 15 | E27: 15 | F27: 10
C28: Reliability | D28: 14
C29: Total | D29: =SUM(D22,D23,D24,D25,D26,D27,D28) -> 100 | E29: =SUM(E22,E23,E24,E25,E26,E27,E28) -> 100 | F29: =SUM(F22,F23,F24,F25,F26,F27,F28) -> 100 | G29: =SUM(G22,G23,G24,G25,G26,G27,G28) -> 100
F31: `
AL33: `

Sheet Data & Calc (hidden)
B12: sites/indicator | C12: FR1 | D12: FR2 | E12: FR3 | F12: FR4 | G12: SV1 | H12: SV2 | I12: SV3 | J12: SV4 | K12: SV5 | L12: E1 | M12: E2 | N12: R1 | O12: R2 | P12: R3 | Q12: R4 | R12: R5 | S12: R6 | T12: R7 | U12: R8 | V12: R9 | W12: BW1 | X12: BW2 | Y12: S1 | Z12: RE1 | AA12: * | AB12: sites/indicator | AC12: FR1 | AD12: FR2 | AE12: FR3 | AF12: FR4 | AG12: SV1 | AH12: SV2 | AI12: SV3 | AJ12: SV4 | AK12: SV5 | AL12: E1 | AM12: E2 | AN12: R1 | AO12: R2 | AP12: R3 | AQ12: R4 | AR12: R5 | AS12: R6 | AT12: R7 | AU12: R8 | AV12: R9 | AW12: BW1 | AX12: BW2 | AY12: S1 | AZ12: RE1 | BA12: * | BB12: sites/indicator | BC12: FR1 | BD12: FR2 | BE12: FR3 | BF12: FR4 | BG12: SV1 | BH12: SV2 | BI12: SV3 | BJ12: SV4 | BK12: SV5 | BL12: E1 | BM12: E2 | BN12: R1 | BO12: R2 | BP12: R3 | BQ12: R4 | BR12: R5 | BS12: R6 | BT12: R7 | BU12: R8 | BV12: R9 | BW12: BW1 | BX12: BW2 | BY12: S1 | BZ12: RE1 | CA12: * | CB12: sites/indicator | CC12: FR1 | CD12: FR2 | CE12: FR3 | CF12: FR4 | CG12: SV1 | CH12: SV2 | CI12: SV3 | CJ12: SV4 | CK12: SV5 | CL12: E1 | CM12: E2 | CN12: R1 | CO12: R2 | CP12: R3 | CQ12: R4 | CR12: R5 | CS12: R6 | CT12: R7 | CU12: R8 | CV12: R9 | CW12: BW1 | CX12: BW2 | CY12: S1 | CZ12: RE1 | EJ12: Scenario Name: | EK12: Scenario 3 | EU12: GoogleView | EV12: https://www.google.com/maps/place/41%C2%B049'56.9%22N+71%C2%B028'06.7%22W/@41.832478,-71.4707247,757m/data=!3m2!1e3!4b1!4m5!3m4!1s0x0:0x0!8m2!3d41.832478!4d-71.468536
B13: 2 | C13: 35 | D13: 0.502297 | E13: 5 | F13: 10.485748 | G13: 1 | H13: 6 | I13: YES | J13: 3 | K13: 9.539869 | L13: 0 | M13: 8.710283 | N13: 355 | O13: 277 | P13: 77782 | Q13: NO | R13: YES | S13: 33.655336 | T13: 52.958495 | U13: 61.877522 | V13: 59.78517669 | W13: 167 | X13: NO | Y13: 61.308145 | Z13: 10.845362 | AB13: 2 | AC13: 35 | AD13: 0.502297 | AE13: 5 | AF13: 10.485748 | AG13: 1 | AH13: 6 | AI13: 1 | AJ13: 3 | AK13: 9.539869 | AL13: 0 | AM13: 8.710283 | AN13: 355 | AO13: 277 | AP13: 77782 | AQ13: 0 | AR13: 1 | AS13: 33.655336 | AT13: 52.958495 | AU13: 61.877522 | AV13: 59.78517669 | AW13: 167 | AX13: 0 | AY13: 61.308145 | AZ13: 10.845362 | BB13: 2 | BC13: =(AC13-$AC$79)/$AC$80 -> 0.05287009063 | BD13: =(AD13-$AD$79)/$AD$80 -> 0.08919164451 | BE13: =((AE13-$AE$79)/$AE$80)*-1 -> 0.4444444444 | BF13: =((AF13-$AF$79)/$AF$80)*-1 -> 0.4268027097 | BG13: =(AG13-$AG$79)/$AG$80 -> 0.05555555556 | BH13: =(AH13-$AH$79)/$AH$80 -> 0.1428571429 | BI13: =(AI13-$AI$79)/$AI$80 -> 1 | BJ13: =(AJ13-$AJ$79)/$AJ$80 -> 0.3333333333 | BK13: =((AK13-$AK$79)/$AK$80)*-1 -> 0.8567563535 | BL13: =(AL13-$AL$79)/$AL$80 -> 0 | BM13: =((AM13-$AM$79)/$AM$80)*-1 -> 0.595479005 | BN13: =(AN13-$AN$79)/$AN$80 -> 0.3385365854 | BO13: =(AO13-$AO$79)/$AO$80 -> 0.204954955 | BP13: =(AP13-$AP$79)/$AP$80 -> 0.4525122981 | BQ13: =(AQ13-$AQ$79)/$AQ$80 -> 0 | BR13: =(AR13-$AR$79)/$AR$80 -> 1 | BS13: =(AS13-$AS$79)/$AS$80 -> 0.0008041748789 | BT13: =((AT13-$AT$79)/$AT$80)*-1 -> 0.5096660131 | BU13: =((AU13-$AU$79)/$AU$80)*-1 -> 0.3806035235 | BV13: =((AV13-$AV$79)/$AV$80)*-1 -> 0.5771763624 | BW13: =(AW13-$AW$79)/$AW$80 -> 0.3553191489 | BX13: =(AX13-$AX$79)/$AX$80 -> 0 | BY13: =(AY13-$AY$79)/$AY$80 -> 0.7064763847 | BZ13: =(AZ13-$AZ$79)/$AZ$80 -> 0.10845362 | CB13: 2 | CC13: =(ABS(BC13-1))^2 -> 0.8970550652 | CD13: =(ABS(BD13-1))^2 -> 0.8295718604 | CE13: 0.3086419753 | CF13: 0.3285551336 | CG13: 0.8919753086 | CH13: 0.7346938776 | CI13: 0 | CJ13: 0.4444444444 | CK13: 0.02051874225 | CL13: 1 | CM13: 0.1636372354 | CN13: 0.4375338489 | CO13: 0.6320966237 | CP13: 0.2997427837 | CQ13: 1 | CR13: 0 | CS13: 0.9983922969 | CT13: =(ABS(BT13-1))^2 -> 0.2404274187 | CU13: 0.3836519951 | CV13: 0.1787798285 | CW13: 0.4156133997 | CX13: 1 | CY13: 0.08615611277 | CZ13: =(ABS(BZ13-1))^2 -> 0.7948549477 | DM13: RANK | DN13: site | DO13: distance scores | DP13: scaled | DQ13: decimal latitude | DR13: decimal longitude | DS13: description | DT13: Google URL | EF13: indicators | EG13: weights | EH13: weights^2
B14: 5 | C14: 25 | D14: 0.581608 | E14: 3 | F14: 10.997257 | G14: 2 | H14: 11 | I14: YES | J14: 6 | K14: 6.785157 | L14: 0 | M14: 6.10537 | N14: 372 | O14: 350 | P14: 85664 | Q14: NO | R14: YES | S14: 68.809988 | T14: 53.189004 | U14: 57.5670702 | V14: 58.99104728 | W14: 98 | X14: NO | Y14: 69.476248 | Z14: 12.893193 | AB14: 5 | AC14: 25 | AD14: 0.581608 | AE14: 3 | AF14: 10.997257 | AG14: 2 | AH14: 11 | AI14: 1 | AJ14: 6 | AK14: 6.785157 | AL14: 0 | AM14: 6.10537 | AN14: 372 | AO14: 350 | AP14: 85664 | AQ14: 0 | AR14: 1 | AS14: 68.809988 | AT14: 53.189004 | AU14: 57.5670702 | AV14: 58.99104728 | AW14: 98 | AX14: 0 | AY14: 69.476248 | AZ14: 12.893193 | BB14: 5 | BC14: =(AC14-$AC$79)/$AC$80 -> 0.03776435045 | BD14: =(AD14-$AD$79)/$AD$80 -> 0.106297893 | BE14: =((AE14-$AE$79)/$AE$80)*-1 -> 0.6666666667 | BF14: =((AF14-$AF$79)/$AF$80)*-1 -> 0.3813105479 | BG14: =(AG14-$AG$79)/$AG$80 -> 0.1111111111 | BH14: =(AH14-$AH$79)/$AH$80 -> 0.2619047619 | BI14: =(AI14-$AI$79)/$AI$80 -> 1 | BJ14: =(AJ14-$AJ$79)/$AJ$80 -> 0.8333333333 | BK14: =((AK14-$AK$79)/$AK$80)*-1 -> 0.89811908 | BL14: =(AL14-$AL$79)/$AL$80 -> 0 | BM14: =((AM14-$AM$79)/$AM$80)*-1 -> 0.7200350471 | BN14: =(AN14-$AN$79)/$AN$80 -> 0.3551219512 | BO14: =(AO14-$AO$79)/$AO$80 -> 0.2597597598 | BP14: =(AP14-$AP$79)/$AP$80 -> 0.5178975835 | BQ14: =(AQ14-$AQ$79)/$AQ$80 -> 0 | BR14: =(AR14-$AR$79)/$AR$80 -> 1 | BS14: =(AS14-$AS$79)/$AS$80 -> 0.001647015838 | BT14: =((AT14-$AT$79)/$AT$80)*-1 -> 0.5065998198 | BU14: =((AU14-$AU$79)/$AU$80)*-1 -> 0.4360713803 | BV14: =((AV14-$AV$79)/$AV$80)*-1 -> 0.6214070781 | BW14: =(AW14-$AW$79)/$AW$80 -> 0.2085106383 | BX14: =(AX14-$AX$79)/$AX$80 -> 0 | BY14: =(AY14-$AY$79)/$AY$80 -> 0.8006004505 | BZ14: =(AZ14-$AZ$79)/$AZ$80 -> 0.12893193 | CB14: 5 | CC14: =(ABS(BC14-1))^2 -> 0.9258974453 | CD14: 0.798703456 | CE14: 0.1111111111 | CF14: 0.3827766382 | CG14: 0.7901234568 | CH14: 0.5447845805 | CI14: 0 | CJ14: 0.02777777778 | CK14: 0.01037972186 | CL14: 1 | CM14: 0.07838037486 | CN14: 0.4158676978 | CO14: 0.5479556133 | CP14: 0.23242274 | CQ14: 1 | CR14: 0 | CS14: 0.996708681 | CT14: 0.2434437378 | CU14: 0.3180154881 | CV14: 0.1433326005 | CW14: 0.6264554097 | CX14: 1 | CY14: 0.03976018034 | CZ14: 0.7587595826 | DK14: Ranks | DM14: =RANK(DP14,$DP$14:$DP$78) -> 26 | DN14: 2 | DO14: =MMULT('Data & Calc'!CC13:CZ77,'Data & Calc'!EH14:EH37) -> 0.05124897282 | DP14: =((DO14-$DO$80)/ABS($DO$79-$DO$80))*-1 -> 0.4795621617 | DQ14: 41.877728 | DR14: -71.507908 | DS14: Appears to be partially developed with residential homes, adjacent (West) of Old County Road, East of forested land | DT14: https://www.google.com/maps/place/41%C2%B052'39.8%22N+71%C2%B030'28.5%22W/@41.877728,-71.5100967,757m/data=!3m2!1e3!4b1!4m5!3m4!1s0x0:0x0!8m2!3d41.877728!4d-71.507908 | EF14: FR1 | EG14: =[0]!View_Flood/4*0.01 -> 0 | EH14: =EG14^2 -> 0 | EJ14: Flood risk
B15: 8 | C15: 26 | D15: 0.197277 | E15: 4 | F15: 9.363649 | G15: 2 | H15: 5 | I15: YES | J15: 4 | K15: 7.906153 | L15: 0 | M15: 6.665111 | N15: 438 | O15: 423 | P15: 88172 | Q15: NO | R15: YES | S15: 1.658104 | T15: 55.725376 | U15: 54.164425 | V15: 59.01047135 | W15: 132 | X15: NO | Y15: 62.116489 | Z15: 21.882889 | AB15: 8 | AC15: 26 | AD15: 0.197277 | AE15: 4 | AF15: 9.363649 | AG15: 2 | AH15: 5 | AI15: 1 | AJ15: 4 | AK15: 7.906153 | AL15: 0 | AM15: 6.665111 | AN15: 438 | AO15: 423 | AP15: 88172 | AQ15: 0 | AR15: 1 | AS15: 1.658104 | AT15: 55.725376 | AU15: 54.164425 | AV15: 59.01047135 | AW15: 132 | AX15: 0 | AY15: 62.116489 | AZ15: 21.882889 | BB15: 8 | BC15: 0.03927492447 | BD15: 0.02340319249 | BE15: 0.5555555556 | BF15: 0.5265990169 | BG15: 0.1111111111 | BH15: 0.119047619 | BI15: 1 | BJ15: 0.5 | BK15: 0.8812870297 | BL15: 0 | BM15: 0.6932705741 | BN15: 0.4195121951 | BO15: 0.3145645646 | BP15: 0.5387027466 | BQ15: 0 | BR15: 1 | BS15: 3.703379859e-05 | BT15: 0.4728614114 | BU15: 0.4798573789 | BV15: 0.6203252135 | BW15: 0.2808510638 | BX15: 0 | BY15: 0.7157912309 | BZ15: 0.21882889 | CB15: 8 | CC15: 0.9229926707 | CD15: 0.9537413244 | CE15: 0.1975308642 | CF15: 0.2241084908 | CG15: 0.7901234568 | CH15: 0.7760770975 | CI15: 0 | CJ15: 0.25 | CK15: 0.01409276932 | CL15: 1 | CM15: 0.0940829407 | CN15: 0.3369660916 | CO15: 0.4698217362 | CP15: 0.212795156 | CQ15: 1 | CR15: 0 | CS15: 0.9999259338 | CT15: 0.2778750916 | CU15: 0.2705483463 | CV15: 0.1441529435 | CW15: 0.5171751924 | CX15: 1 | CY15: 0.08077462441 | CZ15: 0.6102283031 | DM15: =RANK(DP15,$DP$14:$DP$78) -> 28 | DN15: 5 | DO15: 0.05431616656 | DP15: 0.4448785453 | DQ15: 41.868561 | DR15: -71.506264 | DS15: Filled/cleared land adjacent (N) to commercial businesses & Route 44, east of intersection with I-295 | DT15: https://www.google.com/maps/place/41%C2%B052'06.8%22N+71%C2%B030'22.6%22W/@41.868561,-71.506264,757m/data=!3m1!1e3!4m5!3m4!1s0x0:0x0!8m2!3d41.868561!4d-71.506264 | EF15: FR2 | EG15: =[0]!View_Flood/4*0.01 -> 0 | EH15: 0
B16: 22 | C16: 10 | D16: 4.544735 | E16: 2 | F16: 7.352965 | G16: 1 | H16: 6 | I16: YES | J16: 4 | K16: 34.227523 | L16: 2 | M16: 11.887082 | N16: 455 | O16: 931 | P16: 118274 | Q16: YES | R16: YES | S16: 22.585437 | T16: 23.73607 | U16: 26.7100786 | V16: 55.74365812 | W16: 127 | X16: YES | Y16: 81.92556 | Z16: 15.984814 | AB16: 22 | AC16: 10 | AD16: 4.544735 | AE16: 2 | AF16: 7.352965 | AG16: 1 | AH16: 6 | AI16: 1 | AJ16: 4 | AK16: 34.227523 | AL16: 2 | AM16: 11.887082 | AN16: 455 | AO16: 931 | AP16: 118274 | AQ16: 1 | AR16: 1 | AS16: 22.585437 | AT16: 23.73607 | AU16: 26.7100786 | AV16: 55.74365812 | AW16: 127 | AX16: 1 | AY16: 81.92556 | AZ16: 15.984814 | BB16: 22 | BC16: 0.01510574018 | BD16: 0.9610877116 | BE16: 0.7777777778 | BF16: 0.7054235575 | BG16: 0.05555555556 | BH16: 0.1428571429 | BI16: 1 | BJ16: 0.5 | BK16: 0.4860647244 | BL16: 0.6666666667 | BM16: 0.4435777668 | BN16: 0.436097561 | BO16: 0.6959459459 | BP16: 0.7884144773 | BQ16: 1 | BR16: 1 | BS16: 0.0005387714753 | BT16: 0.8983779646 | BU16: 0.8331460419 | BV16: 0.8022772809 | BW16: 0.270212766 | BX16: 1 | BY16: 0.9440584679 | BZ16: 0.15984814 | CB16: 22 | CC16: 0.970016703 | CD16: 0.001514166188 | CE16: 0.04938271605 | CF16: 0.08677528049 | CG16: 0.8919753086 | CH16: 0.7346938776 | CI16: 0 | CJ16: 0.25 | CK16: 0.2641294675 | CL16: 0.1111111111 | CM16: 0.3096057016 | CN16: 0.3179859607 | CO16: 0.09244886779 | CP16: 0.0447684334 | CQ16: 0 | CR16: 0 | CS16: 0.9989227473 | CT16: 0.01032703808 | CU16: 0.02784024333 | CV16: 0.03909427366 | CW16: 0.532589407 | CX16: 0 | CY16: 0.003129455012 | CZ16: 0.7058551479 | DM16: =RANK(DP16,$DP$14:$DP$78) -> 27 | DN16: 8 | DO16: 0.05144234496 | DP16: 0.4773755228 | DQ16: 41.877136 | DR16: -71.500056 | DS16: Small forested site adjacent to parking lot, adjacent (East) of Woony River, across State Route 104 (Waterman Ave) from commercial businesses, surrounded by commercial development | DT16: https://www.google.com/maps/place/41%C2%B052'37.7%22N+71%C2%B030'00.2%22W/@41.877136,-71.500056,757m/data=!3m1!1e3!4m5!3m4!1s0x0:0x0!8m2!3d41.877136!4d-71.500056 | DV16: Named ranges: all cells in BenefitWeights | EF16: FR3 | EG16: =[0]!View_Flood/4*0.01 -> 0 | EH16: 0 | EJ16: Scenic views
B17: 24 | C17: 21 | D17: 0.430162 | E17: 2 | F17: 7.566804 | G17: 8 | H17: 13 | I17: YES | J17: 3 | K17: 13.134384 | L17: 0 | M17: 13.473217 | N17: 351 | O17: 560 | P17: 115453 | Q17: YES | R17: YES | S17: 1.13744 | T17: 28.917483 | U17: 30.4703988 | V17: 55.892166 | W17: 113 | X17: YES | Y17: 83.97653 | Z17: 30.989695 | AB17: 24 | AC17: 21 | AD17: 0.430162 | AE17: 2 | AF17: 7.566804 | AG17: 8 | AH17: 13 | AI17: 1 | AJ17: 3 | AK17: 13.134384 | AL17: 0 | AM17: 13.473217 | AN17: 351 | AO17: 560 | AP17: 115453 | AQ17: 1 | AR17: 1 | AS17: 1.13744 | AT17: 28.917483 | AU17: 30.4703988 | AV17: 55.892166 | AW17: 113 | AX17: 1 | AY17: 83.97653 | AZ17: 30.989695 | BB17: 24 | BC17: 0.03172205438 | BD17: 0.07363315659 | BE17: 0.7777777778 | BF17: 0.6864053224 | BG17: 0.4444444444 | BH17: 0.3095238095 | BI17: 1 | BJ17: 0.3333333333 | BK17: 0.8027837638 | BL17: 0 | BM17: 0.3677354267 | BN17: 0.3346341463 | BO17: 0.4174174174 | BP17: 0.7650128166 | BQ17: 1 | BR17: 1 | BS17: 2.455075808e-05 | BT17: 0.8294556504 | BU17: 0.7847574015 | BV17: 0.7940058206 | BW17: 0.2404255319 | BX17: 1 | BY17: 0.9676925523 | BZ17: 0.30989695 | CB17: 24 | CC17: 0.93756218 | CD17: 0.8581555286 | CE17: 0.04938271605 | CF17: 0.0983416218 | CG17: 0.3086419753 | CH17: 0.4767573696 | CI17: 0 | CJ17: 0.4444444444 | CK17: 0.03889424383 | CL17: 1 | CM17: 0.3997584907 | CN17: 0.4427117192 | CO17: 0.3394024655 | CP17: 0.05521897637 | CQ17: 0 | CR17: 0 | CS17: 0.9999508991 | CT17: 0.02908537519 | CU17: 0.04632937621 | CV17: 0.04243360197 | CW17: 0.5769533726 | CX17: 0 | CY17: 0.001043771179 | CZ17: 0.4762422196 | DM17: 12 | DN17: 22 | DO17: 0.01882072316 | DP17: 0.846258584 | DQ17: 41.847283 | DR17: -71.483756 | DS17: Partially forested/partially clared/filled with commercial property, west of Woony River, East of Railroad Avenue | DT17: https://www.google.com/maps/place/41%C2%B050'50.2%22N+71%C2%B029'01.5%22W/@41.847283,-71.4859447,757m/data=!3m2!1e3!4b1!4m5!3m4!1s0x0:0x0!8m2!3d41.847283!4d-71.483756 | DV17: BenefitPoints | EF17: FR4 | EG17: =[0]!View_Flood/4*0.01 -> 0 | EH17: 0
B18: 25 | C18: 33 | D18: 0.40114 | E18: 3 | F18: 8.837201 | G18: 0 | H18: 1 | I18: NO | J18: 3 | K18: 6.411496 | L18: 0 | M18: 5.429413 | N18: 102 | O18: 497 | P18: 105366 | Q18: NO | R18: NO | S18: 752.771845 | T18: 43.133608 | U18: 42.516712 | V18: 57.25073863 | W18: 12 | X18: NO | Y18: 81.157176 | Z18: 4.221183 | AB18: 25 | AC18: 33 | AD18: 0.40114 | AE18: 3 | AF18: 8.837201 | AG18: 0 | AH18: 1 | AI18: 0 | AJ18: 3 | AK18: 6.411496 | AL18: 0 | AM18: 5.429413 | AN18: 102 | AO18: 497 | AP18: 105366 | AQ18: 0 | AR18: 0 | AS18: 752.771845 | AT18: 43.133608 | AU18: 42.516712 | AV18: 57.25073863 | AW18: 12 | AX18: 0 | AY18: 81.157176 | AZ18: 4.221183 | BB18: 25 | BC18: 0.0498489426 | BD18: 0.06737352622 | BE18: 0.6666666667 | BF18: 0.5734198111 | BG18: 0 | BH18: 0.02380952381 | BI18: 0 | BJ18: 0.3333333333 | BK18: 0.9037296984 | BL18: 0 | BM18: 0.752356483 | BN18: 0.09170731707 | BO18: 0.3701201201 | BP18: 0.6813359105 | BQ18: 0 | BR18: 0 | BS18: 0.01804516046 | BT18: 0.6403550644 | BU18: 0.629742752 | BV18: 0.7183372466 | BW18: 0.02553191489 | BX18: 0 | BY18: 0.9352040955 | BZ18: 0.04221183 | CB18: 25 | CC18: 0.9027870319 | CD18: 0.8697921396 | CE18: 0.1111111111 | CF18: 0.1819706576 | CG18: 1 | CH18: 0.9529478458 | CI18: 1 | CJ18: 0.4444444444 | CK18: 0.00926797098 | CL18: 1 | CM18: 0.06132731152 | CN18: 0.8249955979 | CO18: 0.3967486631 | CP18: 0.101546802 | CQ18: 1 | CR18: 1 | CS18: 0.9642353069 | CT18: 0.1293444797 | CU18: 0.1370904297 | CV18: 0.07933390667 | CW18: 0.9495880489 | CX18: 1 | CY18: 0.004198509245 | CZ18: 0.9173581786 | DM18: 16 | DN18: 24 | DO18: 0.02168136599 | DP18: 0.8139106312 | DQ18: 41.845911 | DR18: -71.487158 | DS18: Forested land adjacent to swamp & West of George Waterman Road | DT18: https://www.google.com/maps/place/41%C2%B050'45.3%22N+71%C2%B029'13.8%22W/@41.845911,-71.4893467,757m/data=!3m2!1e3!4b1!4m5!3m4!1s0x0:0x0!8m2!3d41.845911!4d-71.487158 | EF18: SV1 | EG18: =[0]!View_Scenic/5*0.01 -> 0 | EH18: 0 | EJ18: Education
B19: 36 | C19: 36 | D19: 0.337655 | E19: 8 | F19: 13.095371 | G19: 0 | H19: 1 | I19: YES | J19: 6 | K19: 41.604671 | L19: 0 | M19: 15.644248 | N19: 182 | O19: 242 | P19: 47297 | Q19: NO | R19: NO | S19: 111.194959 | T19: 53.196022 | U19: 54.0801514 | V19: 62.5704935 | W19: 41 | X19: NO | Y19: 43.25904 | Z19: 38.119049 | AB19: 36 | AC19: 36 | AD19: 0.337655 | AE19: 8 | AF19: 13.095371 | AG19: 0 | AH19: 1 | AI19: 1 | AJ19: 6 | AK19: 41.604671 | AL19: 0 | AM19: 15.644248 | AN19: 182 | AO19: 242 | AP19: 47297 | AQ19: 0 | AR19: 0 | AS19: 111.194959 | AT19: 53.196022 | AU19: 54.0801514 | AV19: 62.5704935 | AW19: 41 | AX19: 0 | AY19: 43.25904 | AZ19: 38.119049 | BB19: 36 | BC19: 0.05438066465 | BD19: 0.0536807196 | BE19: 0.1111111111 | BF19: 0.1947102307 | BG19: 0 | BH19: 0.02380952381 | BI19: 1 | BJ19: 0.8333333333 | BK19: 0.3752949035 | BL19: 0 | BM19: 0.2639258067 | BN19: 0.1697560976 | BO19: 0.1786786787 | BP19: 0.1996233834 | BQ19: 0 | BR19: 0 | BS19: 0.002663205377 | BT19: 0.5065064675 | BU19: 0.4809418304 | BV19: 0.4220422554 | BW19: 0.08723404255 | BX19: 0 | BY19: 0.4984898855 | BZ19: 0.38119049 | CB19: 36 | CC19: 0.8941959274 | CD19: 0.8955201805 | CE19: 0.7901234568 | CF19: 0.6484916125 | CG19: 1 | CH19: 0.9529478458 | CI19: 0 | CJ19: 0.02777777778 | CK19: 0.3902564576 | CL19: 1 | CM19: 0.5418052181 | CN19: 0.6893049375 | CO19: 0.6745687129 | CP19: 0.6406027284 | CQ19: 1 | CR19: 1 | CS19: 0.9946806819 | CT19: 0.2435358666 | CU19: 0.2694213834 | CV19: 0.3340351546 | CW19: 0.8331416931 | CX19: 1 | CY19: 0.2515123949 | CZ19: 0.3829252097 | DM19: 34 | DN19: 25 | DO19: 0.06450013924 | DP19: 0.3297188809 | DQ19: 41.853997 | DR19: -71.497286 | DS19: Forested land west of Highland Memorial Park Cemetary & east of tributary | DT19: https://www.google.com/maps/place/41%C2%B051'14.4%22N+71%C2%B029'50.2%22W/@41.853997,-71.4994747,757m/data=!3m2!1e3!4b1!4m5!3m4!1s0x0:0x0!8m2!3d41.853997!4d-71.497286 | DX19: Scenario 1 | DY19: Scenario 2 | DZ19: Scenario 3 | EA19: Scenario 4 | EB19: Scenario 5 | EC19: Scenario 6 | EF19: SV2 | EG19: =[0]!View_Scenic/5*0.01 -> 0 | EH19: 0
B20: 41 | C20: 21 | D20: 0.320475 | E20: 3 | F20: 11.364548 | G20: 0 | H20: 3 | I20: YES | J20: 1 | K20: 2.329745 | L20: 0 | M20: 5.079963 | N20: 47 | O20: 47 | P20: 63710 | Q20: NO | R20: YES | S20: 282.095677 | T20: 62.894024 | U20: 63.0037934 | V20: 60.93903419 | W20: 25 | X20: NO | Y20: 58.984823 | Z20: 29.656717 | AB20: 41 | AC20: 21 | AD20: 0.320475 | AE20: 3 | AF20: 11.364548 | AG20: 0 | AH20: 3 | AI20: 1 | AJ20: 1 | AK20: 2.329745 | AL20: 0 | AM20: 5.079963 | AN20: 47 | AO20: 47 | AP20: 63710 | AQ20: 0 | AR20: 1 | AS20: 282.095677 | AT20: 62.894024 | AU20: 63.0037934 | AV20: 60.93903419 | AW20: 25 | AX20: 0 | AY20: 58.984823 | AZ20: 29.656717 | BB20: 41 | BC20: 0.03172205438 | BD20: 0.04997523928 | BE20: 0.6666666667 | BF20: 0.3486447265 | BG20: 0 | BH20: 0.07142857143 | BI20: 1 | BJ20: 0 | BK20: 0.965018265 | BL20: 0 | BM20: 0.7690657201 | BN20: 0.03804878049 | BO20: 0.03228228228 | BP20: 0.3357777464 | BQ20: 0 | BR20: 1 | BS20: 0.006760589846 | BT20: 0.3775052199 | BU20: 0.3661104115 | BV20: 0.51290983 | BW20: 0.05319148936 | BX20: 0 | BY20: 0.6797038877 | BZ20: 0.29656717 | CB20: 41 | CC20: 0.93756218 | CD20: 0.902547046 | CE20: 0.1111111111 | CF20: 0.4242636923 | CG20: 1 | CH20: 0.862244898 | CI20: 0 | CJ20: 1 | CK20: 0.001223721782 | CL20: 1 | CM20: 0.05333064165 | CN20: 0.9253501487 | CO20: 0.9364775812 | CP20: 0.4411912021 | CQ20: 1 | CR20: 0 | CS20: 0.9865245259 | CT20: 0.3874997513 | CU20: 0.4018160104 | CV20: 0.2372568337 | CW20: 0.8964463558 | CX20: 1 | CY20: 0.1025895996 | CZ20: 0.4948177463 | DM20: 41 | DN20: 36 | DO20: 0.06974369856 | DP20: 0.270425072 | DQ20: 41.878192 | DR20: -71.536619 | DS20: Forested land adjacent (W) to swamp, north of Walter Cary Road and commercial businesses | DT20: https://www.google.com/maps/place/41%C2%B052'41.5%22N+71%C2%B032'11.8%22W/@41.878192,-71.5388077,757m/data=!3m2!1e3!4b1!4m5!3m4!1s0x0:0x0!8m2!3d41.878192!4d-71.536619 | DW20: Flood risk | DX20: 15 | DY20: 85 | EF20: SV3 | EG20: =[0]!View_Scenic/5*0.01 -> 0 | EH20: 0 | EJ20: Recreation | EK20: 60 | EO20: rank | EP20: scaled distance | EQ20: site | ER20: decimal latitude | ES20: decimal longitude | ET20: description | EU20: URL
B21: 43 | C21: 69 | D21: 2.082357 | E21: 2 | F21: 8.384887 | G21: 0 | H21: 0 | I21: NO | J21: 4 | K21: 6.32612 | L21: 0 | M21: 6.062549 | N21: 109 | O21: 250 | P21: 109190 | Q21: NO | R21: NO | S21: 13.098145 | T21: 59.325008 | U21: 42.7387964 | V21: 56.94834944 | W21: 22 | X21: NO | Y21: 63.284426 | Z21: 14.97417 | AB21: 43 | AC21: 69 | AD21: 2.082357 | AE21: 2 | AF21: 8.384887 | AG21: 0 | AH21: 0 | AI21: 0 | AJ21: 4 | AK21: 6.32612 | AL21: 0 | AM21: 6.062549 | AN21: 109 | AO21: 250 | AP21: 109190 | AQ21: 0 | AR21: 0 | AS21: 13.098145 | AT21: 59.325008 | AU21: 42.7387964 | AV21: 56.94834944 | AW21: 22 | AX21: 0 | AY21: 63.284426 | AZ21: 14.97417 | BB21: 43 | BC21: 0.1042296073 | BD21: 0.4299879906 | BE21: 0.7777777778 | BF21: 0.6136473373 | BG21: 0 | BH21: 0 | BI21: 0 | BJ21: 0.5 | BK21: 0.9050116415 | BL21: 0 | BM21: 0.7220825682 | BN21: 0.09853658537 | BO21: 0.1846846847 | BP21: 0.7130579774 | BQ21: 0 | BR21: 0 | BS21: 0.0003113114427 | BT21: 0.4249796911 | BU21: 0.6268849203 | BV21: 0.7351794516 | BW21: 0.04680851064 | BX21: 0 | BY21: 0.7292498001 | BZ21: 0.1497417 | CB21: 43 | CC21: 0.8024045965 | CD21: 0.3249136908 | CE21: 0.04938271605 | CF21: 0.14926838 | CG21: 1 | CH21: 1 | CI21: 1 | CJ21: 0.25 | CK21: 0.009022788254 | CL21: 1 | CM21: 0.07723809892 | CN21: 0.8126362879 | CO21: 0.6647390634 | CP21: 0.08233572434 | CQ21: 1 | CR21: 1 | CS21: 0.999377474 | CT21: 0.3306483557 | CU21: 0.1392148627 | CV21: 0.07012992288 | CW21: 0.9085740154 | CX21: 1 | CY21: 0.07330567075 | CZ21: 0.7229391767 | DM21: 39 | DN21: 41 | DO21: 0.06732312146 | DP21: 0.2977967917 | DQ21: 41.877767 | DR21: -71.519983 | DS21: Partially forested/developed land North/West of Target/Staples businesses | DT21: https://www.google.com/maps/place/41%C2%B052'40.0%22N+71%C2%B031'11.9%22W/@41.877767,-71.5221717,757m/data=!3m2!1e3!4b1!4m5!3m4!1s0x0:0x0!8m2!3d41.877767!4d-71.519983 | DW21: Scenic views | DX21: 14 | EA21: 10 | EF21: SV4 | EG21: =[0]!View_Scenic/5*0.01 -> 0 | EH21: 0 | EN21: =1-(1-EP21)*3 -> 1 | EO21: 1 | EP21: =VLOOKUP($EO21,Ranks,4,FALSE) -> 1 | EQ21: =VLOOKUP($EO21,Ranks,2,FALSE) -> 455 | ER21: =VLOOKUP($EO21,Ranks,5,FALSE) -> 41.821889 | ES21: =VLOOKUP($EO21,Ranks,6,FALSE) -> -71.459325 | ET21: =VLOOKUP($EO21,Ranks,7,FALSE) -> Partially cleared/grassed land adjacent (S) of Woony River, adjacent (N) of small stream, adjacent (N/E) of residential neighborhood (Glenbridge Avenue / State Route 6) | EU21: =VLOOKUP($EO21,Ranks,8,FALSE) -> https://www.google.com/maps/place/41%C2%B049'18.8%22N+71%C2%B027'33.6%22W/@41.821889,-71.4615137,757m/data=!3m2!1e3!4b1!4m5!3m4!1s0x0:0x0!8m2!3d41.821889!4d-71.459325
B22: 47 | C22: 40 | D22: 0.598056 | E22: 3 | F22: 6.857579 | G22: 12 | H22: 26 | I22: YES | J22: 3 | K22: 0 | L22: 1 | M22: 1.874563 | N22: 981 | O22: 1057 | P22: 121481 | Q22: NO | R22: YES | S22: 1.969552 | T22: 16.199853 | U22: 20.1393204 | V22: 55.63240662 | W22: 363 | X22: NO | Y22: 71.692 | Z22: 0 | AB22: 47 | AC22: 40 | AD22: 0.598056 | AE22: 3 | AF22: 6.857579 | AG22: 12 | AH22: 26 | AI22: 1 | AJ22: 3 | AK22: 0 | AL22: 1 | AM22: 1.874563 | AN22: 981 | AO22: 1057 | AP22: 121481 | AQ22: 0 | AR22: 1 | AS22: 1.969552 | AT22: 16.199853 | AU22: 20.1393204 | AV22: 55.63240662 | AW22: 363 | AX22: 0 | AY22: 71.692 | AZ22: 0 | BB22: 47 | BC22: 0.06042296073 | BD22: 0.1098454914 | BE22: 0.6666666667 | BF22: 0.7494817854 | BG22: 0.6666666667 | BH22: 0.619047619 | BI22: 1 | BJ22: 0.3333333333 | BK22: 1 | BL22: 0.3333333333 | BM22: 0.9223345384 | BN22: 0.9492682927 | BO22: 0.7905405405 | BP22: 0.8150182087 | BQ22: 0 | BR22: 1 | BS22: 4.450083684e-05 | BT22: 0.9986234992 | BU22: 0.9177000264 | BV22: 0.8084736685 | BW22: 0.7723404255 | BX22: 0 | BY22: 0.8261333787 | BZ22: 0 | CB22: 47 | CC22: 0.8828050127 | CD22: 0.7923750492 | CE22: 0.1111111111 | CF22: 0.06275937587 | CG22: 0.1111111111 | CH22: 0.1451247166 | CI22: 0 | CJ22: 0.4444444444 | CK22: 0 | CL22: 0.4444444444 | CM22: 0.006031923927 | CN22: 0.002573706127 | CO22: 0.04387326516 | CP22: 0.03421826313 | CQ22: 1 | CR22: 0 | CS22: 0.9999110003 | CT22: 1.894754337e-06 | CU22: 0.006773285655 | CV22: 0.03668233566 | CW22: 0.05182888185 | CX22: 1 | CY22: 0.03022960201 | CZ22: 1 | DM22: 36 | DN22: 43 | DO22: 0.06633855735 | DP22: 0.3089301751 | DQ22: 41.872814 | DR22: -71.479114 | DS22: Forested land adjacent (S) to wetland, East of forest, North of K&R Auto Salvage (Ridge Road) | DT22: https://www.google.com/maps/place/41%C2%B052'22.1%22N+71%C2%B028'44.8%22W/@41.872814,-71.4813027,757m/data=!3m2!1e3!4b1!4m5!3m4!1s0x0:0x0!8m2!3d41.872814!4d-71.479114 | DW22: Education | DX22: 14 | EA22: 10 | EF22: SV5 | EG22: =[0]!View_Scenic/5*0.01 -> 0 | EH22: 0 | EJ22: Bird watching | EK22: 30 | EN22: =1-(1-EP22)*3 -> 0.9913921121 | EO22: 2 | EP22: 0.997130704 | EQ22: 425 | ER22: 41.832478 | ES22: -71.468536 | ET22: Forested land adjacent (N) of Woony River, adjacent S/W of Stop & Shop complex (Manton Avenue) | EU22: https://www.google.com/maps/place/41%C2%B049'56.9%22N+71%C2%B028'06.7%22W/@41.832478,-71.4707247,757m/data=!3m2!1e3!4b1!4m5!3m4!1s0x0:0x0!8m2!3d41.832478!4d-71.468536
B23: 53 | C23: 43 | D23: 1.912593 | E23: 3 | F23: 6.880975 | G23: 2 | H23: 5 | I23: YES | J23: 2 | K23: 22.118952 | L23: 0 | M23: 12.118286 | N23: 714 | O23: 704 | P23: 122869 | Q23: YES | R23: YES | S23: 1.912562 | T23: 24.480839 | U23: 27.820343 | V23: 55.28245321 | W23: 214 | X23: YES | Y23: 83.470057 | Z23: 38.978088 | AB23: 53 | AC23: 43 | AD23: 1.912593 | AE23: 3 | AF23: 6.880975 | AG23: 2 | AH23: 5 | AI23: 1 | AJ23: 2 | AK23: 22.118952 | AL23: 0 | AM23: 12.118286 | AN23: 714 | AO23: 704 | AP23: 122869 | AQ23: 1 | AR23: 1 | AS23: 1.912562 | AT23: 24.480839 | AU23: 27.820343 | AV23: 55.28245321 | AW23: 214 | AX23: 1 | AY23: 83.470057 | AZ23: 38.978088 | BB23: 53 | BC23: 0.06495468278 | BD23: 0.3933723236 | BE23: 0.6666666667 | BF23: 0.7474010114 | BG23: 0.1111111111 | BH23: 0.119047619 | BI23: 1 | BJ23: 0.1666666667 | BK23: 0.6678781081 | BL23: 0 | BM23: 0.4325225588 | BN23: 0.6887804878 | BO23: 0.5255255255 | BP23: 0.8265323899 | BQ23: 1 | BR23: 1 | BS23: 4.313448833e-05 | BT23: 0.8884711683 | BU23: 0.8188589116 | BV23: 0.8279650631 | BW23: 0.4553191489 | BX23: 1 | BY23: 0.9618562769 | BZ23: 0.38978088 | CB23: 53 | CC23: 0.8743097453 | CD23: 0.3679971378 | CE23: 0.1111111111 | CF23: 0.06380624905 | CG23: 0.7901234568 | CH23: 0.7760770975 | CI23: 0 | CJ23: 0.6944444444 | CK23: 0.1103049511 | CL23: 1 | CM23: 0.3220306463 | CN23: 0.09685758477 | CO23: 0.2251260269 | CP23: 0.03009101177 | CQ23: 0 | CR23: 0 | CS23: 0.9999137329 | CT23: 0.01243868029 | CU23: 0.03281209392 | CV23: 0.02959601953 | CW23: 0.2966772295 | CX23: 0 | CY23: 0.001454943608 | CZ23: 0.3723673744 | DM23: 18 | DN23: 47 | DO23: 0.03340859587 | DP23: 0.6812999203 | DQ23: 41.856958 | DR23: -71.474672 | DS23: Partially forested/grassed land east of subdivision cul-de-sac (S. Locust Avenue) | DT23: https://www.google.com/maps/place/41%C2%B051'25.1%22N+71%C2%B028'28.8%22W/@41.856958,-71.4768607,757m/data=!3m2!1e3!4b1!4m5!3m4!1s0x0:0x0!8m2!3d41.856958!4d-71.474672 | DW23: Recreation | DX23: 14 | DZ23: 60 | EA23: 80 | EF23: E1 | EG23: =[0]!View_Education/2*0.01 -> 0 | EH23: 0 | EN23: 0.9745393467 | EO23: 3 | EP23: 0.9915131156 | EQ23: 256 | ER23: 41.832156 | ES23: -71.46495 | ET23: Grassed land North of Woony River, adjacent (E) of Stop & Shop complex (Manton Avenue) | EU23: https://www.google.com/maps/place/41%C2%B049'55.8%22N+71%C2%B027'53.8%22W/@41.832156,-71.4671387,757m/data=!3m2!1e3!4b1!4m5!3m4!1s0x0:0x0!8m2!3d41.832156!4d-71.46495
B24: 55 | C24: 326 | D24: 0.113437 | E24: 4 | F24: 6.66122 | G24: 7 | H24: 24 | I24: YES | J24: 1 | K24: 0 | L24: 0 | M24: 7.362442 | N24: 687 | O24: 810 | P24: 122783 | Q24: YES | R24: YES | S24: 0.113435 | T24: 22.847558 | U24: 31.1967842 | V24: 54.91159037 | W24: 327 | X24: YES | Y24: 84.212481 | Z24: 18.24578 | AB24: 55 | AC24: 326 | AD24: 0.113437 | AE24: 4 | AF24: 6.66122 | AG24: 7 | AH24: 24 | AI24: 1 | AJ24: 1 | AK24: 0 | AL24: 0 | AM24: 7.362442 | AN24: 687 | AO24: 810 | AP24: 122783 | AQ24: 1 | AR24: 1 | AS24: 0.113435 | AT24: 22.847558 | AU24: 31.1967842 | AV24: 54.91159037 | AW24: 327 | AX24: 1 | AY24: 84.212481 | AZ24: 18.24578 | BB24: 55 | BC24: 0.4924471299 | BD24: 0.00532010346 | BE24: 0.5555555556 | BF24: 0.7669453987 | BG24: 0.3888888889 | BH24: 0.5714285714 | BI24: 1 | BJ24: 0 | BK24: 1 | BL24: 0 | BM24: 0.659927123 | BN24: 0.6624390244 | BO24: 0.6051051051 | BP24: 0.8258189752 | BQ24: 1 | BR24: 1 | BS24: 0 | BT24: 0.9101968069 | BU24: 0.7754101119 | BV24: 0.8486210527 | BW24: 0.6957446809 | BX24: 1 | BY24: 0.9704115027 | BZ24: 0.1824578 | CB24: 55 | CC24: 0.2576099159 | CD24: 0.9893880966 | CE24: 0.1975308642 | CF24: 0.05431444718 | CG24: 0.3734567901 | CH24: 0.1836734694 | CI24: 0 | CJ24: 1 | CK24: 0 | CL24: 1 | CM24: 0.1156495617 | CN24: 0.1139474123 | CO24: 0.155941978 | CP24: 0.03033902941 | CQ24: 0 | CR24: 0 | CS24: 1 | CT24: 0.008064613484 | CU24: 0.05044061784 | CV24: 0.02291558568 | CW24: 0.09257129923 | CX24: 0 | CY24: 0.0008754791702 | CZ24: 0.6683752488 | DM24: 10 | DN24: 53 | DO24: 0.01303127666 | DP24: 0.9117252479 | DQ24: 41.843097 | DR24: -71.480656 | DS24: Cleared/filled land on commercial property (Armento Street / Sonnino Street) | DT24: https://www.google.com/maps/place/41%C2%B050'35.1%22N+71%C2%B028'50.4%22W/@41.843097,-71.4828447,757m/data=!3m2!1e3!4b1!4m5!3m4!1s0x0:0x0!8m2!3d41.843097!4d-71.480656 | DW24: Bird watching | DX24: 14 | DZ24: 30 | EF24: E2 | EG24: =[0]!View_Education/2*0.01 -> 0 | EH24: 0 | EJ24: Social equity | EK24: 10 | EN24: 0.9299327003 | EO24: 4 | EP24: 0.9766442334 | EQ24: 449 | ER24: 41.838847 | ES24: -71.476567 | ET24: Forested land adjacent (East) of dam/pond on Woony River, adjacent (W) of industry (Woonasquatucket Avenue) | EU24: https://www.google.com/maps/place/41%C2%B050'19.9%22N+71%C2%B028'35.6%22W/@41.838847,-71.4787557,757m/data=!3m2!1e3!4b1!4m5!3m4!1s0x0:0x0!8m2!3d41.838847!4d-71.476567
B25: 66 | C25: 39 | D25: 0.422518 | E25: 3 | F25: 7.613263 | G25: 0 | H25: 22 | I25: YES | J25: 1 | K25: 1.976733 | L25: 1 | M25: 12.539984 | N25: 446 | O25: 476 | P25: 117364 | Q25: YES | R25: YES | S25: 4.269653 | T25: 31.579757 | U25: 29.1978224 | V25: 55.57605049 | W25: 224 | X25: NO | Y25: 86.779589 | Z25: 17.142866 | AB25: 66 | AC25: 39 | AD25: 0.422518 | AE25: 3 | AF25: 7.613263 | AG25: 0 | AH25: 22 | AI25: 1 | AJ25: 1 | AK25: 1.976733 | AL25: 1 | AM25: 12.539984 | AN25: 446 | AO25: 476 | AP25: 117364 | AQ25: 1 | AR25: 1 | AS25: 4.269653 | AT25: 31.579757 | AU25: 29.1978224 | AV25: 55.57605049 | AW25: 224 | AX25: 0 | AY25: 86.779589 | AZ25: 17.142866 | BB25: 66 | BC25: 0.05891238671 | BD25: 0.0719844551 | BE25: 0.6666666667 | BF25: 0.6822733905 | BG25: 0 | BH25: 0.5238095238 | BI25: 1 | BJ25: 0 | BK25: 0.9703188332 | BL25: 0.3333333333 | BM25: 0.4123587246 | BN25: 0.4273170732 | BO25: 0.3543543544 | BP25: 0.7808655545 | BQ25: 1 | BR25: 1 | BS25: 9.964629336e-05 | BT25: 0.794042514 | BU25: 0.8011331989 | BV25: 0.811612542 | BW25: 0.4765957447 | BX25: 0 | BY25: 0.9999932358 | BZ25: 0.17142866 | CB25: 66 | CC25: 0.8856458959 | CD25: 0.8612128516 | CE25: 0.1111111111 | CF25: 0.1009501984 | CG25: 1 | CH25: 0.2267573696 | CI25: 0 | CJ25: 1 | CK25: 0.0008809716624 | CL25: 0.4444444444 | CM25: 0.3453222686 | CN25: 0.3279657347 | CO25: 0.4168582997 | CP25: 0.0480199052 | CQ25: 0 | CR25: 0 | CS25: 0.9998007173 | CT25: 0.04241848605 | CU25: 0.03954800457 | CV25: 0.03548983432 | CW25: 0.2739520145 | CX25: 1 | CY25: 4.57546407e-11 | CZ25: 0.6865304655 | DM25: 5 | DN25: 55 | DO25: 0.008232272299 | DP25: 0.9659920599 | DQ25: 41.837361 | DR25: -71.481075 | DS25: Forested land adjacent to commercial/residential (Greenville Ave / Newman Ave) | DT25: https://www.google.com/maps/place/41%C2%B050'14.5%22N+71%C2%B028'51.9%22W/@41.837361,-71.4832637,757m/data=!3m2!1e3!4b1!4m5!3m4!1s0x0:0x0!8m2!3d41.837361!4d-71.481075 | DW25: Social equity | DX25: 15 | DY25: 15 | DZ25: 10 | EF25: R1 | EG25: =[0]!View_Recreation/9*0.01 -> 0.06666666667 | EH25: 0.004444444444 | EN25: 0.8979761797 | EO25: 5 | EP25: 0.9659920599 | EQ25: 55 | ER25: 41.837361 | ES25: -71.481075 | ET25: Forested land adjacent to commercial/residential (Greenville Ave / Newman Ave) | EU25: https://www.google.com/maps/place/41%C2%B050'14.5%22N+71%C2%B028'51.9%22W/@41.837361,-71.4832637,757m/data=!3m2!1e3!4b1!4m5!3m4!1s0x0:0x0!8m2!3d41.837361!4d-71.481075
B26: 67 | C26: 25 | D26: 0.750296 | E26: 3 | F26: 10.650129 | G26: 3 | H26: 13 | I26: YES | J26: 5 | K26: 7.747502 | L26: 0 | M26: 6.91543 | N26: 539 | O26: 306 | P26: 87868 | Q26: YES | R26: YES | S26: 68.615217 | T26: 51.053624 | U26: 55.3283864 | V26: 58.8018228 | W26: 201 | X26: NO | Y26: 69.750892 | Z26: 4.627985 | AB26: 67 | AC26: 25 | AD26: 0.750296 | AE26: 3 | AF26: 10.650129 | AG26: 3 | AH26: 13 | AI26: 1 | AJ26: 5 | AK26: 7.747502 | AL26: 0 | AM26: 6.91543 | AN26: 539 | AO26: 306 | AP26: 87868 | AQ26: 1 | AR26: 1 | AS26: 68.615217 | AT26: 51.053624 | AU26: 55.3283864 | AV26: 58.8018228 | AW26: 201 | AX26: 0 | AY26: 69.750892 | AZ26: 4.627985 | BB26: 67 | BC26: 0.03776435045 | BD26: 0.1426814823 | BE26: 0.6666666667 | BF26: 0.4121831291 | BG26: 0.1666666667 | BH26: 0.3095238095 | BI26: 1 | BJ26: 0.6666666667 | BK26: 0.8836692163 | BL26: 0 | BM26: 0.6813013667 | BN26: 0.5180487805 | BO26: 0.2267267267 | BP26: 0.5361809087 | BQ26: 1 | BR26: 1 | BS26: 0.001642346158 | BT26: 0.5350042978 | BU26: 0.4648792636 | BV26: 0.6319463356 | BW26: 0.4276595745 | BX26: 0 | BY26: 0.8037652747 | BZ26: 0.04627985 | CB26: 67 | CC26: 0.9258974453 | CD26: 0.7349950409 | CE26: 0.1111111111 | CF26: 0.3455286737 | CG26: 0.6944444444 | CH26: 0.4767573696 | CI26: 0 | CJ26: 0.1111111111 | CK26: 0.01353285124 | CL26: 1 | CM26: 0.1015688188 | CN26: 0.232276978 | CO26: 0.5979515552 | CP26: 0.2151281495 | CQ26: 0 | CR26: 0 | CS26: 0.996718005 | CT26: 0.2162210031 | CU26: 0.2863542026 | CV26: 0.1354634999 | CW26: 0.3275735627 | CX26: 1 | CY26: 0.03850806742 | CZ26: 0.9095821245 | DM26: 19 | DN26: 66 | DO26: 0.03715325802 | DP26: 0.6389555375 | DQ26: 41.841222 | DR26: -71.486614 | DS26: Forested land on tributary surrounded by residential development (George Waterman Road) | DT26: https://www.google.com/maps/place/41%C2%B050'28.4%22N+71%C2%B029'11.8%22W/@41.841222,-71.4888027,757m/data=!3m2!1e3!4b1!4m5!3m4!1s0x0:0x0!8m2!3d41.841222!4d-71.486614 | DW26: Reliability | DX26: 14 | EF26: R2 | EG26: =[0]!View_Recreation/9*0.01 -> 0.06666666667 | EH26: 0.004444444444 | EJ26: Reliability | EN26: 0.8156919853 | EO26: 6 | EP26: 0.9385639951 | EQ26: 259 | ER26: 41.82195 | ES26: -71.467722 | ET26: Partially cleared/paved parking lot at BD's Discount, adjacent (East) of residential neighborhood (Ceila Street), adjacent (South) of State Route 6 | EU26: https://www.google.com/maps/place/41%C2%B049'19.0%22N+71%C2%B028'03.8%22W/@41.82195,-71.4699107,757m/data=!3m2!1e3!4b1!4m5!3m4!1s0x0:0x0!8m2!3d41.82195!4d-71.467722
B27: 160 | C27: 22 | D27: 0.185417 | E27: 3 | F27: 11.281586 | G27: 4 | H27: 6 | I27: YES | J27: 4 | K27: 3.793062 | L27: 0 | M27: 6.020328 | N27: 157 | O27: 403 | P27: 81366 | Q27: NO | R27: YES | S27: 68.003351 | T27: 55.511884 | U27: 58.8423484 | V27: 59.35230055 | W27: 38 | X27: NO | Y27: 68.845082 | Z27: 11.852742 | AB27: 160 | AC27: 22 | AD27: 0.185417 | AE27: 3 | AF27: 11.281586 | AG27: 4 | AH27: 6 | AI27: 1 | AJ27: 4 | AK27: 3.793062 | AL27: 0 | AM27: 6.020328 | AN27: 157 | AO27: 403 | AP27: 81366 | AQ27: 0 | AR27: 1 | AS27: 68.003351 | AT27: 55.511884 | AU27: 58.8423484 | AV27: 59.35230055 | AW27: 38 | AX27: 0 | AY27: 68.845082 | AZ27: 11.852742 | BB27: 160 | BC27: 0.0332326284 | BD27: 0.0208451601 | BE27: 0.6666666667 | BF27: 0.3560231318 | BG27: 0.2222222222 | BH27: 0.1428571429 | BI27: 1 | BJ27: 0.5 | BK27: 0.9430461747 | BL27: 0 | BM27: 0.7241013998 | BN27: 0.1453658537 | BO27: 0.2995495495 | BP27: 0.4822434403 | BQ27: 0 | BR27: 1 | BS27: 0.001627676528 | BT27: 0.4757012473 | BU27: 0.4196608155 | BV27: 0.6012863139 | BW27: 0.08085106383 | BX27: 0 | BY27: 0.7933272917 | BZ27: 0.11852742 | CB27: 160 | CC27: 0.9346391508 | CD27: 0.9587442005 | CE27: 0.1111111111 | CF27: 0.4147062067 | CG27: 0.6049382716 | CH27: 0.7346938776 | CI27: 0 | CJ27: 0.25 | CK27: 0.003243738213 | CL27: 1 | CM27: 0.07612003762 | CN27: 0.7303995241 | CO27: 0.4906308335 | CP27: 0.2680718551 | CQ27: 1 | CR27: 0 | CS27: 0.9967472963 | CT27: 0.2748891821 | CU27: 0.3367935691 | CV27: 0.1589726035 | CW27: 0.8448347669 | CX27: 1 | CY27: 0.04271360835 | CZ27: 0.7769939093 | DM27: 22 | DN27: 67 | DO27: 0.04216710092 | DP27: 0.5822593461 | DQ27: 41.868189 | DR27: -71.504922 | DS27: Part forested/cleared land adjacent (N) to commercial businesses & Route 44, east of intersection with I-295 | DT27: https://www.google.com/maps/place/41%C2%B052'05.5%22N+71%C2%B030'17.7%22W/@41.868189,-71.5071107,757m/data=!3m2!1e3!4b1!4m5!3m4!1s0x0:0x0!8m2!3d41.868189!4d-71.504922 | EF27: R3 | EG27: =[0]!View_Recreation/9*0.01 -> 0.06666666667 | EH27: 0.004444444444 | EN27: 0.8076875388 | EO27: 7 | EP27: 0.9358958463 | EQ27: 214 | ER27: 41.864967 | ES27: -71.492239 | ET27: Filled/cleared land adjacent (S) of Angell / Greystone Avenue & adjacent (W) of Woony River | EU27: https://www.google.com/maps/place/41%C2%B051'53.9%22N+71%C2%B029'32.1%22W/@41.864967,-71.4944277,794m/data=!3m2!1e3!4b1!4m5!3m4!1s0x0:0x0!8m2!3d41.864967!4d-71.492239
B28: 188 | C28: 35 | D28: 0.427511 | E28: 9 | F28: 13.292265 | G28: 0 | H28: 3 | I28: YES | J28: 5 | K28: 36.14709 | L28: 0 | M28: 16.18789 | N28: 216 | O28: 255 | P28: 46596 | Q28: NO | R28: NO | S28: 95.419208 | T28: 51.838672 | U28: 53.2853032 | V28: 62.63308708 | W28: 66 | X28: NO | Y28: 42.817781 | Z28: 24.235018 | AB28: 188 | AC28: 35 | AD28: 0.427511 | AE28: 9 | AF28: 13.292265 | AG28: 0 | AH28: 3 | AI28: 1 | AJ28: 5 | AK28: 36.14709 | AL28: 0 | AM28: 16.18789 | AN28: 216 | AO28: 255 | AP28: 46596 | AQ28: 0 | AR28: 0 | AS28: 95.419208 | AT28: 51.838672 | AU28: 53.2853032 | AV28: 62.63308708 | AW28: 66 | AX28: 0 | AY28: 42.817781 | AZ28: 24.235018 | BB28: 188 | BC28: 0.05287009063 | BD28: 0.0730613738 | BE28: 0 | BF28: 0.177199036 | BG28: 0 | BH28: 0.07142857143 | BI28: 1 | BJ28: 0.6666666667 | BK28: 0.4572419201 | BL28: 0 | BM28: 0.2379311206 | BN28: 0.2029268293 | BO28: 0.1884384384 | BP28: 0.1938082242 | BQ28: 0 | BR28: 0 | BS28: 0.002284978077 | BT28: 0.5245617168 | BU28: 0.4911701146 | BV28: 0.418555974 | BW28: 0.1404255319 | BX28: 0 | BY28: 0.4934050952 | BZ28: 0.24235018 | CB28: 188 | CC28: 0.8970550652 | CD28: 0.8592152167 | CE28: 1 | CF28: 0.6770014264 | CG28: 1 | CH28: 0.862244898 | CI28: 0 | CJ28: 0.1111111111 | CK28: 0.2945863333 | CL28: 1 | CM28: 0.580748977 | CN28: 0.6353256395 | CO28: 0.6586321682 | CP28: 0.6499451794 | CQ28: 1 | CR28: 1 | CS28: =(ABS(BS28-1))^2 -> 0.995435265 | CT28: 0.2260415612 | CU28: 0.2589078522 | CV28: 0.3380771554 | CW28: 0.7388682662 | CX28: 1 | CY28: 0.2566383976 | CZ28: 0.5740332497 | DM28: 31 | DN28: 160 | DO28: 0.06085371773 | DP28: 0.3709523652 | DQ28: 41.869433 | DR28: -71.508922 | DS28: Forested land east of I-295 / Route 44 on/off ramps | DT28: https://www.google.com/maps/place/41%C2%B052'10.0%22N+71%C2%B030'32.1%22W/@41.869433,-71.5111107,757m/data=!3m2!1e3!4b1!4m5!3m4!1s0x0:0x0!8m2!3d41.869433!4d-71.508922 | DW28: Remaining Points: | DX28: =100-SUM(DX20:DX26) -> 0 | DY28: 0 | DZ28: 0 | EA28: 0 | EB28: 100 | EC28: 100 | EF28: R4 | EG28: =[0]!View_Recreation/9*0.01 -> 0.06666666667 | EH28: 0.004444444444 | EJ28: TOTAL | EK28: =SUM(EK14:EK26) -> 100 | EN28: 0.8042883199 | EO28: 8 | EP28: 0.9347627733 | EQ28: 451 | ER28: 41.865247 | ES28: -71.491747 | ET28: Cleared/grassed land adjacent (S) of Angell / Greystone Avenue & adjacent (E) of Woony River | EU28: https://www.google.com/maps/place/41%C2%B051'54.9%22N+71%C2%B029'30.3%22W/@41.865247,-71.4939357,757m/data=!3m2!1e3!4b1!4m5!3m4!1s0x0:0x0!8m2!3d41.865247!4d-71.491747
B29: 189 | C29: 35 | D29: 0.259079 | E29: 9 | F29: 13.253259 | G29: 0 | H29: 1 | I29: NO | J29: 5 | K29: 37.928133 | L29: 1 | M29: 15.597559 | N29: 174 | O29: 234 | P29: 45937 | Q29: NO | R29: NO | S29: 110.537355 | T29: 53.333099 | U29: 54.9653714 | V29: 62.69345613 | W29: 40 | X29: NO | Y29: 41.704287 | Z29: 43.20825 | AB29: 189 | AC29: 35 | AD29: 0.259079 | AE29: 9 | AF29: 13.253259 | AG29: 0 | AH29: 1 | AI29: 0 | AJ29: 5 | AK29: 37.928133 | AL29: 1 | AM29: 15.597559 | AN29: 174 | AO29: 234 | AP29: 45937 | AQ29: 0 | AR29: 0 | AS29: 110.537355 | AT29: 53.333099 | AU29: 54.9653714 | AV29: 62.69345613 | AW29: 40 | AX29: 0 | AY29: 41.704287 | AZ29: 43.20825 | BB29: 189 | BC29: 0.05287009063 | BD29: 0.03673300008 | BE29: 0 | BF29: 0.1806681191 | BG29: 0 | BH29: 0.02380952381 | BI29: 0 | BJ29: 0.6666666667 | BK29: 0.4304990902 | BL29: 0.3333333333 | BM29: 0.2661582793 | BN29: 0.1619512195 | BO29: 0.1726726727 | BP29: 0.1883414768 | BQ29: 0 | BR29: 0 | BS29: 0.002647439169 | BT29: 0.5046830915 | BU29: 0.4695506217 | BV29: 0.4151935918 | BW29: 0.08510638298 | BX29: 0 | BY29: 0.4805738928 | BZ29: 0.4320825 | CB29: 189 | CC29: 0.8970550652 | CD29: 0.9278833131 | CE29: 1 | CF29: 0.671304731 | CG29: 1 | CH29: 0.9529478458 | CI29: 1 | CJ29: 0.1111111111 | CK29: 0.3243312862 | CL29: 0.4444444444 | CM29: 0.538523671 | CN29: 0.7023257585 | CO29: 0.6844705065 | CP29: 0.6587895583 | CQ29: 1 | CR29: 1 | CS29: 0.9947121306 | CT29: 0.2453388398 | CU29: 0.2813765429 | CV29: 0.341998535 | CW29: 0.8370303305 | CX29: 1 | CY29: 0.2698034808 | CZ29: 0.3225302868 | DM29: 38 | DN29: 188 | DO29: 0.06730143028 | DP29: 0.2980420741 | DQ29: 41.877958 | DR29: -71.537328 | DS29: Forested land adjacent (W) to swamp, north of Walter Cary Road and commercial businesses | DT29: https://www.google.com/maps/place/41%C2%B052'40.6%22N+71%C2%B032'14.4%22W/@41.877958,-71.5395167,757m/data=!3m2!1e3!4b1!4m5!3m4!1s0x0:0x0!8m2!3d41.877958!4d-71.537328 | EF29: R5 | EG29: =[0]!View_Recreation/9*0.01 -> 0.06666666667 | EH29: 0.004444444444 | EN29: 0.7985370318 | EO29: 9 | EP29: 0.9328456773 | EQ29: 452 | ER29: 41.865782 | ES29: -71.492036 | ET29: Cleared/paved land adjacent (N) of Angell / Greystone Avenue & adjacent (E) of Woony River | EU29: https://www.google.com/maps/place/41%C2%B051'56.8%22N+71%C2%B029'31.3%22W/@41.865782,-71.4942247,757m/data=!3m2!1e3!4b1!4m5!3m4!1s0x0:0x0!8m2!3d41.865782!4d-71.492036
B30: 193 | C30: 21 | D30: 1.128724 | E30: 3 | F30: 11.359146 | G30: 0 | H30: 3 | I30: YES | J30: 4 | K30: 13.322035 | L30: 0 | M30: 6.25744 | N30: 121 | O30: 340 | P30: 79459 | Q30: NO | R30: YES | S30: 68.810383 | T30: 55.307302 | U30: 60.7336882 | V30: 59.64564525 | W30: 30 | X30: NO | Y30: 67.009298 | Z30: 24.087781 | AB30: 193 | AC30: 21 | AD30: 1.128724 | AE30: 3 | AF30: 11.359146 | AG30: 0 | AH30: 3 | AI30: 1 | AJ30: 4 | AK30: 13.322035 | AL30: 0 | AM30: 6.25744 | AN30: 121 | AO30: 340 | AP30: 79459 | AQ30: 0 | AR30: 1 | AS30: 68.810383 | AT30: 55.307302 | AU30: 60.7336882 | AV30: 59.64564525 | AW30: 30 | AX30: 0 | AY30: 67.009298 | AZ30: 24.087781 | BB30: 193 | BC30: 0.03172205438 | BD30: 0.2243029901 | BE30: 0.6666666667 | BF30: 0.3491251651 | BG30: 0 | BH30: 0.07142857143 | BI30: 1 | BJ30: 0.5 | BK30: 0.7999661346 | BL30: 0 | BM30: 0.7127636959 | BN30: 0.1102439024 | BO30: 0.2522522523 | BP30: 0.4664238845 | BQ30: 0 | BR30: 1 | BS30: 0.001647025308 | BT30: 0.4784225638 | BU30: 0.3953226324 | BV30: 0.5849478605 | BW30: 0.06382978723 | BX30: 0 | BY30: 0.7721728751 | BZ30: 0.24087781 | CB30: 193 | CC30: 0.93756218 | CD30: 0.6017058512 | CE30: 0.1111111111 | CF30: 0.4236380507 | CG30: 1 | CH30: 0.862244898 | CI30: 0 | CJ30: 0.25 | CK30: 0.04001354732 | CL30: 1 | CM30: 0.08250469442 | CN30: 0.7916659131 | CO30: 0.5591266943 | CP30: 0.2847034711 | CQ30: 1 | CR30: 0 | CS30: 0.9967086621 | CT30: 0.2720430219 | CU30: 0.3656347189 | CV30: 0.1722682785 | CW30: 0.8764146673 | CX30: 1 | CY30: 0.05190519886 | CZ30: 0.5762664994 | DM30: 43 | DN30: 189 | DO30: 0.07029349223 | DP30: 0.2642080428 | DQ30: 41.878964 | DR30: -71.537367 | DS30: Forested land adjacent (W) to swamp, north of Walter Cary Road and commercial businesses, east of Cedar Swamp Road | DT30: https://www.google.com/maps/place/41%C2%B052'44.3%22N+71%C2%B032'14.5%22W/@41.878964,-71.5394529,757m/data=!3m2!1e3!4b1!4m5!3m4!1s0x0:0x0!8m2!3d41.878964!4d-71.537367 | DV30: DefaultPasteChecks | EF30: R6 | EG30: =[0]!View_Recreation/9*0.01 -> 0.06666666667 | EH30: 0.004444444444 | EN30: 0.7351757437 | EO30: 10 | EP30: 0.9117252479 | EQ30: 53 | ER30: 41.843097 | ES30: -71.480656 | ET30: Cleared/filled land on commercial property (Armento Street / Sonnino Street) | EU30: https://www.google.com/maps/place/41%C2%B050'35.1%22N+71%C2%B028'50.4%22W/@41.843097,-71.4828447,757m/data=!3m2!1e3!4b1!4m5!3m4!1s0x0:0x0!8m2!3d41.843097!4d-71.480656
B31: 194 | C31: 21 | D31: 0.49436 | E31: 3 | F31: 11.372584 | G31: 2 | H31: 4 | I31: YES | J31: 4 | K31: 3.460066 | L31: 0 | M31: 6.301493 | N31: 141 | O31: 363 | P31: 80359 | Q31: NO | R31: YES | S31: 68.076193 | T31: 55.734049 | U31: 59.8102588 | V31: 59.46294399 | W31: 34 | X31: NO | Y31: 68.491384 | Z31: 6.50112 | AB31: 194 | AC31: 21 | AD31: 0.49436 | AE31: 3 | AF31: 11.372584 | AG31: 2 | AH31: 4 | AI31: 1 | AJ31: 4 | AK31: 3.460066 | AL31: 0 | AM31: 6.301493 | AN31: 141 | AO31: 363 | AP31: 80359 | AQ31: 0 | AR31: 1 | AS31: 68.076193 | AT31: 55.734049 | AU31: 59.8102588 | AV31: 59.46294399 | AW31: 34 | AX31: 0 | AY31: 68.491384 | AZ31: 6.50112 | BB31: 194 | BC31: 0.03172205438 | BD31: 0.08747974711 | BE31: 0.6666666667 | BF31: 0.3479300274 | BG31: 0.1111111111 | BH31: 0.09523809524 | BI31: 1 | BJ31: 0.5 | BK31: 0.9480461974 | BL31: 0 | BM31: 0.7106572657 | BN31: 0.1297560976 | BO31: 0.2695195195 | BP31: 0.4738898521 | BQ31: 0 | BR31: 1 | BS31: 0.001629422932 | BT31: 0.4727460445 | BU31: 0.4072055282 | BV31: 0.5951237937 | BW31: 0.07234042553 | BX31: 0 | BY31: 0.7892514991 | BZ31: 0.0650112 | CB31: 194 | CC31: 0.93756218 | CD31: 0.8326932119 | CE31: 0.1111111111 | CF31: 0.4251952491 | CG31: 0.7901234568 | CH31: 0.8185941043 | CI31: 0 | CJ31: 0.25 | CK31: 0.002699197604 | CL31: 1 | CM31: 0.0837192179 | CN31: 0.7573244497 | CO31: 0.5336017324 | CP31: 0.2767918877 | CQ31: 1 | CR31: 0 | CS31: 0.9967438092 | CT31: 0.2779967336 | CU31: 0.3514052857 | CV31: 0.1639247425 | CW31: 0.8605522861 | CX31: 1 | CY31: 0.04441493063 | CZ31: 0.8742040561 | DM31: 33 | DN31: 193 | DO31: 0.06248127427 | DP31: 0.3525480675 | DQ31: 41.870711 | DR31: -71.51115 | DS31: Forested land east of I-295 / Route 44 on/off ramps | DT31: https://www.google.com/maps/place/41%C2%B052'14.6%22N+71%C2%B030'40.1%22W/@41.870711,-71.5133387,794m/data=!3m2!1e3!4b1!4m5!3m4!1s0x0:0x0!8m2!3d41.870711!4d-71.51115 | DV31: BenefitCheckStatus | EF31: R7 | EG31: =[0]!View_Recreation/9*0.01 -> 0.06666666667 | EH31: 0.004444444444
B32: 203 | C32: 19 | D32: 0.312454 | E32: 2 | F32: 9.821001 | G32: 2 | H32: 8 | I32: YES | J32: 2 | K32: 8.718171 | L32: 0 | M32: 8.337153 | N32: 322 | O32: 342 | P32: 104284 | Q32: NO | R32: NO | S32: 751.696754 | T32: 51.817776 | U32: 56.4234342 | V32: 56.9127319 | W32: 121 | X32: NO | Y32: 86.780176 | Z32: 5.81037 | AB32: 203 | AC32: 19 | AD32: 0.312454 | AE32: 2 | AF32: 9.821001 | AG32: 2 | AH32: 8 | AI32: 1 | AJ32: 2 | AK32: 8.718171 | AL32: 0 | AM32: 8.337153 | AN32: 322 | AO32: 342 | AP32: 104284 | AQ32: 0 | AR32: 0 | AS32: 751.696754 | AT32: 51.817776 | AU32: 56.4234342 | AV32: 56.9127319 | AW32: 121 | AX32: 0 | AY32: 86.780176 | AZ32: 5.81037 | BB32: 203 | BC32: 0.02870090634 | BD32: 0.04824522429 | BE32: 0.7777777778 | BF32: 0.4859234253 | BG32: 0.1111111111 | BH32: 0.1904761905 | BI32: 1 | BJ32: 0.1666666667 | BK32: 0.8690943655 | BL32: 0 | BM32: 0.6133205206 | BN32: 0.3063414634 | BO32: 0.2537537538 | BP32: 0.6723601583 | BQ32: 0 | BR32: 0 | BS32: 0.0180193849 | BT32: 0.524839672 | BU32: 0.4507879438 | BV32: 0.737163246 | BW32: 0.2574468085 | BX32: 0 | BY32: 1 | BZ32: 0.0581037 | CB32: 203 | CC32: 0.9434219293 | CD32: 0.9058371531 | CE32: 0.04938271605 | CF32: 0.2642747247 | CG32: 0.7901234568 | CH32: 0.6553287982 | CI32: 0 | CJ32: 0.6944444444 | CK32: 0.01713628515 | CL32: 1 | CM32: 0.1495210198 | CN32: 0.4811621654 | CO32: 0.55688346 | CP32: 0.1073478659 | CQ32: 1 | CR32: 1 | CS32: 0.9642859284 | CT32: 0.2257773373 | CU32: 0.3016338826 | CV32: 0.06908315924 | CW32: 0.5513852422 | CX32: 1 | CY32: 0 | CZ32: 0.88716864 | DM32: 32 | DN32: 194 | DO32: 0.06167452526 | DP32: 0.36167073 | DQ32: 41.869789 | DR32: -71.509894 | DS32: Forested land east of I-295 / Route 44 on/off ramps | DT32: https://www.google.com/maps/place/41%C2%B052'11.2%22N+71%C2%B030'35.6%22W/@41.869789,-71.5120827,757m/data=!3m2!1e3!4b1!4m5!3m4!1s0x0:0x0!8m2!3d41.869789!4d-71.509894 | EA32: Scenario 4 | EB32: Scenario 5 | EC32: Scenario 6 | EF32: R8 | EG32: =[0]!View_Recreation/9*0.01 -> 0.06666666667 | EH32: 0.004444444444
B33: 214 | C33: 25 | D33: 0.537041 | E33: 3 | F33: 9.009266 | G33: 1 | H33: 9 | I33: YES | J33: 5 | K33: 7.850706 | L33: 2 | M33: 4.926667 | N33: 766 | O33: 787 | P33: 102518 | Q33: YES | R33: YES | S33: 45.078531 | T33: 31.226195 | U33: 51.3001298 | V33: 57.39454592 | W33: 298 | X33: YES | Y33: 72.329397 | Z33: 19.879352 | AB33: 214 | AC33: 25 | AD33: 0.537041 | AE33: 3 | AF33: 9.009266 | AG33: 1 | AH33: 9 | AI33: 1 | AJ33: 5 | AK33: 7.850706 | AL33: 2 | AM33: 4.926667 | AN33: 766 | AO33: 787 | AP33: 102518 | AQ33: 1 | AR33: 1 | AS33: 45.078531 | AT33: 31.226195 | AU33: 51.3001298 | AV33: 57.39454592 | AW33: 298 | AX33: 1 | AY33: 72.329397 | AZ33: 19.879352 | BB33: 214 | BC33: 0.03776435045 | BD33: 0.09668542845 | BE33: 0.6666666667 | BF33: 0.5581168373 | BG33: 0.05555555556 | BH33: 0.2142857143 | BI33: 1 | BJ33: 0.6666666667 | BK33: 0.882119581 | BL33: 0.6666666667 | BM33: 0.7763956935 | BN33: 0.7395121951 | BO33: 0.5878378378 | BP33: 0.6577102707 | BQ33: 1 | BR33: 1 | BS33: 0.001078048636 | BT33: 0.7987455383 | BU33: 0.5167157694 | BV33: 0.7103275954 | BW33: 0.6340425532 | BX33: 1 | BY33: 0.8334783396 | BZ33: 0.19879352 | CB33: 214 | CC33: 0.9258974453 | CD33: 0.8159772152 | CE33: 0.1111111111 | CF33: 0.1952607295 | CG33: 0.8919753086 | CH33: 0.6173469388 | CI33: 0 | CJ33: 0.1111111111 | CK33: 0.01389579318 | CL33: 0.1111111111 | CM33: 0.0499988859 | CN33: 0.06785389649 | CO33: 0.1698776479 | CP33: 0.1171622588 | CQ33: 0 | CR33: 0 | CS33: 0.9978450649 | CT33: 0.04050335836 | CU33: 0.2335636475 | CV33: 0.08391010198 | CW33: 0.1339248529 | CX33: 0 | CY33: 0.02772946339 | CZ33: 0.6419318236 | DM33: 29 | DN33: 203 | DO33: 0.05582249594 | DP33: 0.427845076 | DQ33: 41.845236 | DR33: -71.501472 | DS33: Forested land adjacent (East) of Atwood Avenue and N/W of residential properties | DT33: https://www.google.com/maps/place/41%C2%B050'42.9%22N+71%C2%B030'05.3%22W/@41.845236,-71.5036607,795m/data=!3m2!1e3!4b1!4m5!3m4!1s0x0:0x0!8m2!3d41.845236!4d-71.501472 | DW33: Flood | DX33: TRUE | DY33: TRUE | DZ33: TRUE | EA33: FALSE | EB33: FALSE | EC33: FALSE | EF33: R9 | EG33: =[0]!View_Recreation/9*0.01 -> 0.06666666667 | EH33: 0.004444444444
B34: 216 | C34: 15 | D34: 0.254908 | E34: 2 | F34: 7.361518 | G34: 3 | H34: 15 | I34: YES | J34: 3 | K34: 3.429382 | L34: 0 | M34: 13.407974 | N34: 344 | O34: 613 | P34: 117111 | Q34: YES | R34: YES | S34: 2.898007 | T34: 27.6503 | U34: 30.4820672 | V34: 55.63339099 | W34: 138 | X34: YES | Y34: 84.704446 | Z34: 14.049054 | AB34: 216 | AC34: 15 | AD34: 0.254908 | AE34: 2 | AF34: 7.361518 | AG34: 3 | AH34: 15 | AI34: 1 | AJ34: 3 | AK34: 3.429382 | AL34: 0 | AM34: 13.407974 | AN34: 344 | AO34: 613 | AP34: 117111 | AQ34: 1 | AR34: 1 | AS34: 2.898007 | AT34: 27.6503 | AU34: 30.4820672 | AV34: 55.63339099 | AW34: 138 | AX34: 1 | AY34: 84.704446 | AZ34: 14.049054 | BB34: 216 | BC34: 0.02265861027 | BD34: 0.03583337503 | BE34: 0.7777777778 | BF34: 0.7046628779 | BG34: 0.1666666667 | BH34: 0.3571428571 | BI34: 1 | BJ34: 0.3333333333 | BK34: 0.9485069257 | BL34: 0 | BM34: 0.370855074 | BN34: 0.327804878 | BO34: 0.4572072072 | BP34: 0.7787667881 | BQ34: 1 | BR34: 1 | BS34: 6.676076144e-05 | BT34: 0.8463115128 | BU34: 0.7846072499 | BV34: 0.8084188415 | BW34: 0.2936170213 | BX34: 1 | BY34: 0.976080597 | BZ34: 0.14049054 | CB34: 216 | CC34: 0.9551961921 | CD34: 0.9296172807 | CE34: 0.04938271605 | CF34: 0.0872240157 | CG34: 0.6944444444 | CH34: 0.4132653061 | CI34: 0 | CJ34: 0.4444444444 | CK34: 0.002651536696 | CL34: 1 | CM34: 0.3958233379 | CN34: 0.451846282 | CO34: 0.2946240159 | CP34: 0.04894413407 | CQ34: 0 | CR34: 0 | CS34: 0.9998664829 | CT34: 0.02362015109 | CU34: 0.04639403679 | CV34: 0.03670334029 | CW34: 0.4989769126 | CX34: 0 | CY34: 0.0005721378387 | CZ34: 0.7387565118 | DM34: 7 | DN34: 214 | DO34: 0.01089378594 | DP34: 0.9358958463 | DQ34: 41.864967 | DR34: -71.492239 | DS34: Filled/cleared land adjacent (S) of Angell / Greystone Avenue & adjacent (W) of Woony River | DT34: https://www.google.com/maps/place/41%C2%B051'53.9%22N+71%C2%B029'32.1%22W/@41.864967,-71.4944277,794m/data=!3m2!1e3!4b1!4m5!3m4!1s0x0:0x0!8m2!3d41.864967!4d-71.492239 | DW34: Scenic | DX34: TRUE | DY34: FALSE | DZ34: FALSE | EA34: TRUE | EB34: FALSE | EC34: FALSE | EF34: BW1 | EG34: =View_Bird/2*0.01 -> 0.15 | EH34: 0.0225
B35: 221 | C35: 19 | D35: 0.126541 | E35: 2 | F35: 7.265073 | G35: 0 | H35: 8 | I35: YES | J35: 2 | K35: 4.750929 | L35: 0 | M35: 14.012115 | N35: 367 | O35: 587 | P35: 118035 | Q35: YES | R35: YES | S35: 2.966259 | T35: 26.666152 | U35: 29.521519 | V35: 55.53960904 | W35: 138 | X35: YES | Y35: 84.723436 | Z35: 12.313483 | AB35: 221 | AC35: 19 | AD35: 0.126541 | AE35: 2 | AF35: 7.265073 | AG35: 0 | AH35: 8 | AI35: 1 | AJ35: 2 | AK35: 4.750929 | AL35: 0 | AM35: 14.012115 | AN35: 367 | AO35: 587 | AP35: 118035 | AQ35: 1 | AR35: 1 | AS35: 2.966259 | AT35: 26.666152 | AU35: 29.521519 | AV35: 55.53960904 | AW35: 138 | AX35: 1 | AY35: 84.723436 | AZ35: 12.313483 | BB35: 221 | BC35: 0.02870090634 | BD35: 0.008146448864 | BE35: 0.7777777778 | BF35: 0.713240423 | BG35: 0 | BH35: 0.1904761905 | BI35: 1 | BJ35: 0.1666666667 | BK35: 0.9286635494 | BL35: 0 | BM35: 0.3419675788 | BN35: 0.3502439024 | BO35: 0.4376876877 | BP35: 0.7864318482 | BQ35: 1 | BR35: 1 | BS35: 6.839711902e-05 | BT35: 0.8594024897 | BU35: 0.7969677988 | BV35: 0.8136422255 | BW35: 0.2936170213 | BX35: 1 | BY35: 0.9762994258 | BZ35: 0.12313483 | CB35: 221 | CC35: 0.9434219293 | CD35: 0.9837734669 | CE35: 0.04938271605 | CF35: 0.08223105498 | CG35: 1 | CH35: 0.6553287982 | CI35: 0 | CJ35: 0.6944444444 | CK35: 0.00508888919 | CL35: 1 | CM35: 0.4330066674 | CN35: 0.4221829863 | CO35: 0.3161951366 | CP35: 0.04561135548 | CQ35: 0 | CR35: 0 | CS35: 0.9998632104 | CT35: 0.0197676599 | CU35: 0.04122207474 | CV35: 0.03472922013 | CW35: 0.4989769126 | CX35: 0 | CY35: 0.0005617172172 | CZ35: 0.7688925264 | DM35: 15 | DN35: 216 | DO35: 0.01968602833 | DP35: 0.8364737726 | DQ35: 41.844453 | DR35: -71.485553 | DS35: Forested land adjacent to tributary (Assapumpset Brook), adjacent to commercial (mining) industry (George Waterman Road) | DT35: https://www.google.com/maps/place/41%C2%B050'40.0%22N+71%C2%B029'08.0%22W/@41.844453,-71.4877417,757m/data=!3m2!1e3!4b1!4m5!3m4!1s0x0:0x0!8m2!3d41.844453!4d-71.485553 | DW35: Education | DX35: TRUE | DY35: FALSE | DZ35: FALSE | EA35: TRUE | EB35: FALSE | EC35: FALSE | EF35: BW2 | EG35: =View_Bird/2*0.01 -> 0.15 | EH35: 0.0225
B36: 230 | C36: 0 | D36: 0.088771 | E36: 0 | F36: 11.609525 | G36: 0 | H36: 1 | I36: NO | J36: 4 | K36: 16.687431 | L36: 0 | M36: 16.640703 | N36: 8 | O36: 4 | P36: 23233 | Q36: NO | R36: NO | S36: 31.492313 | T36: 87.562318 | U36: 91.4545282 | V36: 69.45561678 | W36: 6 | X36: NO | Y36: 0 | Z36: 43.787192 | AB36: 230 | AC36: 0 | AD36: 0.088771 | AE36: 0 | AF36: 11.609525 | AG36: 0 | AH36: 1 | AI36: 0 | AJ36: 4 | AK36: 16.687431 | AL36: 0 | AM36: 16.640703 | AN36: 8 | AO36: 4 | AP36: 23233 | AQ36: 0 | AR36: 0 | AS36: 31.492313 | AT36: 87.562318 | AU36: 91.4545282 | AV36: 69.45561678 | AW36: 6 | AX36: 0 | AY36: 0 | AZ36: 43.787192 | BB36: 230 | BC36: 0 | BD36: 0 | BE36: 1 | BF36: 0.3268571659 | BG36: 0 | BH36: 0.02380952381 | BI36: 0 | BJ36: 0.5 | BK36: 0.749433827 | BL36: 0 | BM36: 0.2162794972 | BN36: 0 | BO36: 0 | BP36: 0 | BQ36: 0 | BR36: 0 | BS36: 0.0007523158993 | BT36: 0.04937157929 | BU36: 0 | BV36: 0.03856076275 | BW36: 0.01276595745 | BX36: 0 | BY36: 0 | BZ36: 0.43787192 | CB36: 230 | CC36: 1 | CD36: 1 | CE36: 0 | CF36: 0.4531212751 | CG36: 1 | CH36: 0.9529478458 | CI36: 1 | CJ36: 0.25 | CK36: 0.06278340707 | CL36: 1 | CM36: 0.6142178265 | CN36: 1 | CO36: 1 | CP36: 1 | CQ36: 1 | CR36: 1 | CS36: 0.9984959342 | CT36: 0.9036943943 | CU36: 1 | CV36: 0.9243654069 | CW36: 0.9746310548 | CX36: 1 | CY36: 1 | CZ36: 0.3159879783 | DM36: 14 | DN36: 221 | DO36: 0.01958624946 | DP36: 0.8376020652 | DQ36: 41.844089 | DR36: -71.484672 | DS36: Forested land adjacent to tributary (Assapumpset Brook), adjacent to commercial (mining) industry (George Waterman Road) | DT36: https://www.google.com/maps/place/41%C2%B050'38.7%22N+71%C2%B029'04.8%22W/@41.844089,-71.4868607,757m/data=!3m2!1e3!4b1!4m5!3m4!1s0x0:0x0!8m2!3d41.844089!4d-71.484672 | DW36: Recreation | DX36: TRUE | DY36: FALSE | DZ36: TRUE | EA36: TRUE | EB36: FALSE | EC36: FALSE | EF36: S1 | EG36: =View_Equity*0.01 -> 0.1 | EH36: 0.01
B37: 234 | C37: 4 | D37: 0.686436 | E37: 1 | F37: 12.84166 | G37: 3 | H37: 0 | I37: YES | J37: 3 | K37: 6.024731 | L37: 0 | M37: 21.163882 | N37: 47 | O37: 81 | P37: 33764 | Q37: NO | R37: NO | S37: 41690.81695 | T37: 75.002984 | U37: 76.646843 | V37: 66.01383732 | W37: 24 | X37: NO | Y37: 7.174525 | Z37: 15.418127 | AB37: 234 | AC37: 4 | AD37: 0.686436 | AE37: 1 | AF37: 12.84166 | AG37: 3 | AH37: 0 | AI37: 1 | AJ37: 3 | AK37: 6.024731 | AL37: 0 | AM37: 21.163882 | AN37: 47 | AO37: 81 | AP37: 33764 | AQ37: 0 | AR37: 0 | AS37: 41690.81695 | AT37: 75.002984 | AU37: 76.646843 | AV37: 66.01383732 | AW37: 24 | AX37: 0 | AY37: 7.174525 | AZ37: 15.418127 | BB37: 234 | BC37: 0.006042296073 | BD37: 0.1289077935 | BE37: 0.8888888889 | BF37: 0.2172745685 | BG37: 0.1666666667 | BH37: 0 | BI37: 1 | BJ37: 0.3333333333 | BK37: 0.9095370767 | BL37: 0 | BM37: 0 | BN37: 0.03804878049 | BO37: 0.05780780781 | BP37: 0.0873601168 | BQ37: 0 | BR37: 0 | BS37: 0.9995443148 | BT37: 0.2164338005 | BU37: 0.1905486013 | BV37: 0.2302579438 | BW37: 0.05106382979 | BX37: 0 | BY37: 0.08267469981 | BZ37: 0.15418127 | CB37: 234 | CC37: 0.9879519172 | CD37: 0.7588016322 | CE37: 0.01234567901 | CF37: 0.6126591011 | CG37: 0.6944444444 | CH37: 1 | CI37: 0 | CJ37: 0.4444444444 | CK37: 0.008183540488 | CL37: 1 | CM37: 1 | CN37: 0.9253501487 | CO37: 0.887726127 | CP37: 0.8329115564 | CQ37: 1 | CR37: 1 | CS37: 2.076489895e-07 | CT37: 0.613975989 | CU37: 0.6552115668 | CV37: 0.5925028331 | CW37: 0.9004798551 | CX37: 1 | CY37: 0.8414857064 | CZ37: 0.715409324 | DM37: 65 | DN37: 230 | DO37: 0.09365833533 | DP37: 0 | DQ37: 41.921142 | DR37: -71.581706 | DS37: Currently a filled site for a road across reservoir; unlikely road will be destroyed to provide wetland restoration | DT37: https://www.google.com/maps/place/41%C2%B055'16.1%22N+71%C2%B034'54.1%22W/@41.921142,-71.5838947,756m/data=!3m2!1e3!4b1!4m5!3m4!1s0x0:0x0!8m2!3d41.921142!4d-71.581706 | DW37: Bird | DX37: TRUE | DY37: FALSE | DZ37: TRUE | EA37: FALSE | EB37: FALSE | EC37: FALSE | EF37: RE1 | EG37: =View_Reliability*0.01 -> 0 | EH37: 0
B38: 236 | C38: 4 | D38: 0.686358 | E38: 3 | F38: 12.877526 | G38: 0 | H38: 1 | I38: YES | J38: 3 | K38: 6.655366 | L38: 0 | M38: 16.9322 | N38: 58 | O38: 91 | P38: 34016 | Q38: NO | R38: NO | S38: 41690.61175 | T38: 74.553692 | U38: 78.2165894 | V38: 66.06520865 | W38: 21 | X38: NO | Y38: 6.779979 | Z38: 7.663917 | AB38: 236 | AC38: 4 | AD38: 0.686358 | AE38: 3 | AF38: 12.877526 | AG38: 0 | AH38: 1 | AI38: 1 | AJ38: 3 | AK38: 6.655366 | AL38: 0 | AM38: 16.9322 | AN38: 58 | AO38: 91 | AP38: 34016 | AQ38: 0 | AR38: 0 | AS38: 41690.61175 | AT38: 74.553692 | AU38: 78.2165894 | AV38: 66.06520865 | AW38: 21 | AX38: 0 | AY38: 6.779979 | AZ38: 7.663917 | BB38: 236 | BC38: 0.006042296073 | BD38: 0.12889097 | BE38: 0.6666666667 | BF38: 0.214084748 | BG38: 0 | BH38: 0.02380952381 | BI38: 1 | BJ38: 0.3333333333 | BK38: 0.900067926 | BL38: 0 | BM38: 0.2023413301 | BN38: 0.0487804878 | BO38: 0.06531531532 | BP38: 0.08945058774 | BQ38: 0 | BR38: 0 | BS38: 0.9995393951 | BT38: 0.2224102097 | BU38: 0.1703487539 | BV38: 0.2273967091 | BW38: 0.04468085106 | BX38: 0 | BY38: 0.07812820062 | BZ38: 0.07663917 | CB38: 236 | CC38: 0.9879519172 | CD38: 0.7588309421 | CE38: 0.1111111111 | CF38: 0.6176627832 | CG38: 1 | CH38: 0.9529478458 | CI38: 0 | CJ38: 0.4444444444 | CK38: 0.009986419404 | CL38: 1 | CM38: 0.6362593536 | CN38: 0.9048185604 | CO38: 0.8736354598 | CP38: 0.8291002322 | CQ38: 1 | CR38: 1 | CS38: 2.121569002e-07 | CT38: 0.604645882 | CU38: 0.6883211901 | CV38: 0.5969158452 | CW38: 0.9126346763 | CX38: 1 | CY38: 0.8498476145 | CZ38: 0.8525952224 | DM38: 50 | DN38: 234 | DO38: 0.08009866904 | DP38: 0.1533317761 | DQ38: 41.915764 | DR38: -71.581431 | DS38: Forested land adjacent (east) of industries/commercial buildings (Industrial Driver / Farnum Pike), norhteast of Stillwater Reservoir | DT38: https://www.google.com/maps/place/41%C2%B054'56.8%22N+71%C2%B034'53.1%22W/@41.915764,-71.5836197,756m/data=!3m2!1e3!4b1!4m5!3m4!1s0x0:0x0!8m2!3d41.915764!4d-71.581431 | DW38: Equity | DX38: TRUE | DY38: TRUE | DZ38: TRUE | EA38: FALSE | EB38: FALSE | EC38: FALSE | EF38: sum | EG38: =SUM(EG14:EG37) -> 1
B39: 237 | C39: 16 | D39: 3.569925 | E39: 4 | F39: 14.29727 | G39: 0 | H39: 2 | I39: NO | J39: 5 | K39: 21.174021 | L39: 0 | M39: 10.571294 | N39: 29 | O39: 48 | P39: 53726 | Q39: NO | R39: YES | S39: 2450.837614 | T39: 58.264538 | U39: 64.1698718 | V39: 62.63310334 | W39: 9 | X39: NO | Y39: 32.51538 | Z39: 32.692354 | AB39: 237 | AC39: 16 | AD39: 3.569925 | AE39: 4 | AF39: 14.29727 | AG39: 0 | AH39: 2 | AI39: 0 | AJ39: 5 | AK39: 21.174021 | AL39: 0 | AM39: 10.571294 | AN39: 29 | AO39: 48 | AP39: 53726 | AQ39: 0 | AR39: 1 | AS39: 2450.837614 | AT39: 58.264538 | AU39: 64.1698718 | AV39: 62.63310334 | AW39: 9 | AX39: 0 | AY39: 32.51538 | AZ39: 32.692354 | BB39: 237 | BC39: 0.02416918429 | BD39: 0.750835135 | BE39: 0.5555555556 | BF39: 0.08781673749 | BG39: 0 | BH39: 0.04761904762 | BI39: 0 | BJ39: 0.6666666667 | BK39: 0.6820664961 | BL39: 0 | BM39: 0.5064932444 | BN39: 0.02048780488 | BO39: 0.03303303303 | BP39: 0.2529552789 | BQ39: 0 | BR39: 1 | BS39: 0.05875668227 | BT39: 0.4390858908 | BU39: 0.3511050542 | BV39: 0.4185550684 | BW39: 0.01914893617 | BX39: 0 | BY39: 0.3746867257 | BZ39: 0.32692354 | CB39: 237 | CC39: 0.9522457809 | CD39: 0.06208312994 | CE39: 0.1975308642 | CF39: 0.8320783044 | CG39: 1 | CH39: 0.9070294785 | CI39: 1 | CJ39: 0.1111111111 | CK39: 0.1010817129 | CL39: 1 | CM39: 0.2435489178 | CN39: 0.9594441404 | CO39: 0.9350251152 | CP39: 0.5580758154 | CQ39: 1 | CR39: 0 | CS39: 0.8859389832 | CT39: 0.3146246379 | CU39: 0.4210646507 | CV39: 0.3380782084 | CW39: 0.9620688094 | CX39: 1 | CY39: 0.391016691 | CZ39: 0.453031921 | DM39: 51 | DN39: 236 | DO39: 0.08041025584 | DP39: 0.149808374 | DQ39: 41.917544 | DR39: -71.5488 | DS39: Partially forested/developed/paved land with parking lot (United Rental Cars), west of Farnum Pike | DT39: https://www.google.com/maps/place/41%C2%B055'03.2%22N+71%C2%B032'55.7%22W/@41.917544,-71.5509887,756m/data=!3m2!1e3!4b1!4m5!3m4!1s0x0:0x0!8m2!3d41.917544!4d-71.5488 | DW39: Reliability | DX39: TRUE | DY39: FALSE | DZ39: FALSE | EA39: FALSE | EB39: FALSE | EC39: FALSE
B40: 248 | C40: 16 | D40: 1.244277 | E40: 5 | F40: 15.284672 | G40: 4 | H40: 12 | I40: YES | J40: 3 | K40: 2.107693 | L40: 0 | M40: 9.115848 | N40: 286 | O40: 368 | P40: 35658 | Q40: NO | R40: NO | S40: 3.15993 | T40: 41.040459 | U40: 53.8537374 | V40: 64.07165492 | W40: 119 | X40: NO | Y40: 27.547065 | Z40: 46.559758 | AB40: 248 | AC40: 16 | AD40: 1.244277 | AE40: 5 | AF40: 15.284672 | AG40: 4 | AH40: 12 | AI40: 1 | AJ40: 3 | AK40: 2.107693 | AL40: 0 | AM40: 9.115848 | AN40: 286 | AO40: 368 | AP40: 35658 | AQ40: 0 | AR40: 0 | AS40: 3.15993 | AT40: 41.040459 | AU40: 53.8537374 | AV40: 64.07165492 | AW40: 119 | AX40: 0 | AY40: 27.547065 | AZ40: 46.559758 | BB40: 248 | BC40: 0.02416918429 | BD40: 0.2492261197 | BE40: 0.4444444444 | BF40: 0 | BG40: 0.2222222222 | BH40: 0.2857142857 | BI40: 1 | BJ40: 0.3333333333 | BK40: 0.9683524343 | BL40: 0 | BM40: 0.5760865834 | BN40: 0.2712195122 | BO40: 0.2732732733 | BP40: 0.1030718309 | BQ40: 0 | BR40: 0 | BS40: 7.304042629e-05 | BT40: 0.6681977924 | BU40: 0.4838553764 | BV40: 0.3384318977 | BW40: 0.2531914894 | BX40: 0 | BY40: 0.3174349981 | BZ40: 0.46559758 | CB40: 248 | CC40: 0.9522457809 | CD40: 0.5636614193 | CE40: 0.3086419753 | CF40: 1 | CG40: 0.6049382716 | CH40: 0.5102040816 | CI40: 0 | CJ40: 0.4444444444 | CK40: 0.001001568415 | CL40: 1 | CM40: 0.1797025848 | CN40: 0.5311209994 | CO40: 0.5281317353 | CP40: 0.8044801405 | CQ40: 1 | CR40: 1 | CS40: 0.9998539245 | CT40: 0.110092705 | CU40: 0.2664052725 | CV40: 0.4376723539 | CW40: 0.5577229516 | CX40: 1 | CY40: 0.4658949819 | CZ40: 0.2855859465 | DM40: 45 | DN40: 237 | DO40: 0.07211116646 | DP40: 0.2436539073 | DQ40: 41.914275 | DR40: -71.513378 | DS40: Forested and, adjacent (East) of CVS Health Business Integration Center parking log, North of wetland, south of Smithfield Peat Co., West of forested land | DT40: https://www.google.com/maps/place/41%C2%B054'51.4%22N+71%C2%B030'48.2%22W/@41.914275,-71.5155667,756m/data=!3m2!1e3!4b1!4m5!3m4!1s0x0:0x0!8m2!3d41.914275!4d-71.513378
B41: 256 | C41: 434 | D41: 4.725147 | E41: 3 | F41: 5.380073 | G41: 14 | H41: 42 | I41: YES | J41: 4 | K41: 4.033008 | L41: 1 | M41: 2.627076 | N41: 852 | O41: 933 | P41: 137402 | Q41: YES | R41: YES | S41: 43.310015 | T41: 31.0356 | U41: 18.3973302 | V41: 53.40713967 | W41: 398 | X41: YES | Y41: 73.267032 | Z41: 12.30323 | AB41: 256 | AC41: 434 | AD41: 4.725147 | AE41: 3 | AF41: 5.380073 | AG41: 14 | AH41: 42 | AI41: 1 | AJ41: 4 | AK41: 4.033008 | AL41: 1 | AM41: 2.627076 | AN41: 852 | AO41: 933 | AP41: 137402 | AQ41: 1 | AR41: 1 | AS41: 43.310015 | AT41: 31.0356 | AU41: 18.3973302 | AV41: 53.40713967 | AW41: 398 | AX41: 1 | AY41: 73.267032 | AZ41: 12.30323 | BB41: 256 | BC41: 0.6555891239 | BD41: 1 | BE41: 0.6666666667 | BF41: 0.8808869846 | BG41: 0.7777777778 | BH41: 1 | BI41: 1 | BJ41: 0.5 | BK41: 0.9394433223 | BL41: 0.3333333333 | BM41: 0.8863525148 | BN41: 0.8234146341 | BO41: 0.6974474474 | BP41: 0.9470911761 | BQ41: 1 | BR41: 1 | BS41: 0.001035648054 | BT41: 0.801280802 | BU41: 0.9401163455 | BV41: 0.9324146141 | BW41: 0.8468085106 | BX41: 1 | BY41: 0.8442830538 | BZ41: 0.1230323 | CB41: 256 | CC41: 0.1186188516 | CD41: 0 | CE41: 0.1111111111 | CF41: 0.01418791044 | CG41: 0.04938271605 | CH41: 0 | CI41: 0 | CJ41: 0.25 | CK41: 0.003667111212 | CL41: 0.4444444444 | CM41: 0.01291575088 | CN41: 0.03118239143 | CO41: 0.09153804706 | CP41: 0.002799343651 | CQ41: 0 | CR41: 0 | CS41: 0.9979297765 | CT41: 0.03948931965 | CU41: 0.00358605208 | CV41: 0.004567784385 | CW41: 0.02346763241 | CX41: 0 | CY41: 0.02424776734 | CZ41: 0.7690723468 | DM41: 35 | DN41: 248 | DO41: 0.06494219237 | DP41: 0.3247201745 | DQ41: 41.878672 | DR41: -71.551792 | DS41: Forested land south of Deerfield Park, north of residential properties | DT41: https://www.google.com/maps/place/41%C2%B052'43.2%22N+71%C2%B033'06.5%22W/@41.878672,-71.5539807,757m/data=!3m2!1e3!4b1!4m5!3m4!1s0x0:0x0!8m2!3d41.878672!4d-71.551792
B42: 258 | C42: 389 | D42: 2.113896 | E42: 3 | F42: 5.377642 | G42: 4 | H42: 6 | I42: YES | J42: 5 | K42: 2.897568 | L42: 0 | M42: 2.86521 | N42: 603 | O42: 1216 | P42: 134540 | Q42: YES | R42: YES | S42: 4.408878 | T42: 16.096371 | U42: 32.3729124 | V42: 53.04446469 | W42: 104 | X42: YES | Y42: 74.497073 | Z42: 0.211614 | AB42: 258 | AC42: 389 | AD42: 2.113896 | AE42: 3 | AF42: 5.377642 | AG42: 4 | AH42: 6 | AI42: 1 | AJ42: 5 | AK42: 2.897568 | AL42: 0 | AM42: 2.86521 | AN42: 603 | AO42: 1216 | AP42: 134540 | AQ42: 1 | AR42: 1 | AS42: 4.408878 | AT42: 16.096371 | AU42: 32.3729124 | AV42: 53.04446469 | AW42: 104 | AX42: 1 | AY42: 74.497073 | AZ42: 0.211614 | BB42: 258 | BC42: 0.5876132931 | BD42: 0.4367905019 | BE42: 0.6666666667 | BF42: 0.8811031909 | BG42: 0.2222222222 | BH42: 0.1428571429 | BI42: 1 | BJ42: 0.6666666667 | BK42: 0.9564922531 | BL42: 0 | BM42: 0.8749659432 | BN42: 0.5804878049 | BO42: 0.9099099099 | BP42: 0.923349399 | BQ42: 1 | BR42: 1 | BS42: 0.0001029842451 | BT42: 1 | BU42: 0.7602754315 | BV42: 0.952614564 | BW42: 0.2212765957 | BX42: 1 | BY42: 0.8584572702 | BZ42: 0.00211614 | CB42: 258 | CC42: 0.1700627961 | CD42: 0.3172049388 | CE42: 0.1111111111 | CF42: 0.01413645122 | CG42: 0.6049382716 | CH42: 0.7346938776 | CI42: 0 | CJ42: 0.1111111111 | CK42: 0.001892924043 | CL42: 1 | CM42: 0.01563351536 | CN42: 0.1759904819 | CO42: 0.008116224332 | CP42: 0.005875314635 | CQ42: 0 | CR42: 0 | CS42: 0.9997940421 | CT42: 0 | CU42: 0.05746786876 | CV42: 0.002245379546 | CW42: 0.6064101403 | CX42: 0 | CY42: 0.02003434435 | CZ42: 0.995772198 | DM42: 3 | DN42: 256 | DO42: 0.005975355913 | DP42: 0.9915131156 | DQ42: 41.832156 | DR42: -71.46495 | DS42: Grassed land North of Woony River, adjacent (E) of Stop & Shop complex (Manton Avenue) | DT42: https://www.google.com/maps/place/41%C2%B049'55.8%22N+71%C2%B027'53.8%22W/@41.832156,-71.4671387,757m/data=!3m2!1e3!4b1!4m5!3m4!1s0x0:0x0!8m2!3d41.832156!4d-71.46495
B43: 259 | C43: 403 | D43: 0.793972 | E43: 3 | F43: 5.871465 | G43: 8 | H43: 20 | I43: YES | J43: 3 | K43: 1.622382 | L43: 1 | M43: 2.306482 | N43: 705 | O43: 1118 | P43: 133854 | Q43: YES | R43: YES | S43: 0.793959 | T43: 18.729362 | U43: 25.611833 | V43: 52.81953658 | W43: 243 | X43: YES | Y43: 73.164085 | Z43: 0 | AB43: 259 | AC43: 403 | AD43: 0.793972 | AE43: 3 | AF43: 5.871465 | AG43: 8 | AH43: 20 | AI43: 1 | AJ43: 3 | AK43: 1.622382 | AL43: 1 | AM43: 2.306482 | AN43: 705 | AO43: 1118 | AP43: 133854 | AQ43: 1 | AR43: 1 | AS43: 0.793959 | AT43: 18.729362 | AU43: 25.611833 | AV43: 52.81953658 | AW43: 243 | AX43: 1 | AY43: 73.164085 | AZ43: 0 | BB43: 259 | BC43: 0.6087613293 | BD43: 0.1521017709 | BE43: 0.6666666667 | BF43: 0.8371839718 | BG43: 0.4444444444 | BH43: 0.4761904762 | BI43: 1 | BJ43: 0.3333333333 | BK43: 0.9756395068 | BL43: 0.3333333333 | BM43: 0.9016819787 | BN43: 0.68 | BO43: 0.8363363363 | BP43: 0.9176586726 | BQ43: 1 | BR43: 1 | BS43: 1.63157212e-05 | BT43: 0.9649763813 | BU43: 0.8472785117 | BV43: 0.9651424102 | BW43: 0.5170212766 | BX43: 1 | BY43: 0.8430967575 | BZ43: 0 | CB43: 259 | CC43: 0.1530676974 | CD43: 0.718931407 | CE43: 0.1111111111 | CF43: 0.02650905905 | CG43: 0.3086419753 | CH43: 0.2743764172 | CI43: 0 | CJ43: 0.4444444444 | CK43: 0.0005934336276 | CL43: 0.4444444444 | CM43: 0.009666433307 | CN43: 0.1024 | CO43: 0.0267857948 | CP43: 0.006780094206 | CQ43: 0 | CR43: 0 | CS43: 0.9999673688 | CT43: 0.001226653865 | CU43: 0.023323853 | CV43: 0.001215051568 | CW43: 0.2332684473 | CX43: 0 | CY43: 0.02461862751 | CZ43: 1 | DM43: 13 | DN43: 258 | DO43: 0.01939785743 | DP43: 0.8397323893 | DQ43: 41.825639 | DR43: -71.467653 | DS43: Partial wetland/cleared/filled sites with existing Schnitzer Steel facility, commercial property surrounds (Oakdale Avenue / Celia Street) **appears that the wetland can be restored, but that is only part of the polygon | DT43: https://www.google.com/maps/place/41%C2%B049'32.3%22N+71%C2%B028'03.5%22W/@41.825639,-71.4698417,757m/data=!3m2!1e3!4b1!4m5!3m4!1s0x0:0x0!8m2!3d41.825639!4d-71.467653
B44: 278 | C44: 8 | D44: 0.714776 | E44: 0 | F44: 13.186747 | G44: 0 | H44: 0 | I44: NO | J44: 4 | K44: 32.584146 | L44: 0 | M44: 16.469871 | N44: 51 | O44: 75 | P44: 38623 | Q44: NO | R44: NO | S44: 14.46572 | T44: 67.544156 | U44: 79.7869874 | V44: 66.98621829 | W44: 3 | X44: NO | Y44: 3.603628 | Z44: 52.52059 | AB44: 278 | AC44: 8 | AD44: 0.714776 | AE44: 0 | AF44: 13.186747 | AG44: 0 | AH44: 0 | AI44: 0 | AJ44: 4 | AK44: 32.584146 | AL44: 0 | AM44: 16.469871 | AN44: 51 | AO44: 75 | AP44: 38623 | AQ44: 0 | AR44: 0 | AS44: 14.46572 | AT44: 67.544156 | AU44: 79.7869874 | AV44: 66.98621829 | AW44: 3 | AX44: 0 | AY44: 3.603628 | AZ44: 52.52059 | BB44: 278 | BC44: 0.01208459215 | BD44: 0.1350203262 | BE44: 1 | BF44: 0.186583508 | BG44: 0 | BH44: 0 | BI44: 0 | BJ44: 0.5 | BK44: 0.510740463 | BL44: 0 | BM44: 0.2244479688 | BN44: 0.04195121951 | BO44: 0.0533033033 | BP44: 0.1276680465 | BQ44: 0 | BR44: 0 | BS44: 0.0003440993715 | BT44: 0.3156499192 | BU44: 0.1501405216 | BV44: 0.1760991308 | BW44: 0.006382978723 | BX44: 0 | BY44: 0.0415259356 | BZ44: 0.5252059 | CB44: 278 | CC44: =(ABS(BC44-1))^2 -> 0.9759768531 | CD44: 0.7481898361 | CE44: 0 | CF44: 0.6616463894 | CG44: 1 | CH44: 1 | CI44: 1 | CJ44: 0.25 | CK44: 0.2393748945 | CL44: 1 | CM44: 0.6014809531 | CN44: 0.9178574658 | CO44: 0.8962346355 | CP44: 0.7609630371 | CQ44: 1 | CR44: 1 | CS44: 0.9993119197 | CT44: 0.4683350331 | CU44: 0.722261133 | CV44: 0.6788126423 | CW44: 0.987274785 | CX44: 1 | CY44: 0.9186725321 | CZ44: 0.2254294374 | DM44: 6 | DN44: 259 | DO44: 0.01065783219 | DP44: 0.9385639951 | DQ44: 41.82195 | DR44: -71.467722 | DS44: Partially cleared/paved parking lot at BD's Discount, adjacent (East) of residential neighborhood (Ceila Street), adjacent (South) of State Route 6 | DT44: https://www.google.com/maps/place/41%C2%B049'19.0%22N+71%C2%B028'03.8%22W/@41.82195,-71.4699107,757m/data=!3m2!1e3!4b1!4m5!3m4!1s0x0:0x0!8m2!3d41.82195!4d-71.467722
B45: 286 | C45: 2 | D45: 0.874246 | E45: 2 | F45: 12.799209 | G45: 0 | H45: 0 | I45: NO | J45: 3 | K45: 66.598898 | L45: 0 | M45: 20.765737 | N45: 31 | O45: 91 | P45: 35779 | Q45: NO | R45: NO | S45: 1405.896254 | T45: 79.555362 | U45: 78.1856664 | V45: 69.2930271 | W45: 3 | X45: NO | Y45: 3.315505 | Z45: 100 | AB45: 286 | AC45: 2 | AD45: 0.874246 | AE45: 2 | AF45: 12.799209 | AG45: 0 | AH45: 0 | AI45: 0 | AJ45: 3 | AK45: 66.598898 | AL45: 0 | AM45: 20.765737 | AN45: 31 | AO45: 91 | AP45: 35779 | AQ45: 0 | AR45: 0 | AS45: 1405.896254 | AT45: 79.555362 | AU45: 78.1856664 | AV45: 69.2930271 | AW45: 3 | AX45: 0 | AY45: 3.315505 | AZ45: 100 | BB45: 286 | BC45: 0.003021148036 | BD45: 0.1694157247 | BE45: 0.7777777778 | BF45: 0.2210500402 | BG45: 0 | BH45: 0 | BI45: 0 | BJ45: 0.3333333333 | BK45: 0 | BL45: 0 | BM45: 0.01903762827 | BN45: 0.02243902439 | BO45: 0.06531531532 | BP45: 0.1040755888 | BQ45: 0 | BR45: 0 | BS45: 0.0337039701 | BT45: 0.1558788076 | BU45: 0.170746678 | BV45: 0.04761653813 | BW45: 0.006382978723 | BX45: 0 | BY45: 0.03820578792 | BZ45: 1 | CB45: 286 | CC45: 0.9939668313 | CD45: 0.6898702384 | CE45: 0.04938271605 | CF45: 0.6067630398 | CG45: 1 | CH45: 1 | CI45: 1 | CJ45: 0.4444444444 | CK45: 1 | CL45: 1 | CM45: 0.9622871747 | CN45: 0.955625461 | CO45: 0.8736354598 | CP45: 0.8026805506 | CQ45: 1 | CR45: 1 | CS45: 0.9337280174 | CT45: 0.7125405874 | CU45: 0.687661072 | CV45: 0.9070342584 | CW45: 0.987274785 | CX45: 1 | CY45: 0.9250481064 | CZ45: 0 | DM45: 59 | DN45: 278 | DO45: 0.08698385628 | DP45: 0.07547455124 | DQ45: 41.949528 | DR45: -71.552983 | DS45: Currently filled/gravel on Material Sand Stone Concrete property | DT45: https://www.google.com/maps/place/41%C2%B056'58.3%22N+71%C2%B033'10.7%22W/@41.949528,-71.5551717,756m/data=!3m2!1e3!4b1!4m5!3m4!1s0x0:0x0!8m2!3d41.949528!4d-71.552983
B46: 287 | C46: 2 | D46: 0.245426 | E46: 2 | F46: 12.597823 | G46: 0 | H46: 0 | I46: NO | J46: 4 | K46: 11.396332 | L46: 0 | M46: 19.127447 | N46: 33 | O46: 90 | P46: 34677 | Q46: NO | R46: NO | S46: 52.598464 | T46: 80.305002 | U46: 82.6221258 | V46: 69.80711851 | W46: 9 | X46: NO | Y46: 0.97935 | Z46: 97.338212 | AB46: 287 | AC46: 2 | AD46: 0.245426 | AE46: 2 | AF46: 12.597823 | AG46: 0 | AH46: 0 | AI46: 0 | AJ46: 4 | AK46: 11.396332 | AL46: 0 | AM46: 19.127447 | AN46: 33 | AO46: 90 | AP46: 34677 | AQ46: 0 | AR46: 0 | AS46: 52.598464 | AT46: 80.305002 | AU46: 82.6221258 | AV46: 69.80711851 | AW46: 9 | AX46: 0 | AY46: 0.97935 | AZ46: 97.338212 | BB46: 287 | BC46: 0.003021148036 | BD46: 0.03378824323 | BE46: 0.7777777778 | BF46: 0.2389607407 | BG46: 0 | BH46: 0 | BI46: 0 | BJ46: 0.5 | BK46: 0.8288810725 | BL46: 0 | BM46: 0.09737380235 | BN46: 0.0243902439 | BO46: 0.06456456456 | BP46: 0.09493392619 | BQ46: 0 | BR46: 0 | BS46: 0.001258340779 | BT46: 0.1459072181 | BU46: 0.1136573273 | BV46: 0.01898313075 | BW46: 0.01914893617 | BX46: 0 | BY46: 0.01128541154 | BZ46: 0.97338212 | CB46: 287 | CC46: 0.9939668313 | CD46: 0.9335651589 | CE46: 0.04938271605 | CF46: 0.5791807541 | CG46: 1 | CH46: 1 | CI46: 1 | CJ46: 0.25 | CK46: 0.02928168736 | CL46: 1 | CM46: 0.8147340527 | CN46: 0.9518143962 | CO46: 0.8750394539 | CP46: 0.819144598 | CQ46: 1 | CR46: 1 | CS46: 0.9974849019 | CT46: 0.7294744801 | CU46: 0.7856033334 | CV46: 0.9623940978 | CW46: 0.9620688094 | CX46: 1 | CY46: 0.9775565374 | CZ46: 0.0007085115357 | DM46: =RANK(DP46,$DP$14:$DP$78) -> 62 | DN46: 286 | DO46: 0.08895485442 | DP46: =((DO46-$DO$80)/ABS($DO$79-$DO$80))*-1 -> 0.05318663946 | DQ46: 41.957908 | DR46: -71.568889 | DS46: Forested land South of Mattity Swamp, surrounded by foreste on S/E/W | DT46: https://www.google.com/maps/place/41%C2%B057'28.5%22N+71%C2%B034'08.0%22W/@41.957908,-71.5710777,756m/data=!3m2!1e3!4b1!4m5!3m4!1s0x0:0x0!8m2!3d41.957908!4d-71.568889
B47: 288 | C47: 2 | D47: 0.736158 | E47: 2 | F47: 12.30184 | G47: 1 | H47: 9 | I47: YES | J47: 4 | K47: 17.57502 | L47: 0 | M47: 14.136993 | N47: 107 | O47: 51 | P47: 34034 | Q47: NO | R47: NO | S47: 1369.845122 | T47: 82.045265 | U47: 83.6256884 | V47: 70.14794642 | W47: 61 | X47: NO | Y47: 0 | Z47: 77.45539 | AB47: 288 | AC47: 2 | AD47: 0.736158 | AE47: 2 | AF47: 12.30184 | AG47: 1 | AH47: 9 | AI47: 1 | AJ47: 4 | AK47: 17.57502 | AL47: 0 | AM47: 14.136993 | AN47: 107 | AO47: 51 | AP47: 34034 | AQ47: 0 | AR47: 0 | AS47: 1369.845122 | AT47: 82.045265 | AU47: 83.6256884 | AV47: 70.14794642 | AW47: 61 | AX47: 0 | AY47: 0 | AZ47: 77.45539 | BB47: 288 | BC47: 0.003021148036 | BD47: 0.1396321178 | BE47: 0.7777777778 | BF47: 0.2652846305 | BG47: 0.05555555556 | BH47: 0.2142857143 | BI47: 1 | BJ47: 0.5 | BK47: 0.7361064443 | BL47: 0 | BM47: 0.3359964352 | BN47: 0.09658536585 | BO47: 0.03528528529 | BP47: 0.08959990709 | BQ47: 0 | BR47: 0 | BS47: 0.03283963582 | BT47: 0.1227585223 | BU47: 0.1007432596 | BV47: 0 | BW47: 0.129787234 | BX47: 0 | BY47: 0 | BZ47: 0.7745539 | CB47: 288 | CC47: 0.9939668313 | CD47: 0.7402328926 | CE47: 0.04938271605 | CF47: 0.5398066742 | CG47: 0.8919753086 | CH47: 0.6173469388 | CI47: 0 | CJ47: 0.25 | CK47: 0.06963980875 | CL47: 1 | CM47: 0.440900734 | CN47: 0.8161580012 | CO47: 0.9306744808 | CP47: 0.8288283292 | CQ47: 1 | CR47: 1 | CS47: 0.93539917 | CT47: 0.7695526102 | CU47: 0.8086626852 | CV47: 1 | CW47: 0.757270258 | CX47: 1 | CY47: 1 | CZ47: 0.05082594401 | DM47: 63 | DN47: 287 | DO47: 0.09001524808 | DP47: 0.04119578072 | DQ47: 41.956217 | DR47: -71.572758 | DS47: Forested land | DT47: https://www.google.com/maps/place/41%C2%B057'22.4%22N+71%C2%B034'21.9%22W/@41.956217,-71.5749467,756m/data=!3m2!1e3!4b1!4m5!3m4!1s0x0:0x0!8m2!3d41.956217!4d-71.572758
B48: 290 | C48: 6 | D48: 4.052411 | E48: 1 | F48: 12.396193 | G48: 0 | H48: 0 | I48: NO | J48: 6 | K48: 24.342511 | L48: 0 | M48: 12.573181 | N48: 8 | O48: 27 | P48: 26260 | Q48: NO | R48: NO | S48: 1385.882549 | T48: 91.273954 | U48: 88.4023834 | V48: 68.92956925 | W48: 2 | X48: NO | Y48: 0 | Z48: 39.399858 | AB48: 290 | AC48: 6 | AD48: 4.052411 | AE48: 1 | AF48: 12.396193 | AG48: 0 | AH48: 0 | AI48: 0 | AJ48: 6 | AK48: 24.342511 | AL48: 0 | AM48: 12.573181 | AN48: 8 | AO48: 27 | AP48: 26260 | AQ48: 0 | AR48: 0 | AS48: 1385.882549 | AT48: 91.273954 | AU48: 88.4023834 | AV48: 68.92956925 | AW48: 2 | AX48: 0 | AY48: 0 | AZ48: 39.399858 | BB48: 290 | BC48: 0.009063444109 | BD48: 0.8549004654 | BE48: 0.8888888889 | BF48: 0.2568931419 | BG48: 0 | BH48: 0 | BI48: 0 | BJ48: 0.8333333333 | BK48: 0.6344907839 | BL48: 0 | BM48: 0.4107713829 | BN48: 0 | BO48: 0.01726726727 | BP48: 0.0251105378 | BQ48: 0 | BR48: 0 | BS48: 0.03322413686 | BT48: 0 | BU48: 0.03927568116 | BV48: 0.06786009144 | BW48: 0.004255319149 | BX48: 0 | BY48: 0 | BZ48: 0.39399858 | CB48: 290 | CC48: 0.9819552578 | CD48: 0.02105387495 | CE48: 0.01234567901 | CF48: 0.5522078025 | CG48: 1 | CH48: 1 | CI48: 1 | CJ48: 0.02777777778 | CK48: 0.133596987 | CL48: 1 | CM48: 0.3471903632 | CN48: 1 | CO48: 0.965763624 | CP48: 0.9504094635 | CQ48: 1 | CR48: 1 | CS48: 0.9346555695 | CT48: 1 | CU48: 0.9229912168 | CV48: 0.8688848091 | CW48: 0.9915074694 | CX48: 1 | CY48: 1 | CZ48: 0.367237721 | DM48: 56 | DN48: 288 | DO48: 0.08549091537 | DP48: 0.09235662462 | DQ48: 41.955047 | DR48: -71.577686 | DS48: Forested land | DT48: https://www.google.com/maps/place/41%C2%B057'18.2%22N+71%C2%B034'39.7%22W/@41.955047,-71.5798747,756m/data=!3m2!1e3!4b1!4m5!3m4!1s0x0:0x0!8m2!3d41.955047!4d-71.577686
B49: 340 | C49: 0 | D49: 0.270757 | E49: 2 | F49: 14.706591 | G49: 0 | H49: 1 | I49: NO | J49: 4 | K49: 1.872356 | L49: 1 | M49: 8.277581 | N49: 33 | O49: 43 | P49: 40658 | Q49: NO | R49: NO | S49: 273.356074 | T49: 74.336844 | U49: 75.6313356 | V49: 65.41401372 | W49: 1 | X49: NO | Y49: 4.221421 | Z49: 69.74796 | AB49: 340 | AC49: 0 | AD49: 0.270757 | AE49: 2 | AF49: 14.706591 | AG49: 0 | AH49: 1 | AI49: 0 | AJ49: 4 | AK49: 1.872356 | AL49: 1 | AM49: 8.277581 | AN49: 33 | AO49: 43 | AP49: 40658 | AQ49: 0 | AR49: 0 | AS49: 273.356074 | AT49: 74.336844 | AU49: 75.6313356 | AV49: 65.41401372 | AW49: 1 | AX49: 0 | AY49: 4.221421 | AZ49: 69.74796 | BB49: 340 | BC49: 0 | BD49: 0.03925177768 | BE49: 0.7777777778 | BF49: 0.05141288698 | BG49: 0 | BH49: 0.02380952381 | BI49: 0 | BJ49: 0.5 | BK49: 0.9718860814 | BL49: 0.3333333333 | BM49: 0.6161690044 | BN49: 0.0243902439 | BO49: 0.02927927928 | BP49: 0.1445494289 | BQ49: 0 | BR49: 0 | BS49: 0.006551055831 | BT49: 0.2252946866 | BU49: 0.2036163774 | BV49: 0.263666387 | BW49: 0.002127659574 | BX49: 0 | BY49: 0.04864499238 | BZ49: 0.6974796 | CB49: 340 | CC49: 1 | CD49: 0.9230371467 | CE49: 0.04938271605 | CF49: 0.899817511 | CG49: 1 | CH49: 0.9529478458 | CI49: 1 | CJ49: 0.25 | CK49: 0.0007903924214 | CL49: 0.4444444444 | CM49: 0.1473262332 | CN49: 0.9518143962 | CO49: 0.9422987176 | CP49: 0.7317956797 | CQ49: 1 | CR49: 1 | CS49: 0.9869408047 | CT49: 0.6001683226 | CU49: 0.6342268743 | CV49: 0.5421871896 | CW49: 0.9957492078 | CX49: 1 | CY49: 0.9050763505 | CZ49: 0.09151859242 | DM49: 64 | DN49: 290 | DO49: 0.09322093888 | DP49: 0.004946049143 | DQ49: 41.922731 | DR49: -71.575744 | DS49: Partially forested/cleared land adjacent to waterway, no road names, appears former commercial/industrial operation nearby | DT49: https://www.google.com/maps/place/41%C2%B055'21.8%22N+71%C2%B034'32.7%22W/@41.922731,-71.5779327,794m/data=!3m2!1e3!4b1!4m5!3m4!1s0x0:0x0!8m2!3d41.922731!4d-71.575744
B50: 343 | C50: 14 | D50: 3.028187 | E50: 3 | F50: 13.390318 | G50: 1 | H50: 2 | I50: YES | J50: 5 | K50: 10.68047 | L50: 0 | M50: 12.484715 | N50: 61 | O50: 66 | P50: 43244 | Q50: NO | R50: NO | S50: 268.535482 | T50: 67.560318 | U50: 68.8795686 | V50: 64.0289912 | W50: 22 | X50: NO | Y50: 24.683843 | Z50: 22.588487 | AB50: 343 | AC50: 14 | AD50: 3.028187 | AE50: 3 | AF50: 13.390318 | AG50: 1 | AH50: 2 | AI50: 1 | AJ50: 5 | AK50: 10.68047 | AL50: 0 | AM50: 12.484715 | AN50: 61 | AO50: 66 | AP50: 43244 | AQ50: 0 | AR50: 0 | AS50: 268.535482 | AT50: 67.560318 | AU50: 68.8795686 | AV50: 64.0289912 | AW50: 22 | AX50: 0 | AY50: 24.683843 | AZ50: 22.588487 | BB50: 343 | BC50: 0.02114803625 | BD50: 0.6339899956 | BE50: 0.6666666667 | BF50: 0.1684784798 | BG50: 0.05555555556 | BH50: 0.04761904762 | BI50: 1 | BJ50: 0.6666666667 | BK50: 0.839629929 | BL50: 0 | BM50: 0.4150014569 | BN50: 0.05170731707 | BO50: 0.04654654655 | BP50: 0.1660016425 | BQ50: 0 | BR50: 0 | BS50: 0.006435481017 | BT50: 0.3154349349 | BU50: 0.2904996236 | BV50: 0.3408081438 | BW50: 0.04680851064 | BX50: 0 | BY50: 0.2844410341 | BZ50: 0.22588487 | CB50: 343 | CC50: 0.9581511669 | CD50: 0.1339633233 | CE50: 0.1111111111 | CF50: 0.6914280385 | CG50: 0.8919753086 | CH50: 0.9070294785 | CI50: 0 | CJ50: 0.1111111111 | CK50: 0.02571855967 | CL50: 1 | CM50: 0.3422232954 | CN50: 0.8992590125 | CO50: 0.9090734879 | CP50: 0.6955532603 | CQ50: 1 | CR50: 1 | CS50: 0.9871704534 | CT50: 0.4686293283 | CU50: 0.5033907842 | CV50: 0.4345339033 | CW50: 0.9085740154 | CX50: 1 | CY50: 0.5120246337 | CZ50: 0.5992542345 | DM50: 58 | DN50: 340 | DO50: 0.08679704061 | DP50: 0.07758704997 | DQ50: 41.940472 | DR50: -71.537833 | DS50: Cleared/grassed land on North Smithfield Elementary School property (Providence Pike) | DT50: https://www.google.com/maps/place/41%C2%B056'25.7%22N+71%C2%B032'16.2%22W/@41.940472,-71.5400217,793m/data=!3m2!1e3!4b1!4m5!3m4!1s0x0:0x0!8m2!3d41.940472!4d-71.537833
B51: 349 | C51: 36 | D51: 2.057093 | E51: 4 | F51: 8.004328 | G51: 7 | H51: 12 | I51: YES | J51: 4 | K51: 10.713286 | L51: 0 | M51: 10.062535 | N51: 653 | O51: 477 | P51: 120570 | Q51: NO | R51: YES | S51: 30.620474 | T51: 31.054664 | U51: 32.785481 | V51: 54.51846452 | W51: 254 | X51: NO | Y51: 76.295214 | Z51: 0.637555 | AB51: 349 | AC51: 36 | AD51: 2.057093 | AE51: 4 | AF51: 8.004328 | AG51: 7 | AH51: 12 | AI51: 1 | AJ51: 4 | AK51: 10.713286 | AL51: 0 | AM51: 10.062535 | AN51: 653 | AO51: 477 | AP51: 120570 | AQ51: 0 | AR51: 1 | AS51: 30.620474 | AT51: 31.054664 | AU51: 32.785481 | AV51: 54.51846452 | AW51: 254 | AX51: 0 | AY51: 76.295214 | AZ51: 0.637555 | BB51: 349 | BC51: 0.05438066465 | BD51: 0.4245389071 | BE51: 0.5555555556 | BF51: 0.647493177 | BG51: 0.3888888889 | BH51: 0.2857142857 | BI51: 1 | BJ51: 0.5 | BK51: 0.8391371881 | BL51: 0 | BM51: 0.5308199714 | BN51: 0.6292682927 | BO51: 0.3551051051 | BP51: 0.8074609903 | BQ51: 0 | BR51: 1 | BS51: 0.0007314133565 | BT51: 0.8010272158 | BU51: 0.7549664065 | BV51: 0.8705170276 | BW51: 0.5404255319 | BX51: 0 | BY51: 0.8791779127 | BZ51: 0.00637555 | CB51: 349 | CC51: 0.8941959274 | CD51: 0.3311554694 | CE51: 0.1975308642 | CF51: 0.1242610603 | CG51: 0.3734567901 | CH51: 0.5102040816 | CI51: 0 | CJ51: 0.25 | CK51: 0.02587684424 | CL51: 1 | CM51: 0.2201298992 | CN51: 0.1374419988 | CO51: 0.4158894255 | CP51: 0.03707127025 | CQ51: 1 | CR51: 0 | CS51: 0.9985377083 | CT51: 0.03959016886 | CU51: 0.06004146193 | CV51: 0.01676584014 | CW51: 0.2112086917 | CX51: 1 | CY51: 0.01459797678 | CZ51: 0.9872895476 | DM51: 48 | DN51: 343 | DO51: 0.07871920715 | DP51: 0.1689306366 | DQ51: 41.914614 | DR51: -71.52875 | DS51: Forested/cleared land on tributary, adacent to commercial business (Smithfield Diesel), north of George Washington Highway | DT51: https://www.google.com/maps/place/41%C2%B054'52.6%22N+71%C2%B031'43.5%22W/@41.914614,-71.5309387,756m/data=!3m2!1e3!4b1!4m5!3m4!1s0x0:0x0!8m2!3d41.914614!4d-71.52875
B52: 370 | C52: 7 | D52: 0.512219 | E52: 5 | F52: 14.779365 | G52: 1 | H52: 11 | I52: YES | J52: 6 | K52: 12.749758 | L52: 0 | M52: 10.131367 | N52: 307 | O52: 315 | P52: 32730 | Q52: NO | R52: NO | S52: 21.248413 | T52: 47.976547 | U52: 46.1781238 | V52: 64.6287557 | W52: 116 | X52: NO | Y52: 21.856152 | Z52: 39.51886 | AB52: 370 | AC52: 7 | AD52: 0.512219 | AE52: 5 | AF52: 14.779365 | AG52: 1 | AH52: 11 | AI52: 1 | AJ52: 6 | AK52: 12.749758 | AL52: 0 | AM52: 10.131367 | AN52: 307 | AO52: 315 | AP52: 32730 | AQ52: 0 | AR52: 0 | AS52: 21.248413 | AT52: 47.976547 | AU52: 46.1781238 | AV52: 64.6287557 | AW52: 116 | AX52: 0 | AY52: 21.856152 | AZ52: 39.51886 | BB52: 370 | BC52: 0.01057401813 | BD52: 0.09133167802 | BE52: 0.4444444444 | BF52: 0.04494057352 | BG52: 0.05555555556 | BH52: 0.2619047619 | BI52: 1 | BJ52: 0.8333333333 | BK52: 0.8085590245 | BL52: 0 | BM52: 0.5275287132 | BN52: 0.2917073171 | BO52: 0.2334834835 | BP52: 0.07878254954 | BQ52: 0 | BR52: 0 | BS52: 0.0005067160139 | BT52: 0.5759350763 | BU52: 0.582626887 | BV52: 0.3074029922 | BW52: 0.2468085106 | BX52: 0 | BY52: 0.251856507 | BZ52: 0.3951886 | CB52: 370 | CC52: 0.9789637736 | CD52: 0.8256781194 | CE52: 0.3086419753 | CF52: 0.9121385081 | CG52: 0.8919753086 | CH52: 0.5447845805 | CI52: 0 | CJ52: 0.02777777778 | CK52: 0.0366496471 | CL52: 1 | CM52: 0.2232291169 | CN52: 0.5016785247 | CO52: 0.5875475701 | CP52: 0.848641591 | CQ52: 1 | CR52: 1 | CS52: 0.9989868247 | CT52: 0.1798310595 | CU52: 0.1742003155 | CV52: 0.4796906153 | CW52: 0.5672974196 | CX52: 1 | CY52: 0.5597186862 | CZ52: 0.3657968296 | DM52: 20 | DN52: 349 | DO52: 0.03942189921 | DP52: 0.6133018986 | DQ52: 41.823756 | DR52: -71.486608 | DS52: Cleared/filled site, adjacent (S) of forested land, East of Woodland St. (Apartments), North of commercial business (Hartford Avenue) | DT52: https://www.google.com/maps/place/41%C2%B049'25.5%22N+71%C2%B029'11.8%22W/@41.823756,-71.4887967,795m/data=!3m2!1e3!4b1!4m5!3m4!1s0x0:0x0!8m2!3d41.823756!4d-71.486608
B53: 379 | C53: 71 | D53: 0.283226 | E53: 3 | F53: 8.023309 | G53: 7 | H53: 15 | I53: YES | J53: 1 | K53: 0 | L53: 0 | M53: 3.881245 | N53: 588 | O53: 721 | P53: 112503 | Q53: NO | R53: NO | S53: 723.41531 | T53: 32.413399 | U53: 37.744828 | V53: 56.33660559 | W53: 219 | X53: NO | Y53: 68.734675 | Z53: 39.107705 | AB53: 379 | AC53: 71 | AD53: 0.283226 | AE53: 3 | AF53: 8.023309 | AG53: 7 | AH53: 15 | AI53: 1 | AJ53: 1 | AK53: 0 | AL53: 0 | AM53: 3.881245 | AN53: 588 | AO53: 721 | AP53: 112503 | AQ53: 0 | AR53: 0 | AS53: 723.41531 | AT53: 32.413399 | AU53: 37.744828 | AV53: 56.33660559 | AW53: 219 | AX53: 0 | AY53: 68.734675 | AZ53: 39.107705 | BB53: 379 | BC53: 0.1072507553 | BD53: 0.04194116267 | BE53: 0.6666666667 | BF53: 0.6458050606 | BG53: 0.3888888889 | BH53: 0.3571428571 | BI53: 1 | BJ53: 0 | BK53: 1 | BL53: 0 | BM53: 0.8263834 | BN53: 0.5658536585 | BO53: 0.5382882883 | BP53: 0.7405410338 | BQ53: 0 | BR53: 0 | BS53: 0.01734133071 | BT53: 0.7829535435 | BU53: 0.6911484214 | BV53: 0.769251818 | BW53: 0.4659574468 | BX53: 0 | BY53: 0.7920550311 | BZ53: 0.39107705 | CB53: 379 | CC53: 0.7970012139 | CD53: 0.9178767358 | CE53: 0.1111111111 | CF53: 0.1254540551 | CG53: 0.3734567901 | CH53: 0.4132653061 | CI53: 0 | CJ53: 1 | CK53: 0 | CL53: 1 | CM53: 0.03014272378 | CN53: 0.1884830458 | CO53: 0.2131777047 | CP53: 0.06731895515 | CQ53: 1 | CR53: 1 | CS53: 0.9656180603 | CT53: 0.04710916429 | CU53: 0.09538929762 | CV53: 0.05324472349 | CW53: 0.2852014486 | CX53: 1 | CY53: 0.04324111009 | CZ53: 0.370787159 | DM53: 37 | DN53: 370 | DO53: 0.06650838547 | DP53: 0.3070097703 | DQ53: 41.880811 | DR53: -71.555022 | DS53: Forested land adjacent (East) of cul-de-sac (Lodgepole Lane), west of cleared land, near Deerfield Park | DT53: https://www.google.com/maps/place/41%C2%B052'50.9%22N+71%C2%B033'18.1%22W/@41.880811,-71.5572107,757m/data=!3m2!1e3!4b1!4m5!3m4!1s0x0:0x0!8m2!3d41.880811!4d-71.555022
B54: 380 | C54: 71 | D54: 0.210163 | E54: 3 | F54: 7.551428 | G54: 7 | H54: 12 | I54: YES | J54: 1 | K54: 0 | L54: 0 | M54: 5.579685 | N54: 509 | O54: 654 | P54: 115911 | Q54: NO | R54: NO | S54: 723.536012 | T54: 30.401662 | U54: 39.1700686 | V54: 56.12196247 | W54: 193 | X54: NO | Y54: 67.944299 | Z54: 38.531733 | AB54: 380 | AC54: 71 | AD54: 0.210163 | AE54: 3 | AF54: 7.551428 | AG54: 7 | AH54: 12 | AI54: 1 | AJ54: 1 | AK54: 0 | AL54: 0 | AM54: 5.579685 | AN54: 509 | AO54: 654 | AP54: 115911 | AQ54: 0 | AR54: 0 | AS54: 723.536012 | AT54: 30.401662 | AU54: 39.1700686 | AV54: 56.12196247 | AW54: 193 | AX54: 0 | AY54: 67.944299 | AZ54: 38.531733 | BB54: 380 | BC54: 0.1072507553 | BD54: 0.02618251842 | BE54: 0.6666666667 | BF54: 0.6877728203 | BG54: 0.3888888889 | BH54: 0.2857142857 | BI54: 1 | BJ54: 0 | BK54: 1 | BL54: 0 | BM54: 0.7451711046 | BN54: 0.4887804878 | BO54: 0.487987988 | BP54: 0.7688121645 | BQ54: 0 | BR54: 0 | BS54: 0.01734422456 | BT54: 0.8097133423 | BU54: 0.6728081069 | BV54: 0.7812068206 | BW54: 0.4106382979 | BX54: 0 | BY54: 0.7829472367 | BZ54: 0.38531733 | CB54: 380 | CC54: 0.7970012139 | CD54: 0.9483204874 | CE54: 0.1111111111 | CF54: 0.09748581173 | CG54: 0.3734567901 | CH54: 0.5102040816 | CI54: 0 | CJ54: 1 | CK54: 0 | CL54: 1 | CM54: 0.06493776593 | CN54: 0.2613453896 | CO54: 0.2621563004 | CP54: 0.05344781526 | CQ54: 1 | CR54: 1 | CS54: 0.965612373 | CT54: 0.03620901208 | CU54: 0.1070545349 | CV54: 0.04787045537 | CW54: 0.3473472159 | CX54: 1 | CY54: 0.04711190205 | CZ54: 0.3778347848 | DM54: 23 | DN54: 379 | DO54: 0.04548429237 | DP54: 0.5447487727 | DQ54: 41.865431 | DR54: -71.47885 | DS54: Forested land inside Peter Randall State Park, adjacent (N) to residential neighborhood (St. Johns Circle) | DT54: https://www.google.com/maps/place/41%C2%B051'55.5%22N+71%C2%B028'43.9%22W/@41.865431,-71.4810387,757m/data=!3m2!1e3!4b1!4m5!3m4!1s0x0:0x0!8m2!3d41.865431!4d-71.47885
B55: 396 | C55: 23 | D55: 0.331447 | E55: 3 | F55: 14.744824 | G55: 3 | H55: 7 | I55: YES | J55: 4 | K55: 7.730865 | L55: 0 | M55: 16.360651 | N55: 100 | O55: 194 | P55: 54968 | Q55: NO | R55: NO | S55: 3.837884 | T55: 66.115151 | U55: 55.9577654 | V55: 61.43039341 | W55: 53 | X55: NO | Y55: 56.189678 | Z55: 1.813555 | AB55: 396 | AC55: 23 | AD55: 0.331447 | AE55: 3 | AF55: 14.744824 | AG55: 3 | AH55: 7 | AI55: 1 | AJ55: 4 | AK55: 7.730865 | AL55: 0 | AM55: 16.360651 | AN55: 100 | AO55: 194 | AP55: 54968 | AQ55: 0 | AR55: 0 | AS55: 3.837884 | AT55: 66.115151 | AU55: 55.9577654 | AV55: 61.43039341 | AW55: 53 | AX55: 0 | AY55: 56.189678 | AZ55: 1.813555 | BB55: 396 | BC55: 0.03474320242 | BD55: 0.05234174277 | BE55: 0.6666666667 | BF55: 0.04801255224 | BG55: 0.1666666667 | BH55: 0.1666666667 | BI55: 1 | BJ55: 0.5 | BK55: 0.8839190252 | BL55: 0 | BM55: 0.2296704123 | BN55: 0.08975609756 | BO55: 0.1426426426 | BP55: 0.2632583142 | BQ55: 0 | BR55: 0 | BS55: 8.929453115e-05 | BT55: 0.3346583116 | BU55: 0.456780274 | BV55: 0.48554254 | BW55: 0.1127659574 | BX55: 0 | BY55: 0.6474944001 | BZ55: 0.01813555 | CB55: 396 | CC55: 0.9317206853 | CD55: 0.8980561725 | CE55: 0.1111111111 | CF55: 0.9062801007 | CG55: 0.6944444444 | CH55: 0.6944444444 | CI55: 0 | CJ55: 0.25 | CK55: 0.01347479271 | CL55: 1 | CM55: 0.5934076737 | CN55: 0.8285439619 | CO55: 0.7350616382 | CP55: 0.5427883116 | CQ55: 1 | CR55: 1 | CS55: 0.9998214189 | CT55: 0.4426795623 | CU55: 0.2950876707 | CV55: 0.2646664782 | CW55: 0.7871842463 | CX55: 1 | CY55: 0.124260198 | CZ55: 0.9640577982 | DM55: 25 | DN55: 380 | DO55: 0.04738063529 | DP55: 0.5233050571 | DQ55: 41.865292 | DR55: -71.475869 | DS55: Forested land inside Peter Randall State Park, adjacent (N) to residential neighborhood (Bicentennial Way) | DT55: https://www.google.com/maps/place/41%C2%B051'55.0%22N+71%C2%B028'33.1%22W/@41.865292,-71.4780577,794m/data=!3m2!1e3!4b1!4m5!3m4!1s0x0:0x0!8m2!3d41.865292!4d-71.475869
B56: 399 | C56: 23 | D56: 0.306108 | E56: 3 | F56: 14.44711 | G56: 0 | H56: 0 | I56: NO | J56: 7 | K56: 29.8235 | L56: 0 | M56: 13.484182 | N56: 37 | O56: 61 | P56: 59775 | Q56: NO | R56: NO | S56: 4487.998648 | T56: 72.239337 | U56: 69.5480526 | V56: 60.55680132 | W56: 10 | X56: NO | Y56: 63.546207 | Z56: 5.633588 | AB56: 399 | AC56: 23 | AD56: 0.306108 | AE56: 3 | AF56: 14.44711 | AG56: 0 | AH56: 0 | AI56: 0 | AJ56: 7 | AK56: 29.8235 | AL56: 0 | AM56: 13.484182 | AN56: 37 | AO56: 61 | AP56: 59775 | AQ56: 0 | AR56: 0 | AS56: 4487.998648 | AT56: 72.239337 | AU56: 69.5480526 | AV56: 60.55680132 | AW56: 10 | AX56: 0 | AY56: 63.546207 | AZ56: 5.633588 | BB56: 399 | BC56: 0.03474320242 | BD56: 0.04687648284 | BE56: 0.6666666667 | BF56: 0.07449039225 | BG56: 0 | BH56: 0 | BI56: 0 | BJ56: 1 | BK56: 0.55219229 | BL56: 0 | BM56: 0.3672111262 | BN56: 0.02829268293 | BO56: 0.04279279279 | BP56: 0.3031348769 | BQ56: 0 | BR56: 0 | BS56: 0.1075980919 | BT56: 0.2531953841 | BU56: 0.2818974221 | BV56: 0.5341990974 | BW56: 0.02127659574 | BX56: 0 | BY56: 0.7322663992 | BZ56: 0.05633588 | CB56: 399 | CC56: 0.9317206853 | CD56: 0.908444439 | CE56: 0.1111111111 | CF56: 0.856568034 | CG56: 1 | CH56: 1 | CI56: 1 | CJ56: 0 | CK56: 0.2005317451 | CL56: 1 | CM56: 0.4004217588 | CN56: 0.9442151101 | CO56: 0.9162456375 | CP56: 0.4856209999 | CQ56: 1 | CR56: 1 | CS56: 0.7963811655 | CT56: 0.5577171344 | CU56: 0.5156713124 | CV56: 0.2169704808 | CW56: 0.957899502 | CX56: 1 | CY56: 0.07168128101 | CZ56: 0.8905019714 | DM56: 40 | DN56: 396 | DO56: 0.06860379882 | DP56: 0.28331498 | DQ56: 41.859756 | DR56: -71.540894 | DS56: Forested land adjacent (N) of residential home, off Winsor Avenue | DT56: https://www.google.com/maps/place/41%C2%B051'35.1%22N+71%C2%B032'27.2%22W/@41.859756,-71.5430827,757m/data=!3m2!1e3!4b1!4m5!3m4!1s0x0:0x0!8m2!3d41.859756!4d-71.540894
B57: 406 | C57: 2 | D57: 0.316401 | E57: 3 | F57: 13.869399 | G57: 0 | H57: 0 | I57: NO | J57: 2 | K57: 10.268096 | L57: 0 | M57: 8.217487 | N57: 76 | O57: 160 | P57: 27132 | Q57: NO | R57: NO | S57: 41690.92815 | T57: 59.184283 | U57: 63.973813 | V57: 66.38975487 | W57: 13 | X57: NO | Y57: 5.899707 | Z57: 23.773134 | AB57: 406 | AC57: 2 | AD57: 0.316401 | AE57: 3 | AF57: 13.869399 | AG57: 0 | AH57: 0 | AI57: 0 | AJ57: 2 | AK57: 10.268096 | AL57: 0 | AM57: 8.217487 | AN57: 76 | AO57: 160 | AP57: 27132 | AQ57: 0 | AR57: 0 | AS57: 41690.92815 | AT57: 59.184283 | AU57: 63.973813 | AV57: 66.38975487 | AW57: 13 | AX57: 0 | AY57: 5.899707 | AZ57: 23.773134 | BB57: 406 | BC57: 0.003021148036 | BD57: 0.04909653574 | BE57: 0.6666666667 | BF57: 0.1258703725 | BG57: 0 | BH57: 0 | BI57: 0 | BJ57: 0.1666666667 | BK57: 0.8458218333 | BL57: 0 | BM57: 0.6190424481 | BN57: 0.06634146341 | BO57: 0.1171171171 | BP57: 0.03234423088 | BQ57: 0 | BR57: 0 | BS57: 0.9995469807 | BT57: 0.4268515922 | BU57: 0.3536279826 | BV57: 0.2093204212 | BW57: 0.02765957447 | BX57: 0 | BY57: 0.06798450144 | BZ57: 0.23773134 | CB57: 406 | CC57: 0.9939668313 | CD57: 0.9042173983 | CE57: 0.1111111111 | CF57: 0.7641026057 | CG57: 1 | CH57: 1 | CI57: 1 | CJ57: 0.6944444444 | CK57: 0.0237709071 | CL57: 1 | CM57: 0.1451286563 | CN57: 0.8717182629 | CO57: 0.7794821849 | CP57: 0.9363576875 | CQ57: 1 | CR57: 1 | CS57: 2.052264507e-07 | CT57: 0.3284990974 | CU57: 0.4177967849 | CV57: 0.6251741963 | CW57: 0.9454459031 | CX57: 1 | CY57: 0.8686528896 | CZ57: 0.58105351 | DM57: 46 | DN57: 399 | DO57: 0.0733598709 | DP57: 0.2295336432 | DQ57: 41.851742 | DR57: -71.540428 | DS57: Forested land West of residential property (Brown Avenue), East of wetland/stream | DT57: https://www.google.com/maps/place/41%C2%B051'06.3%22N+71%C2%B032'25.5%22W/@41.851742,-71.5426167,757m/data=!3m2!1e3!4b1!4m5!3m4!1s0x0:0x0!8m2!3d41.851742!4d-71.540428 | DW57: Default_Values
B58: 423 | C58: 71 | D58: 0.59454 | E58: 3 | F58: 7.068393 | G58: 3 | H58: 13 | I58: YES | J58: 2 | K58: 5.361313 | L58: 0 | M58: 4.344827 | N58: 665 | O58: 949 | P58: 126862 | Q58: NO | R58: YES | S58: 4.974855 | T58: 20.516655 | U58: 28.9464474 | V58: 55.58518209 | W58: 188 | X58: NO | Y58: 66.019214 | Z58: 0 | AB58: 423 | AC58: 71 | AD58: 0.59454 | AE58: 3 | AF58: 7.068393 | AG58: 3 | AH58: 13 | AI58: 1 | AJ58: 2 | AK58: 5.361313 | AL58: 0 | AM58: 4.344827 | AN58: 665 | AO58: 949 | AP58: 126862 | AQ58: 0 | AR58: 1 | AS58: 4.974855 | AT58: 20.516655 | AU58: 28.9464474 | AV58: 55.58518209 | AW58: 188 | AX58: 0 | AY58: 66.019214 | AZ58: 0 | BB58: 423 | BC58: 0.1072507553 | BD58: 0.1090871405 | BE58: 0.6666666667 | BF58: 0.7307325852 | BG58: 0.1666666667 | BH58: 0.3095238095 | BI58: 1 | BJ58: 0.1666666667 | BK58: 0.9194984728 | BL58: 0 | BM58: 0.8042168482 | BN58: 0.6409756098 | BO58: 0.7094594595 | BP58: 0.8596563996 | BQ58: 0 | BR58: 1 | BS58: 0.0001165536754 | BT58: 0.9412021001 | BU58: 0.8043679486 | BV58: 0.8111039382 | BW58: 0.4 | BX58: 0 | BY58: 0.7607637717 | BZ58: 0 | CB58: 423 | CC58: 0.7970012139 | CD58: 0.7937257233 | CE58: 0.1111111111 | CF58: 0.07250494065 | CG58: 0.6944444444 | CH58: 0.4767573696 | CI58: 0 | CJ58: 0.6944444444 | CK58: 0.006480495884 | CL58: 1 | CM58: 0.03833104254 | CN58: 0.1288985128 | CO58: 0.0844138057 | CP58: 0.01969632618 | CQ58: 1 | CR58: 0 | CS58: 0.9997669062 | CT58: 0.003457193033 | CU58: 0.03827189954 | CV58: 0.03568172217 | CW58: 0.36 | CX58: 1 | CY58: 0.05723397295 | CZ58: 1 | DM58: 49 | DN58: 406 | DO58: 0.07894363247 | DP58: 0.1663928505 | DQ58: 41.887906 | DR58: -71.567011 | DS58: Cleared/filled land on timbered property | DT58: https://www.google.com/maps/place/41%C2%B053'16.5%22N+71%C2%B034'01.2%22W/@41.887906,-71.5691997,757m/data=!3m2!1e3!4b1!4m5!3m4!1s0x0:0x0!8m2!3d41.887906!4d-71.567011 | DX58: Scenario 1 | DY58: Scenario 2 | DZ58: Scenario 3 | EA58: Scenario 4
B59: 424 | C59: 441 | D59: 0.96258 | E59: 5 | F59: 6.32144 | G59: 2 | H59: 11 | I59: YES | J59: 3 | K59: 1.426605 | L59: 3 | M59: 0.494061 | N59: 531 | O59: 1057 | P59: 134777 | Q59: NO | R59: NO | S59: 12.327618 | T59: 23.482743 | U59: 23.7267708 | V59: 54.29610119 | W59: 172 | X59: NO | Y59: 74.651219 | Z59: 0 | AB59: 424 | AC59: 441 | AD59: 0.96258 | AE59: 5 | AF59: 6.32144 | AG59: 2 | AH59: 11 | AI59: 1 | AJ59: 3 | AK59: 1.426605 | AL59: 3 | AM59: 0.494061 | AN59: 531 | AO59: 1057 | AP59: 134777 | AQ59: 0 | AR59: 0 | AS59: 12.327618 | AT59: 23.482743 | AU59: 23.7267708 | AV59: 54.29610119 | AW59: 172 | AX59: 0 | AY59: 74.651219 | AZ59: 0 | BB59: 424 | BC59: 0.666163142 | BD59: 0.1884681053 | BE59: 0.4444444444 | BF59: 0.7971644696 | BG59: 0.1111111111 | BH59: 0.2619047619 | BI59: 1 | BJ59: 0.3333333333 | BK59: 0.9785791501 | BL59: 1 | BM59: 0.9883443687 | BN59: 0.5102439024 | BO59: 0.7905405405 | BP59: 0.9253154371 | BQ59: 0 | BR59: 0 | BS59: 0.0002928378787 | BT59: 0.9017476792 | BU59: 0.8715359132 | BV59: 0.8829020236 | BW59: 0.3659574468 | BX59: 0 | BY59: 0.8602335515 | BZ59: 0 | CB59: 424 | CC59: 0.1114470478 | CD59: 0.6585840162 | CE59: 0.3086419753 | CF59: 0.04114225238 | CG59: 0.7901234568 | CH59: 0.5447845805 | CI59: 0 | CJ59: 0.4444444444 | CK59: 0.000458852812 | CL59: 0 | CM59: 0.0001358537399 | CN59: 0.2398610351 | CO59: 0.04387326516 | CP59: 0.005577783931 | CQ59: 1 | CR59: =(ABS(BR59-1))^2 -> 1 | CS59: 0.99941441 | CT59: 0.009653518538 | CU59: 0.0165030216 | CV59: 0.01371193609 | CW59: 0.4020099593 | CX59: 1 | CY59: 0.01953466013 | CZ59: 1 | DM59: 21 | DN59: 423 | DO59: 0.04143983469 | DP59: 0.5904832227 | DQ59: 41.862697 | DR59: -71.467497 | DS59: Forested land adjacent to commercial/residential (Woodman Avenue / Mineral Spring Avenue) | DT59: https://www.google.com/maps/place/41%C2%B051'45.7%22N+71%C2%B028'03.0%22W/@41.862697,-71.4696857,757m/data=!3m2!1e3!4b1!4m5!3m4!1s0x0:0x0!8m2!3d41.862697!4d-71.467497 | DX59: 15 | DY59: 85
B60: 425 | C60: 389 | D60: 3.421459 | E60: 3 | F60: 5.563046 | G60: 18 | H60: 38 | I60: YES | J60: 4 | K60: 2.712863 | L60: 1 | M60: 3.549633 | N60: 1014 | O60: 828 | P60: 135326 | Q60: YES | R60: YES | S60: 39.23839 | T60: 30.215698 | U60: 18.3808438 | V60: 53.64000395 | W60: 470 | X60: YES | Y60: 75.426019 | Z60: 14.9765 | AB60: 425 | AC60: 389 | AD60: 3.421459 | AE60: 3 | AF60: 5.563046 | AG60: 18 | AH60: 38 | AI60: 1 | AJ60: 4 | AK60: 2.712863 | AL60: 1 | AM60: 3.549633 | AN60: 1014 | AO60: 828 | AP60: 135326 | AQ60: 1 | AR60: 1 | AS60: 39.23839 | AT60: 30.215698 | AU60: 18.3808438 | AV60: 53.64000395 | AW60: 470 | AX60: 1 | AY60: 75.426019 | AZ60: 14.9765 | BB60: 425 | BC60: 0.5876132931 | BD60: 0.718813142 | BE60: 0.6666666667 | BF60: 0.8646138842 | BG60: 1 | BH60: 0.9047619048 | BI60: 1 | BJ60: 0.5 | BK60: 0.9592656473 | BL60: 0.3333333333 | BM60: 0.8422396986 | BN60: 0.9814634146 | BO60: 0.6186186186 | BP60: 0.9298696774 | BQ60: 1 | BR60: 1 | BS60: 0.0009380298973 | BT60: 0.8121870053 | BU60: 0.9403284961 | BV60: 0.9194447459 | BW60: 1 | BX60: 1 | BY60: 0.8691618579 | BZ60: 0.149765 | CB60: 425 | CC60: =(ABS(BC60-1))^2 -> 0.1700627961 | CD60: 0.07906604912 | CE60: 0.1111111111 | CF60: 0.01832940036 | CG60: 0 | CH60: 0.009070294785 | CI60: 0 | CJ60: 0.25 | CK60: 0.001659287489 | CL60: 0.4444444444 | CM60: 0.0248883127 | CN60: 0.000343604997 | CO60: 0.1454517581 | CP60: 0.00491826215 | CQ60: 0 | CR60: 0 | CS60: 0.9981248201 | CT60: 0.03527372099 | CU60: 0.003560688372 | CV60: 0.006489148964 | CW60: 0 | CX60: 0 | CY60: =(ABS(BY60-1))^2 -> 0.01711861943 | CZ60: 0.7228995552 | DM60: 24 | DN60: 424 | DO60: 0.04653432611 | DP60: 0.5328750632 | DQ60: 41.845028 | DR60: -71.467411 | DS60: Forested land east/south of Fruit Hill Avenue and residential developed, North of Rhode Island College, west of forested land | DT60: https://www.google.com/maps/place/41%C2%B050'42.1%22N+71%C2%B028'02.7%22W/@41.845028,-71.4695997,757m/data=!3m2!1e3!4b1!4m5!3m4!1s0x0:0x0!8m2!3d41.845028!4d-71.467411 | DX60: 14 | EA60: 10
B61: 427 | C61: 393 | D61: 1.761646 | E61: 3 | F61: 5.653589 | G61: 7 | H61: 13 | I61: YES | J61: 4 | K61: 2.762739 | L61: 0 | M61: 2.971251 | N61: 671 | O61: 1301 | P61: 133638 | Q61: YES | R61: YES | S61: 6.100003 | T61: 16.468736 | U61: 31.5671522 | V61: 53.13289113 | W61: 197 | X61: YES | Y61: 74.878779 | Z61: 0 | AB61: 427 | AC61: 393 | AD61: 1.761646 | AE61: 3 | AF61: 5.653589 | AG61: 7 | AH61: 13 | AI61: 1 | AJ61: 4 | AK61: 2.762739 | AL61: 0 | AM61: 2.971251 | AN61: 671 | AO61: 1301 | AP61: 133638 | AQ61: 1 | AR61: 1 | AS61: 6.100003 | AT61: 16.468736 | AU61: 31.5671522 | AV61: 53.13289113 | AW61: 197 | AX61: 1 | AY61: 74.878779 | AZ61: 0 | BB61: 427 | BC61: 0.5936555891 | BD61: 0.3608152143 | BE61: 0.6666666667 | BF61: 0.8565612462 | BG61: 0.3888888889 | BH61: 0.3095238095 | BI61: 1 | BJ61: 0.5 | BK61: 0.958516746 | BL61: 0 | BM61: 0.8698955062 | BN61: 0.6468292683 | BO61: 0.9737237237 | BP61: 0.9158668403 | BQ61: 1 | BR61: 1 | BS61: 0.0001435293604 | BT61: 0.9950468612 | BU61: 0.7706441337 | BV61: 0.9476894665 | BW61: 0.4191489362 | BX61: 1 | BY61: 0.8628558094 | BZ61: 0 | CB61: 427 | CC61: 0.1651157803 | CD61: 0.4085571903 | CE61: 0.1111111111 | CF61: 0.0205746761 | CG61: 0.3734567901 | CH61: 0.4767573696 | CI61: 0 | CJ61: 0.25 | CK61: 0.00172086036 | CL61: 1 | CM61: 0.01692717931 | CN61: 0.1247295657 | CO61: 0.0006904426949 | CP61: 0.007078388558 | CQ61: 0 | CR61: 0 | CS61: 0.9997129619 | CT61: 2.453358354e-05 | CU61: 0.0526041134 | CV61: 0.002736391916 | CW61: 0.3373879584 | CX61: 0 | CY61: 0.01880852902 | CZ61: 1 | DM61: 2 | DN61: 425 | DO61: 0.005478572877 | DP61: 0.997130704 | DQ61: 41.832478 | DR61: -71.468536 | DS61: Forested land adjacent (N) of Woony River, adjacent S/W of Stop & Shop complex (Manton Avenue) | DT61: https://www.google.com/maps/place/41%C2%B049'56.9%22N+71%C2%B028'06.7%22W/@41.832478,-71.4707247,757m/data=!3m2!1e3!4b1!4m5!3m4!1s0x0:0x0!8m2!3d41.832478!4d-71.468536 | DX61: 14 | EA61: 10
B62: 430 | C62: 423 | D62: 1.682751 | E62: 0 | F62: 4.040779 | G62: 15 | H62: 34 | I62: YES | J62: 2 | K62: 0 | L62: 2 | M62: 0.2503 | N62: 1025 | O62: 1203 | P62: 143780 | Q62: NO | R62: YES | S62: 170.078664 | T62: 30.836975 | U62: 13.7437232 | V62: 52.91237759 | W62: 402 | X62: NO | Y62: 67.772612 | Z62: 52.522723 | AB62: 430 | AC62: 423 | AD62: 1.682751 | AE62: 0 | AF62: 4.040779 | AG62: 15 | AH62: 34 | AI62: 1 | AJ62: 2 | AK62: 0 | AL62: 2 | AM62: 0.2503 | AN62: 1025 | AO62: 1203 | AP62: 143780 | AQ62: 0 | AR62: 1 | AS62: 170.078664 | AT62: 30.836975 | AU62: 13.7437232 | AV62: 52.91237759 | AW62: 402 | AX62: 0 | AY62: 67.772612 | AZ62: 52.522723 | BB62: 430 | BC62: 0.6389728097 | BD62: 0.343798691 | BE62: 1 | BF62: 1 | BG62: 0.8333333333 | BH62: 0.8095238095 | BI62: 1 | BJ62: 0.1666666667 | BK62: 1 | BL62: 0.6666666667 | BM62: 1 | BN62: 0.992195122 | BO62: 0.9001501502 | BP62: 1 | BQ62: 0 | BR62: 1 | BS62: 0.004074955902 | BT62: 0.8039228795 | BU62: 1 | BV62: 0.9599714337 | BW62: 0.8553191489 | BX62: 0 | BY62: 0.780968824 | BZ62: 0.52522723 | CB62: 430 | CC62: 0.1303406322 | CD62: 0.4306001579 | CE62: 0 | CF62: 0 | CG62: 0.02777777778 | CH62: 0.03628117914 | CI62: 0 | CJ62: 0.6944444444 | CK62: 0 | CL62: 0.1111111111 | CM62: 0 | CN62: 6.091612136e-05 | CO62: 0.009969992515 | CP62: 0 | CQ62: 1 | CR62: 0 | CS62: 0.9918666935 | CT62: 0.03844623718 | CU62: 0 | CV62: 0.001602286121 | CW62: 0.02093254866 | CX62: 1 | CY62: 0.04797465605 | CZ62: 0.2254091831 | DM62: 11 | DN62: 427 | DO62: 0.01305743168 | DP62: 0.9114294887 | DQ62: 41.824089 | DR62: -71.469436 | DS62: Partially forested/cleared/filled land with abandoned truck trailers and miscellaneous debris, adjacent (South) of commercial businesses off Lucia Street / Maria Avenue, North of on/off ramp to State Route 6 | DT62: https://www.google.com/maps/place/41%C2%B049'26.7%22N+71%C2%B028'10.0%22W/@41.824089,-71.4716247,757m/data=!3m2!1e3!4b1!4m5!3m4!1s0x0:0x0!8m2!3d41.824089!4d-71.469436 | DX62: 14 | DZ62: 60 | EA62: 80
B63: 435 | C63: 35 | D63: 0.315083 | E63: 9 | F63: 12.776981 | G63: 1 | H63: 0 | I63: NO | J63: 5 | K63: 26.615498 | L63: 0 | M63: 13.576258 | N63: 79 | O63: 175 | P63: 47265 | Q63: NO | R63: NO | S63: 99.474891 | T63: 60.40639 | U63: 55.2748798 | V63: 62.62448795 | W63: 19 | X63: NO | Y63: 41.42007 | Z63: 33.409052 | AB63: 435 | AC63: 35 | AD63: 0.315083 | AE63: 9 | AF63: 12.776981 | AG63: 1 | AH63: 0 | AI63: 0 | AJ63: 5 | AK63: 26.615498 | AL63: 0 | AM63: 13.576258 | AN63: 79 | AO63: 175 | AP63: 47265 | AQ63: 0 | AR63: 0 | AS63: 99.474891 | AT63: 60.40639 | AU63: 55.2748798 | AV63: 62.62448795 | AW63: 19 | AX63: 0 | AY63: 41.42007 | AZ63: 33.409052 | BB63: 435 | BC63: 0.05287009063 | BD63: 0.04881226199 | BE63: 0 | BF63: 0.2230269356 | BG63: 0.05555555556 | BH63: 0 | BI63: 0 | BJ63: 0.6666666667 | BK63: 0.6003612853 | BL63: 0 | BM63: 0.3628084371 | BN63: 0.06926829268 | BO63: 0.1283783784 | BP63: 0.1993579268 | BQ63: 0 | BR63: 0 | BS63: 0.002382214021 | BT63: 0.4105953233 | BU63: 0.4655677985 | BV63: 0.4190349205 | BW63: 0.04042553191 | BX63: 0 | BY63: 0.4772987554 | BZ63: 0.33409052 | CB63: 435 | CC63: 0.8970550652 | CD63: 0.9047581129 | CE63: 1 | CF63: 0.6036871428 | CG63: 0.8919753086 | CH63: 1 | CI63: 1 | CJ63: 0.1111111111 | CK63: 0.1597111023 | CL63: 1 | CM63: 0.4060130878 | CN63: 0.866261511 | CO63: 0.7597242513 | CP63: 0.6410277294 | CQ63: 1 | CR63: 1 | CS63: 0.9952412469 | CT63: 0.3473978729 | CU63: 0.285617778 | CV63: 0.3375204236 | CW63: 0.9207831598 | CX63: 1 | CY63: 0.2732165911 | CZ63: 0.4434354356 | DM63: 17 | DN63: 430 | DO63: 0.03252604502 | DP63: 0.6912797447 | DQ63: 41.835956 | DR63: -71.454192 | DS63: Undeveloped/grassed land south of Mt. Pleasant HS, west of neighborhood (Standish Ave / Galileo Ave, east of Triggs Memorial Golf Course | DT63: https://www.google.com/maps/place/41%C2%B050'09.4%22N+71%C2%B027'15.1%22W/@41.835956,-71.4563807,757m/data=!3m2!1e3!4b1!4m5!3m4!1s0x0:0x0!8m2!3d41.835956!4d-71.454192 | DX63: 14 | DZ63: 30
B64: 437 | C64: 36 | D64: 0.349908 | E64: 9 | F64: 12.68493 | G64: 0 | H64: 1 | I64: NO | J64: 5 | K64: 28.861247 | L64: 1 | M64: 15.648054 | N64: 155 | O64: 238 | P64: 52145 | Q64: NO | R64: NO | S64: 97.607901 | T64: 55.10225 | U64: 55.9463258 | V64: 62.1030351 | W64: 32 | X64: NO | Y64: 48.468138 | Z64: 8.691747 | AB64: 437 | AC64: 36 | AD64: 0.349908 | AE64: 9 | AF64: 12.68493 | AG64: 0 | AH64: 1 | AI64: 0 | AJ64: 5 | AK64: 28.861247 | AL64: 1 | AM64: 15.648054 | AN64: 155 | AO64: 238 | AP64: 52145 | AQ64: 0 | AR64: 0 | AS64: 97.607901 | AT64: 55.10225 | AU64: 55.9463258 | AV64: 62.1030351 | AW64: 32 | AX64: 0 | AY64: 48.468138 | AZ64: 8.691747 | BB64: 437 | BC64: 0.05438066465 | BD64: 0.05632351647 | BE64: 0 | BF64: 0.2312136908 | BG64: 0 | BH64: 0.02380952381 | BI64: 0 | BJ64: 0.6666666667 | BK64: 0.5666407723 | BL64: 0.3333333333 | BM64: 0.2637438197 | BN64: 0.1434146341 | BO64: 0.1756756757 | BP64: 0.2398400624 | BQ64: 0 | BR64: 0 | BS64: 0.002337452501 | BT64: 0.4811501322 | BU64: 0.4569274813 | BV64: 0.4480783393 | BW64: 0.06808510638 | BX64: 0 | BY64: 0.5585162445 | BZ64: 0.08691747 | CB64: 437 | CC64: 0.8941959274 | CD64: 0.8905253056 | CE64: 1 | CF64: 0.5910323891 | CG64: 1 | CH64: 0.9529478458 | CI64: 1 | CJ64: 0.1111111111 | CK64: 0.1878002202 | CL64: 0.4444444444 | CM64: 0.5420731631 | CN64: 0.733738489 | CO64: 0.6795105917 | CP64: 0.5778431308 | CQ64: 1 | CR64: 1 | CS64: 0.9953305587 | CT64: 0.2692051853 | CU64: 0.2949277605 | CV64: 0.3046175196 | CW64: 0.8684653689 | CX64: 1 | CY64: 0.1949079063 | CZ64: 0.8337197066 | DM64: 47 | DN64: 435 | DO64: 0.07365107951 | DP64: 0.2262406762 | DQ64: 41.881164 | DR64: -71.535175 | DS64: Forested land adjacent (East) of Mountaindale Reservoir and other undeveloped land (Mountaindale Road) | DT64: https://www.google.com/maps/place/41%C2%B052'52.2%22N+71%C2%B032'06.6%22W/@41.881164,-71.5373637,757m/data=!3m2!1e3!4b1!4m5!3m4!1s0x0:0x0!8m2!3d41.881164!4d-71.535175 | DX64: 15 | DY64: 15 | DZ64: 10
B65: 438 | C65: 36 | D65: 0.727757 | E65: 9 | F65: 12.86156 | G65: 2 | H65: 4 | I65: YES | J65: 6 | K65: 39.29196 | L65: 1 | M65: 15.142223 | N65: 169 | O65: 265 | P65: 50374 | Q65: NO | R65: NO | S65: 95.920324 | T65: 54.730349 | U65: 53.2432808 | V65: 62.28671088 | W65: 27 | X65: NO | Y65: 46.470875 | Z65: 9.367183 | AB65: 438 | AC65: 36 | AD65: 0.727757 | AE65: 9 | AF65: 12.86156 | AG65: 2 | AH65: 4 | AI65: 1 | AJ65: 6 | AK65: 39.29196 | AL65: 1 | AM65: 15.142223 | AN65: 169 | AO65: 265 | AP65: 50374 | AQ65: 0 | AR65: 0 | AS65: 95.920324 | AT65: 54.730349 | AU65: 53.2432808 | AV65: 62.28671088 | AW65: 27 | AX65: 0 | AY65: 46.470875 | AZ65: 9.367183 | BB65: 438 | BC65: 0.05438066465 | BD65: 0.1378201423 | BE65: 0 | BF65: 0.2155047189 | BG65: 0.1111111111 | BH65: 0.09523809524 | BI65: 1 | BJ65: 0.8333333333 | BK65: 0.4100208685 | BL65: 0.3333333333 | BM65: 0.287930542 | BN65: 0.1570731707 | BO65: 0.1959459459 | BP65: 0.2251486972 | BQ65: 0 | BR65: 0 | BS65: 0.00229699245 | BT65: 0.4860970989 | BU65: 0.4917108683 | BV65: 0.4378481283 | BW65: 0.05744680851 | BX65: 0 | BY65: 0.5355010458 | BZ65: 0.09367183 | CB65: 438 | CC65: 0.8941959274 | CD65: 0.7433541071 | CE65: 1 | CF65: 0.6154328461 | CG65: 0.7901234568 | CH65: 0.8185941043 | CI65: 0 | CJ65: 0.02777777778 | CK65: 0.3480753756 | CL65: 0.4444444444 | CM65: 0.507042913 | CN65: 0.7105256395 | CO65: 0.6465029218 | CP65: 0.6003945415 | CQ65: 1 | CR65: 1 | CS65: 0.9954112913 | CT65: 0.2640961917 | CU65: 0.2583578414 | CV65: 0.3160147268 | CW65: 0.8884065188 | CX65: 1 | CY65: 0.2157592785 | CZ65: 0.8214307517 | DM65: 42 | DN65: 437 | DO65: 0.07001254202 | DP65: 0.2673850085 | DQ65: 41.876775 | DR65: -71.533144 | DS65: Partially cleared land adjacent to commercial businesses, East of Cedar Swamp Road | DT65: https://www.google.com/maps/place/41%C2%B052'36.4%22N+71%C2%B031'59.3%22W/@41.876775,-71.5353327,757m/data=!3m2!1e3!4b1!4m5!3m4!1s0x0:0x0!8m2!3d41.876775!4d-71.533144 | DX65: 14
B66: 440 | C66: 9 | D66: 0.445193 | E66: 3 | F66: 14.748435 | G66: 1 | H66: 9 | I66: YES | J66: 1 | K66: 4.857304 | L66: 2 | M66: 7.938934 | N66: 330 | O66: 273 | P66: 34875 | Q66: NO | R66: YES | S66: 10.792432 | T66: 47.518008 | U66: 47.5207836 | V66: 64.13461842 | W66: 148 | X66: NO | Y66: 27.196471 | Z66: 15.627146 | AB66: 440 | AC66: 9 | AD66: 0.445193 | AE66: 3 | AF66: 14.748435 | AG66: 1 | AH66: 9 | AI66: 1 | AJ66: 1 | AK66: 4.857304 | AL66: 2 | AM66: 7.938934 | AN66: 330 | AO66: 273 | AP66: 34875 | AQ66: 0 | AR66: 1 | AS66: 10.792432 | AT66: 47.518008 | AU66: 47.5207836 | AV66: 64.13461842 | AW66: 148 | AX66: 0 | AY66: 27.196471 | AZ66: 15.627146 | BB66: 440 | BC66: 0.01359516616 | BD66: 0.07687512833 | BE66: 0.6666666667 | BF66: 0.04769140012 | BG66: 0.05555555556 | BH66: 0.2142857143 | BI66: 1 | BJ66: 0 | BK66: 0.9270663007 | BL66: 0.6666666667 | BM66: 0.6323616873 | BN66: 0.3141463415 | BO66: 0.201951952 | BP66: 0.09657643907 | BQ66: 0 | BR66: 1 | BS66: 0.0002560314372 | BT66: 0.5820344876 | BU66: 0.5653492407 | BV66: 0.3349250123 | BW66: 0.314893617 | BX66: 0 | BY66: 0.313394974 | BZ66: 0.15627146 | CB66: 440 | CC66: 0.9729944962 | CD66: 0.8521595287 | CE66: 0.1111111111 | CF66: 0.9068916694 | CG66: 0.8919753086 | CH66: 0.6173469388 | CI66: 0 | CJ66: 1 | CK66: 0.005319324493 | CL66: 0.1111111111 | CM66: 0.135157929 | CN66: 0.4703952409 | CO66: 0.636880687 | CP66: 0.8161741305 | CQ66: 1 | CR66: 0 | CS66: 0.9994880027 | CT66: 0.1746951696 | CU66: 0.1889212826 | CV66: 0.4423247392 | CW66: 0.469370756 | CX66: 1 | CY66: 0.4714264617 | CZ66: 0.7118778492 | DM66: 44 | DN66: 438 | DO66: 0.07038586459 | DP66: 0.2631635025 | DQ66: 41.877433 | DR66: -71.534358 | DS66: Partially cleared/forested land adjacent to commercial businesses, East of Cedar Swamp Road | DT66: https://www.google.com/maps/place/41%C2%B052'38.8%22N+71%C2%B032'03.7%22W/@41.877433,-71.5365467,757m/data=!3m2!1e3!4b1!4m5!3m4!1s0x0:0x0!8m2!3d41.877433!4d-71.534358
B67: 442 | C67: 0 | D67: 0.704969 | E67: 0 | F67: 13.101381 | G67: 0 | H67: 0 | I67: NO | J67: 4 | K67: 50.795039 | L67: 0 | M67: 16.328406 | N67: 58 | O67: 69 | P67: 38313 | Q67: NO | R67: NO | S67: 2.662567 | T67: 67.584196 | U67: 79.6374892 | V67: 67.11678116 | W67: 8 | X67: NO | Y67: 4.146833 | Z67: 66.798236 | AB67: 442 | AC67: 0 | AD67: 0.704969 | AE67: 0 | AF67: 13.101381 | AG67: 0 | AH67: 0 | AI67: 0 | AJ67: 4 | AK67: 50.795039 | AL67: 0 | AM67: 16.328406 | AN67: 58 | AO67: 69 | AP67: 38313 | AQ67: 0 | AR67: 0 | AS67: 2.662567 | AT67: 67.584196 | AU67: 79.6374892 | AV67: 67.11678116 | AW67: 8 | AX67: 0 | AY67: 4.146833 | AZ67: 66.798236 | BB67: 442 | BC67: 0 | BD67: 0.1329050966 | BE67: 1 | BF67: 0.1941757183 | BG67: 0 | BH67: 0 | BI67: 0 | BJ67: 0.5 | BK67: 0.2372991067 | BL67: 0 | BM67: 0.2312122333 | BN67: 0.0487804878 | BO67: 0.0487987988 | BP67: 0.1250964354 | BQ67: 0 | BR67: 0 | BS67: 6.111603267e-05 | BT67: 0.3151173136 | BU67: 0.1520642979 | BV67: 0.1688271556 | BW67: 0.0170212766 | BX67: 0 | BY67: 0.04778548732 | BZ67: 0.66798236 | CB67: 442 | CC67: 1 | CD67: 0.7518535716 | CE67: 0 | CF67: 0.6493527729 | CG67: 1 | CH67: 1 | CI67: 1 | CJ67: 0.25 | CK67: 0.5817126527 | CL67: 1 | CM67: 0.5910346303 | CN67: 0.9048185604 | CO67: 0.9047837252 | CP67: 0.7654562473 | CQ67: 1 | CR67: 1 | CS67: 0.9998777717 | CT67: 0.4690642941 | CU67: 0.7189949549 | CV67: 0.6908482973 | CW67: 0.9662471707 | CX67: 1 | CY67: 0.9067124782 | CZ67: 0.1102357133 | DM67: 30 | DN67: 440 | DO67: 0.05879234775 | DP67: 0.3942621955 | DQ67: 41.874839 | DR67: -71.555447 | DS67: Cleared/grassed land adjacent (N) to "Stillwater River", adjacent (W) to Austin Avenue and residential development | DT67: https://www.google.com/maps/place/41%C2%B052'29.4%22N+71%C2%B033'19.6%22W/@41.874839,-71.5576357,757m/data=!3m2!1e3!4b1!4m5!3m4!1s0x0:0x0!8m2!3d41.874839!4d-71.555447 | DW67: Default_Checks
B68: 443 | C68: 4 | D68: 2.479789 | E68: 0 | F68: 13.266941 | G68: 1 | H68: 2 | I68: NO | J68: 4 | K68: 28.601435 | L68: 0 | M68: 15.958971 | N68: 26 | O68: 72 | P68: 38945 | Q68: NO | R68: NO | S68: 41691.44944 | T68: 68.063113 | U68: 82.5882778 | V68: 67.12592833 | W68: 7 | X68: NO | Y68: 1.359588 | Z68: 50.580549 | AB68: 443 | AC68: 4 | AD68: 2.479789 | AE68: 0 | AF68: 13.266941 | AG68: 1 | AH68: 2 | AI68: 0 | AJ68: 4 | AK68: 28.601435 | AL68: 0 | AM68: 15.958971 | AN68: 26 | AO68: 72 | AP68: 38945 | AQ68: 0 | AR68: 0 | AS68: 41691.44944 | AT68: 68.063113 | AU68: 82.5882778 | AV68: 67.12592833 | AW68: 7 | AX68: 0 | AY68: 1.359588 | AZ68: 50.580549 | BB68: 443 | BC68: 0.006042296073 | BD68: 0.5157083895 | BE68: 1 | BF68: 0.1794512808 | BG68: 0.05555555556 | BH68: 0.04761904762 | BI68: 0 | BJ68: 0.5 | BK68: 0.570541918 | BL68: 0 | BM68: 0.2488770695 | BN68: 0.01756097561 | BO68: 0.05105105105 | BP68: 0.1303392038 | BQ68: 0 | BR68: 0 | BS68: 0.9995594788 | BT68: 0.3087468375 | BU68: 0.1140928909 | BV68: 0.1683176847 | BW68: 0.01489361702 | BX68: 0 | BY68: 0.01566703437 | BZ68: 0.50580549 | CB68: 443 | CC68: 0.9879519172 | CD68: 0.234538364 | CE68: 0 | CF68: 0.6733002006 | CG68: 0.8919753086 | CH68: 0.9070294785 | CI68: 1 | CJ68: 0.25 | CK68: 0.1844342442 | CL68: 1 | CM68: 0.5641856568 | CN68: 0.9651864366 | CO68: 0.9005041077 | CP68: 0.7563099005 | CQ68: 1 | CR68: 1 | CS68: 1.940589592e-07 | CT68: 0.4778309347 | CU68: 0.7848314059 | CV68: 0.6916954736 | CW68: 0.9704345858 | CX68: 1 | CY68: 0.9689113872 | CZ68: 0.2442282137 | DM68: 57 | DN68: 442 | DO68: 0.08643588101 | DP68: 0.08167101793 | DQ68: 41.951431 | DR68: -71.552386 | DS68: Partially forested/cleared land adjacent (N) of pond and Material Sand Stone Concrete company (Greenville Rd)., forested land and wetlands surround on East and North | DT68: https://www.google.com/maps/place/41%C2%B057'05.2%22N+71%C2%B033'08.6%22W/@41.951431,-71.5545747,756m/data=!3m2!1e3!4b1!4m5!3m4!1s0x0:0x0!8m2!3d41.951431!4d-71.552386 | DX68: Scenario 1 | DY68: Scenario 2 | DZ68: Scenario 3 | EA68: Scenario 4
B69: 444 | C69: 1 | D69: 0.334382 | E69: 0 | F69: 13.14178 | G69: 0 | H69: 0 | I69: NO | J69: 3 | K69: 27.478846 | L69: 0 | M69: 16.306118 | N69: 30 | O69: 87 | P69: 38439 | Q69: NO | R69: NO | S69: 3.219085 | T69: 66.314682 | U69: 80.2508868 | V69: 66.91878796 | W69: 2 | X69: NO | Y69: 3.024722 | Z69: 55.140175 | AB69: 444 | AC69: 1 | AD69: 0.334382 | AE69: 0 | AF69: 13.14178 | AG69: 0 | AH69: 0 | AI69: 0 | AJ69: 3 | AK69: 27.478846 | AL69: 0 | AM69: 16.306118 | AN69: 30 | AO69: 87 | AP69: 38439 | AQ69: 0 | AR69: 0 | AS69: 3.219085 | AT69: 66.314682 | AU69: 80.2508868 | AV69: 66.91878796 | AW69: 2 | AX69: 0 | AY69: 3.024722 | AZ69: 55.140175 | BB69: 444 | BC69: 0.001510574018 | BD69: 0.0529747803 | BE69: 1 | BF69: 0.1905827457 | BG69: 0 | BH69: 0 | BI69: 0 | BJ69: 0.3333333333 | BK69: 0.5873978876 | BL69: 0 | BM69: 0.2322779522 | BN69: 0.02146341463 | BO69: 0.06231231231 | BP69: 0.1261416709 | BQ69: 0 | BR69: 0 | BS69: 7.445868118e-05 | BT69: 0.3320041827 | BU69: 0.1441709605 | BV69: 0.1798548055 | BW69: 0.004255319149 | BX69: 0 | BY69: 0.03485498808 | BZ69: 0.55140175 | CB69: 444 | CC69: 0.9969811338 | CD69: 0.8968567667 | CE69: 0 | CF69: 0.6551562916 | CG69: 1 | CH69: 1 | CI69: 1 | CJ69: 0.4444444444 | CK69: 0.1702405032 | CL69: 1 | CM69: 0.5893971427 | CN69: 0.9575338489 | CO69: 0.8792581996 | CP69: 0.7636283794 | CQ69: 1 | CR69: 1 | CS69: 0.9998510882 | CT69: 0.446218412 | CU69: 0.7324433448 | CV69: 0.6726381401 | CW69: 0.9915074694 | CX69: 1 | CY69: 0.931504894 | CZ69: 0.2012403899 | DM69: 54 | DN69: 443 | DO69: 0.08325215184 | DP69: 0.117672409 | DQ69: 41.946497 | DR69: -71.552864 | DS69: Partially cleared/forested land adjacent to Material Sand Stone Concrete company (Greenville Rd), appears they filled wetland with gravel/concrete | DT69: https://www.google.com/maps/place/41%C2%B056'47.4%22N+71%C2%B033'10.3%22W/@41.946497,-71.5550527,793m/data=!3m2!1e3!4b1!4m5!3m4!1s0x0:0x0!8m2!3d41.946497!4d-71.552864 | DX69: TRUE | DY69: TRUE | DZ69: FALSE | EA69: FALSE
B70: 445 | C70: 4 | D70: 0.179077 | E70: 0 | F70: 12.779356 | G70: 0 | H70: 2 | I70: NO | J70: 3 | K70: 10.91828 | L70: 0 | M70: 16.464007 | N70: 30 | O70: 40 | P70: 38165 | Q70: NO | R70: NO | S70: 41709.82345 | T70: 70.67258 | U70: 80.6961284 | V70: 67.34868731 | W70: 13 | X70: NO | Y70: 0.771205 | Z70: 69.090773 | AB70: 445 | AC70: 4 | AD70: 0.179077 | AE70: 0 | AF70: 12.779356 | AG70: 0 | AH70: 2 | AI70: 0 | AJ70: 3 | AK70: 10.91828 | AL70: 0 | AM70: 16.464007 | AN70: 30 | AO70: 40 | AP70: 38165 | AQ70: 0 | AR70: 0 | AS70: 41709.82345 | AT70: 70.67258 | AU70: 80.6961284 | AV70: 67.34868731 | AW70: 13 | AX70: 0 | AY70: 0.771205 | AZ70: 69.090773 | BB70: 445 | BC70: 0.006042296073 | BD70: 0.01947771277 | BE70: 1 | BF70: 0.2228157098 | BG70: 0 | BH70: 0.04761904762 | BI70: 0 | BJ70: 0.3333333333 | BK70: 0.8360591492 | BL70: 0 | BM70: 0.2247283607 | BN70: 0.02146341463 | BO70: 0.02702702703 | BP70: 0.1238686985 | BQ70: 0 | BR70: 0 | BS70: 1 | BT70: 0.2740361312 | BU70: 0.1384414921 | BV70: 0.1559106522 | BW70: 0.02765957447 | BX70: 0 | BY70: 0.008886879879 | BZ70: 0.69090773 | CB70: 445 | CC70: 0.9879519172 | CD70: 0.9614239558 | CE70: 0 | CF70: 0.6040154209 | CG70: 1 | CH70: 0.9070294785 | CI70: 1 | CJ70: 0.4444444444 | CK70: 0.02687660256 | CL70: 1 | CM70: 0.6010461146 | CN70: 0.9575338489 | CO70: 0.9466764061 | CP70: 0.7676060574 | CQ70: 1 | CR70: 1 | CS70: 0 | CT70: 0.5270235388 | CU70: 0.7422830625 | CV70: 0.7124868271 | CW70: 0.9454459031 | CX70: 1 | CY70: 0.9823052169 | CZ70: 0.09553803137 | DM70: 60 | DN70: 444 | DO70: 0.08724206217 | DP70: 0.07255477671 | DQ70: 41.949033 | DR70: -71.550981 | DS70: Forested/filled land adjacent (East) of Material Sand Stone Concrete company (Greenville Rd), forest surrounds on East and North | DT70: https://www.google.com/maps/place/41%C2%B056'56.5%22N+71%C2%B033'03.5%22W/@41.949033,-71.5531697,793m/data=!3m2!1e3!4b1!4m5!3m4!1s0x0:0x0!8m2!3d41.949033!4d-71.550981 | DX70: TRUE | DY70: FALSE | DZ70: FALSE | EA70: TRUE
B71: 446 | C71: 4 | D71: 0.406159 | E71: 1 | F71: 13.138585 | G71: 0 | H71: 0 | I71: NO | J71: 4 | K71: 45.636585 | L71: 0 | M71: 15.062403 | N71: 13 | O71: 71 | P71: 38339 | Q71: NO | R71: NO | S71: 0.406152 | T71: 68.585549 | U71: 82.601051 | V71: 67.02447808 | W71: 2 | X71: NO | Y71: 0.31874 | Z71: 68.855088 | AB71: 446 | AC71: 4 | AD71: 0.406159 | AE71: 1 | AF71: 13.138585 | AG71: 0 | AH71: 0 | AI71: 0 | AJ71: 4 | AK71: 45.636585 | AL71: 0 | AM71: 15.062403 | AN71: 13 | AO71: 71 | AP71: 38339 | AQ71: 0 | AR71: 0 | AS71: 0.406152 | AT71: 68.585549 | AU71: 82.601051 | AV71: 67.02447808 | AW71: 2 | AX71: 0 | AY71: 0.31874 | AZ71: 68.855088 | BB71: 446 | BC71: 0.006042296073 | BD71: 0.06845605274 | BE71: 0.8888888889 | BF71: 0.1908668999 | BG71: 0 | BH71: 0 | BI71: 0 | BJ71: 0.5 | BK71: 0.3147546525 | BL71: 0 | BM71: 0.2917472005 | BN71: 0.00487804878 | BO71: 0.0503003003 | BP71: 0.1253121189 | BQ71: 0 | BR71: 0 | BS71: 7.017958166e-06 | BT71: 0.3017974786 | BU71: 0.1139285226 | BV71: 0.1739681709 | BW71: 0.004255319149 | BX71: 0 | BY71: 0.003672958672 | BZ71: 0.68855088 | CB71: 446 | CC71: 0.9879519172 | CD71: 0.8677741257 | CE71: 0.01234567901 | CF71: 0.6546963736 | CG71: 1 | CH71: 1 | CI71: 1 | CJ71: 0.25 | CK71: 0.4695611862 | CL71: 1 | CM71: 0.5016220281 | CN71: 0.9902676978 | CO71: 0.9019295196 | CP71: 0.7650788893 | CQ71: 1 | CR71: 1 | CS71: 0.9999859641 | CT71: 0.4874867608 | CU71: 0.7851226631 | CV71: 0.6823285827 | CW71: 0.9915074694 | CX71: 1 | CY71: 0.9926675733 | CZ71: 0.09700055435 | DM71: 52 | DN71: 445 | DO71: 0.08316718384 | DP71: 0.1186332214 | DQ71: 41.946631 | DR71: -71.554908 | DS71: Partially filled land adjacent (East) of Woony River, but part of Material Sand Stone Concrete property (Greenville Rd) | DT71: https://www.google.com/maps/place/41%C2%B056'47.9%22N+71%C2%B033'17.7%22W/@41.946631,-71.5570967,756m/data=!3m2!1e3!4b1!4m5!3m4!1s0x0:0x0!8m2!3d41.946631!4d-71.554908 | DX71: TRUE | DY71: FALSE | DZ71: FALSE | EA71: TRUE
B72: 447 | C72: 4 | D72: 0.322544 | E72: 1 | F72: 13.302548 | G72: 0 | H72: 0 | I72: NO | J72: 5 | K72: 43.537566 | L72: 0 | M72: 13.600954 | N72: 12 | O72: 78 | P72: 38396 | Q72: NO | R72: NO | S72: 41692.75712 | T72: 67.208561 | U72: 82.301543 | V72: 66.90557886 | W72: 0 | X72: NO | Y72: 0.039362 | Z72: 67.243731 | AB72: 447 | AC72: 4 | AD72: 0.322544 | AE72: 1 | AF72: 13.302548 | AG72: 0 | AH72: 0 | AI72: 0 | AJ72: 5 | AK72: 43.537566 | AL72: 0 | AM72: 13.600954 | AN72: 12 | AO72: 78 | AP72: 38396 | AQ72: 0 | AR72: 0 | AS72: 41692.75712 | AT72: 67.208561 | AU72: 82.301543 | AV72: 66.90557886 | AW72: 0 | AX72: 0 | AY72: 0.039362 | AZ72: 67.243731 | BB72: 447 | BC72: 0.006042296073 | BD72: 0.05042149299 | BE72: 0.8888888889 | BF72: 0.1762844951 | BG72: 0 | BH72: 0 | BI72: 0 | BJ72: 0.6666666667 | BK72: 0.3462719759 | BL72: 0 | BM72: 0.3616275777 | BN72: 0.003902439024 | BO72: 0.05555555556 | BP72: 0.1257849635 | BQ72: 0 | BR72: 0 | BS72: 0.9995908307 | BT72: 0.3201139494 | BU72: 0.1177826584 | BV72: 0.1805905141 | BW72: 0 | BX72: 0 | BY72: 0.0004535828551 | BZ72: 0.67243731 | CB72: 447 | CC72: 0.9879519172 | CD72: 0.901699341 | CE72: 0.01234567901 | CF72: 0.6785072331 | CG72: 1 | CH72: 1 | CI72: 1 | CJ72: 0.1111111111 | CK72: 0.4273603296 | CL72: 1 | CM72: 0.4075193495 | CN72: 0.992210351 | CO72: 0.8919753086 | CP72: 0.76425193 | CQ72: 1 | CR72: 1 | CS72: 1.674195386e-07 | CT72: 0.4622450418 | CU72: 0.7783074378 | CV72: 0.6714319056 | CW72: 1 | CX72: 1 | CY72: 0.99909304 | CZ72: 0.1072973159 | DM72: 61 | DN72: 446 | DO72: 0.08856759414 | DP72: 0.05756575216 | DQ72: 41.944061 | DR72: -71.55245 | DS72: Cleared/filled land adjacent (East & West) of two small ponds, appears to be filled with gravel from nearby (N) Material Sand Stone Concrete company operations (Greenville Rd) | DT72: https://www.google.com/maps/place/41%C2%B056'38.6%22N+71%C2%B033'08.8%22W/@41.944061,-71.5546387,756m/data=!3m2!1e3!4b1!4m5!3m4!1s0x0:0x0!8m2!3d41.944061!4d-71.55245 | DX72: TRUE | DY72: FALSE | DZ72: TRUE | EA72: TRUE
B73: 448 | C73: 4 | D73: 3.835467 | E73: 1 | F73: 13.426829 | G73: 0 | H73: 0 | I73: NO | J73: 6 | K73: 35.897659 | L73: 0 | M73: 12.896185 | N73: 34 | O73: 90 | P73: 38992 | Q73: NO | R73: NO | S73: 41696.32625 | T73: 69.60123 | U73: 81.5023656 | V73: 66.87725463 | W73: 8 | X73: NO | Y73: 0 | Z73: 64.521127 | AB73: 448 | AC73: 4 | AD73: 3.835467 | AE73: 1 | AF73: 13.426829 | AG73: 0 | AH73: 0 | AI73: 0 | AJ73: 6 | AK73: 35.897659 | AL73: 0 | AM73: 12.896185 | AN73: 34 | AO73: 90 | AP73: 38992 | AQ73: 0 | AR73: 0 | AS73: 41696.32625 | AT73: 69.60123 | AU73: 81.5023656 | AV73: 66.87725463 | AW73: 8 | AX73: 0 | AY73: 0 | AZ73: 64.521127 | BB73: 448 | BC73: 0.006042296073 | BD73: 0.808108747 | BE73: 0.8888888889 | BF73: 0.1652312949 | BG73: 0 | BH73: 0 | BI73: 0 | BJ73: 0.8333333333 | BK73: 0.4609871923 | BL73: 0 | BM73: 0.3953266829 | BN73: 0.02536585366 | BO73: 0.06456456456 | BP73: 0.1307290932 | BQ73: 0 | BR73: 0 | BS73: 0.9996764015 | BT73: 0.2882870549 | BU73: 0.1280666517 | BV73: 0.182168092 | BW73: 0.0170212766 | BX73: 0 | BY73: 0 | BZ73: 0.64521127 | CB73: 448 | CC73: 0.9879519172 | CD73: 0.03682225298 | CE73: 0.01234567901 | CF73: 0.696838791 | CG73: 1 | CH73: 1 | CI73: 1 | CJ73: 0.02777777778 | CK73: 0.2905348069 | CL73: 1 | CM73: 0.3656298204 | CN73: 0.9499117192 | CO73: 0.8750394539 | CP73: 0.7556319094 | CQ73: 1 | CR73: 1 | CS73: 1.04716011e-07 | CT73: 0.5065353162 | CU73: 0.7602677638 | CV73: 0.6688490298 | CW73: 0.9662471707 | CX73: 1 | CY73: 1 | CZ73: 0.1258750429 | DM73: 55 | DN73: 447 | DO73: 0.08414836214 | DP73: 0.1075381244 | DQ73: 41.942344 | DR73: -71.551086 | DS73: Forested land, east of Woony River (appears to be historical riverbed that has since meandered west), forest surrounds, Pond east | DT73: https://www.google.com/maps/place/41%C2%B056'32.4%22N+71%C2%B033'03.9%22W/@41.942344,-71.5532747,756m/data=!3m2!1e3!4b1!4m5!3m4!1s0x0:0x0!8m2!3d41.942344!4d-71.551086 | DX73: TRUE | DY73: FALSE | DZ73: TRUE | EA73: FALSE
B74: 449 | C74: 368 | D74: 2.188409 | E74: 4 | F74: 6.371746 | G74: 0 | H74: 2 | I74: YES | J74: 6 | K74: 32.265336 | L74: 0 | M74: 7.20985 | N74: 1033 | O74: 898 | P74: 127613 | Q74: YES | R74: YES | S74: 18.626405 | T74: 19.845565 | U74: 36.382246 | V74: 54.66330292 | W74: 338 | X74: YES | Y74: 81.143587 | Z74: 26.182561 | AB74: 449 | AC74: 368 | AD74: 2.188409 | AE74: 4 | AF74: 6.371746 | AG74: 0 | AH74: 2 | AI74: 1 | AJ74: 6 | AK74: 32.265336 | AL74: 0 | AM74: 7.20985 | AN74: 1033 | AO74: 898 | AP74: 127613 | AQ74: 1 | AR74: 1 | AS74: 18.626405 | AT74: 19.845565 | AU74: 36.382246 | AV74: 54.66330292 | AW74: 338 | AX74: 1 | AY74: 81.143587 | AZ74: 26.182561 | BB74: 449 | BC74: 0.5558912387 | BD74: 0.4528618904 | BE74: 0.5555555556 | BF74: 0.7926903965 | BG74: 0 | BH74: 0.04761904762 | BI74: 1 | BJ74: 0.8333333333 | BK74: 0.5155274791 | BL74: 0 | BM74: 0.667223434 | BN74: 1 | BO74: 0.6711711712 | BP74: 0.8658863348 | BQ74: 1 | BR74: 1 | BS74: 0.0004438527622 | BT74: 0.9501288303 | BU74: 0.708682431 | BV74: 0.8624499469 | BW74: 0.7191489362 | BX74: 1 | BY74: 0.9350475044 | BZ74: 0.26182561 | CB74: 449 | CC74: 0.1972325919 | CD74: 0.299360111 | CE74: 0.1975308642 | CF74: 0.04297727172 | CG74: 1 | CH74: 0.9070294785 | CI74: 0 | CJ74: 0.02777777778 | CK74: 0.2347136235 | CL74: 1 | CM74: 0.1107402429 | CN74: 0 | CO74: 0.1081283987 | CP74: 0.0179864752 | CQ74: 0 | CR74: 0 | CS74: 0.9991124915 | CT74: 0.002487133568 | CU74: 0.08486592603 | CV74: 0.01892001712 | CW74: 0.07887732005 | CX74: 0 | CY74: 0.004218826685 | CZ74: 0.5449014301 | DM74: 53 | DN74: 448 | DO74: 0.0832016071 | DP74: 0.1182439654 | DQ74: 41.940286 | DR74: -71.551475 | DS74: Forested land, east of Woony River (appears to be historical riverbed that has since meandered west), forest surrounds | DT74: https://www.google.com/maps/place/41%C2%B056'25.0%22N+71%C2%B033'05.3%22W/@41.940286,-71.5536637,793m/data=!3m2!1e3!4b1!4m5!3m4!1s0x0:0x0!8m2!3d41.940286!4d-71.551475 | DX74: TRUE | DY74: TRUE | DZ74: TRUE | EA74: FALSE
B75: 451 | C75: 23 | D75: 0.182023 | E75: 3 | F75: 8.953057 | G75: 1 | H75: 12 | I75: YES | J75: 5 | K75: 9.282982 | L75: 2 | M75: 5.188047 | N75: 739 | O75: 780 | P75: 102083 | Q75: YES | R75: YES | S75: 0.18202 | T75: 32.007681 | U75: 51.2458308 | V75: 57.40153697 | W75: 299 | X75: YES | Y75: 71.968955 | Z75: 21.987442 | AB75: 451 | AC75: 23 | AD75: 0.182023 | AE75: 3 | AF75: 8.953057 | AG75: 1 | AH75: 12 | AI75: 1 | AJ75: 5 | AK75: 9.282982 | AL75: 2 | AM75: 5.188047 | AN75: 739 | AO75: 780 | AP75: 102083 | AQ75: 1 | AR75: 1 | AS75: 0.18202 | AT75: 32.007681 | AU75: 51.2458308 | AV75: 57.40153697 | AW75: 299 | AX75: 1 | AY75: 71.968955 | AZ75: 21.987442 | BB75: 451 | BC75: 0.03474320242 | BD75: 0.02011312284 | BE75: 0.6666666667 | BF75: 0.5631159066 | BG75: 0.05555555556 | BH75: 0.2857142857 | BI75: 1 | BJ75: 0.6666666667 | BK75: 0.8606135795 | BL75: 0.6666666667 | BM75: 0.7638975954 | BN75: 0.7131707317 | BO75: 0.5825825826 | BP75: 0.6541017197 | BQ75: 1 | BR75: 1 | BS75: 1.644341329e-06 | BT75: 0.7883503384 | BU75: 0.5174145011 | BV75: 0.7099382145 | BW75: 0.6361702128 | BX75: 1 | BY75: 0.8293248334 | BZ75: 0.21987442 | CB75: 451 | CC75: 0.9317206853 | CD75: 0.960178292 | CE75: 0.1111111111 | CF75: 0.1908677111 | CG75: 0.8919753086 | CH75: 0.5102040816 | CI75: 0 | CJ75: 0.1111111111 | CK75: 0.01942857421 | CL75: 0.1111111111 | CM75: 0.05574434548 | CN75: 0.08227102915 | CO75: 0.1742373004 | CP75: 0.1196456203 | CQ75: 0 | CR75: 0 | CS75: 0.9999967113 | CT75: 0.04479557924 | CU75: 0.2328887637 | CV75: 0.08413583938 | CW75: 0.1323721141 | CX75: 0 | CY75: 0.02913001251 | CZ75: 0.6085959206 | DM75: 4 | DN75: 449 | DO75: 0.007290263266 | DP75: 0.9766442334 | DQ75: 41.838847 | DR75: -71.476567 | DS75: Forested land adjacent (East) of dam/pond on Woony River, adjacent (W) of industry (Woonasquatucket Avenue) | DT75: https://www.google.com/maps/place/41%C2%B050'19.9%22N+71%C2%B028'35.6%22W/@41.838847,-71.4787557,757m/data=!3m2!1e3!4b1!4m5!3m4!1s0x0:0x0!8m2!3d41.838847!4d-71.476567 | DX75: TRUE | DY75: FALSE | DZ75: FALSE | EA75: FALSE
B76: 452 | C76: 23 | D76: 0.2629 | E76: 3 | F76: 8.986573 | G76: 2 | H76: 26 | I76: YES | J76: 5 | K76: 12.080341 | L76: 2 | M76: 5.532999 | N76: 720 | O76: 788 | P76: 101317 | Q76: YES | R76: YES | S76: 0.262896 | T76: 33.640327 | U76: 51.6056446 | V76: 57.47202527 | W76: 298 | X76: YES | Y76: 71.589078 | Z76: 23.845794 | AB76: 452 | AC76: 23 | AD76: 0.2629 | AE76: 3 | AF76: 8.986573 | AG76: 2 | AH76: 26 | AI76: 1 | AJ76: 5 | AK76: 12.080341 | AL76: 2 | AM76: 5.532999 | AN76: 720 | AO76: 788 | AP76: 101317 | AQ76: 1 | AR76: 1 | AS76: 0.262896 | AT76: 33.640327 | AU76: 51.6056446 | AV76: 57.47202527 | AW76: 298 | AX76: 1 | AY76: 71.589078 | AZ76: 23.845794 | BB76: 452 | BC76: 0.03474320242 | BD76: 0.03755713514 | BE76: 0.6666666667 | BF76: 0.5601350884 | BG76: 0.1111111111 | BH76: 0.619047619 | BI76: 1 | BJ76: 0.6666666667 | BK76: 0.8186104971 | BL76: 0.6666666667 | BM76: 0.7474034338 | BN76: 0.6946341463 | BO76: 0.5885885886 | BP76: 0.6477473517 | BQ76: 1 | BR76: 1 | BS76: 3.583362242e-06 | BT76: 0.7666331465 | BU76: 0.5127843367 | BV76: 0.7060122197 | BW76: 0.6340425532 | BX76: 1 | BY76: 0.8249473705 | BZ76: 0.23845794 | CB76: 452 | CC76: 0.9317206853 | CD76: 0.9262962681 | CE76: 0.1111111111 | CF76: 0.1934811404 | CG76: 0.7901234568 | CH76: 0.1451247166 | CI76: 0 | CJ76: 0.1111111111 | CK76: 0.03290215175 | CL76: 0.1111111111 | CM76: 0.06380502525 | CN76: 0.09324830458 | CO76: 0.1692593494 | CP76: 0.1240819283 | CQ76: 0 | CR76: 0 | CS76: 0.9999928333 | CT76: 0.05446008832 | CU76: 0.2373791025 | CV76: 0.08642881499 | CW76: 0.1339248529 | CX76: 0 | CY76: 0.03064342311 | CZ76: 0.5799463091 | DM76: 8 | DN76: 451 | DO76: 0.01099398755 | DP76: 0.9347627733 | DQ76: 41.865247 | DR76: -71.491747 | DS76: Cleared/grassed land adjacent (S) of Angell / Greystone Avenue & adjacent (E) of Woony River | DT76: https://www.google.com/maps/place/41%C2%B051'54.9%22N+71%C2%B029'30.3%22W/@41.865247,-71.4939357,757m/data=!3m2!1e3!4b1!4m5!3m4!1s0x0:0x0!8m2!3d41.865247!4d-71.491747
B77: 455 | C77: 662 | D77: 1.560316 | E77: 3 | F77: 5.633797 | G77: 1 | H77: 30 | I77: YES | J77: 4 | K77: 5.935165 | L77: 0 | M77: 2.573721 | N77: 1006 | O77: 1336 | P77: 139151 | Q77: YES | R77: YES | S77: 8.595066 | T77: 18.369349 | U77: 18.2443246 | V77: 52.19369464 | W77: 418 | X77: YES | Y77: 67.803916 | Z77: 14.311988 | AB77: 455 | AC77: 662 | AD77: 1.560316 | AE77: 3 | AF77: 5.633797 | AG77: 1 | AH77: 30 | AI77: 1 | AJ77: 4 | AK77: 5.935165 | AL77: 0 | AM77: 2.573721 | AN77: 1006 | AO77: 1336 | AP77: 139151 | AQ77: 1 | AR77: 1 | AS77: 8.595066 | AT77: 18.369349 | AU77: 18.2443246 | AV77: 52.19369464 | AW77: 418 | AX77: 1 | AY77: 67.803916 | AZ77: 14.311988 | BB77: 455 | BC77: =(AC77-$AC$79)/$AC$80 -> 1 | BD77: 0.3173912124 | BE77: 0.6666666667 | BF77: 0.8583214906 | BG77: 0.05555555556 | BH77: 0.7142857143 | BI77: 1 | BJ77: 0.5 | BK77: 0.9108819338 | BL77: 0 | BM77: 0.8889037277 | BN77: 0.9736585366 | BO77: 1 | BP77: 0.9616000398 | BQ77: 1 | BR77: 1 | BS77: 0.0002033490762 | BT77: 0.9697652158 | BU77: 0.9420852557 | BV77: 1 | BW77: 0.8893617021 | BX77: 1 | BY77: 0.7813295516 | BZ77: 0.14311988 | CB77: 455 | CC77: 0 | CD77: 0.4659547568 | CE77: 0.1111111111 | CF77: 0.02007280002 | CG77: 0.8919753086 | CH77: 0.08163265306 | CI77: 0 | CJ77: 0.25 | CK77: 0.007942029721 | CL77: 1 | CM77: 0.01234238171 | CN77: 0.0006938726948 | CO77: 0 | CP77: 0.001474556942 | CQ77: 0 | CR77: 0 | CS77: 0.9995933432 | CT77: 0.0009141421767 | CU77: 0.003354117606 | CV77: 0 | CW77: 0.01224083296 | CX77: 0 | CY77: 0.04781676501 | CZ77: 0.7342435401 | DM77: 9 | DN77: 452 | DO77: 0.01116352307 | DP77: 0.9328456773 | DQ77: 41.865782 | DR77: -71.492036 | DS77: Cleared/paved land adjacent (N) of Angell / Greystone Avenue & adjacent (E) of Woony River | DT77: https://www.google.com/maps/place/41%C2%B051'56.8%22N+71%C2%B029'31.3%22W/@41.865782,-71.4942247,757m/data=!3m2!1e3!4b1!4m5!3m4!1s0x0:0x0!8m2!3d41.865782!4d-71.492036
AB78: ideal | AC78: =MAX(AC13:AC77) -> 662 | AD78: =MAX(AD13:AD77) -> 4.725147 | AE78: =MIN(AE13:AE77) -> 0 | AF78: =MIN(AF13:AF77) -> 4.040779 | AG78: =MAX(AG13:AG77) -> 18 | AH78: =MAX(AH13:AH77) -> 42 | AI78: 1 | AJ78: 7 | AK78: =MIN(AK13:AK77) -> 0 | AL78: =MAX(AL13:AL77) -> 3 | AM78: =MIN(AM13:AM77) -> 0.2503 | AN78: =MAX(AN13:AN77) -> 1033 | AO78: =MAX(AO13:AO77) -> 1336 | AP78: 143780 | AQ78: 1 | AR78: 1 | AS78: 41709.82345 | AT78: =MIN(AT13:AT77) -> 16.096371 | AU78: =MIN(AU13:AU77) -> 13.7437232 | AV78: 52.19369464 | AW78: =MAX(AW13:AW77) -> 470 | AX78: =MAX(AX13:AX77) -> 1 | AY78: 86.780176 | AZ78: 100 | DM78: 1 | DN78: 455 | DO78: 0.005224830981 | DP78: =((DO78-$DO$80)/ABS($DO$79-$DO$80))*-1 -> 1 | DQ78: 41.821889 | DR78: -71.459325 | DS78: Partially cleared/grassed land adjacent (S) of Woony River, adjacent (N) of small stream, adjacent (N/E) of residential neighborhood (Glenbridge Avenue / State Route 6) | DT78: https://www.google.com/maps/place/41%C2%B049'18.8%22N+71%C2%B027'33.6%22W/@41.821889,-71.4615137,757m/data=!3m2!1e3!4b1!4m5!3m4!1s0x0:0x0!8m2!3d41.821889!4d-71.459325
AB79: lowest | AC79: =MIN(AC13:AC77) -> 0 | AD79: =MIN(AD13:AD77) -> 0.088771 | AE79: =MAX(AE13:AE77) -> 9 | AF79: =MAX(AF13:AF77) -> 15.284672 | AG79: =MIN(AG13:AG77) -> 0 | AH79: =MIN(AH13:AH77) -> 0 | AI79: 0 | AJ79: 1 | AK79: =MAX(AK13:AK77) -> 66.598898 | AL79: =MIN(AL13:AL77) -> 0 | AM79: =MAX(AM13:AM77) -> 21.163882 | AN79: =MIN(AN13:AN77) -> 8 | AO79: =MIN(AO13:AO77) -> 4 | AP79: 23233 | AQ79: 0 | AR79: 0 | AS79: 0.113435 | AT79: =MAX(AT13:AT77) -> 91.273954 | AU79: =MAX(AU13:AU77) -> 91.4545282 | AV79: 70.14794642 | AW79: =MIN(AW13:AW77) -> 0 | AX79: =MIN(AX13:AX77) -> 0 | AY79: 0 | AZ79: 0 | DN79: ideal | DO79: =MIN(DO14:DO78) -> 0.005224830981
AB80: abs() | AC80: =ABS(AC78-AC79) -> 662 | AD80: =ABS(AD78-AD79) -> 4.636376 | AE80: 9 | AF80: 11.243893 | AG80: 18 | AH80: 42 | AI80: 1 | AJ80: 6 | AK80: 66.598898 | AL80: 3 | AM80: 20.913582 | AN80: 1025 | AO80: 1332 | AP80: 120547 | AQ80: 1 | AR80: 1 | AS80: 41709.71001 | AT80: 75.177583 | AU80: 77.710805 | AV80: 17.95425178 | AW80: 470 | AX80: 1 | AY80: 86.780176 | AZ80: 100 | DN80: lowest | DO80: =MAX(DO14:DO78) -> 0.09365833533
